Workbook

Sheet Instructions
B2: Show summer times as | C2: BST
B49: Version Control: | C49: Ver | D49: Date | E49: Change | F49: Author / Contributor
C51: 1.00 | D51: 01/03/2010 | E51: Initial Release | F51: P.Orr
C52: 1.01 | D52: 26/04/2010 | E52: Add BST view option, and Liverpool and Dover times. | F52: P. Orr / N. Hackney
C53: 1.02 | D53: 12/01/2011 | E53: 2011 data inserted | F53: P.Orr
C54: 1.03 | D54: 29/10/2010 | E54: 2012 data inserted | F54: P.Orr
C55: 1.04 | D55: 09/03/2012 | E55: Victoria Dock gate operation times added | F55: P.Orr
C56: 1.05 | D56: 2012-02-03 | E56: 2013 data inserted REPLACED with 2014 data 09/02/2014 | F56: P. Orr

Sheet 4 day view
D1: 10 | E1: 11 | F1: 12 | G1: 13 | H1: 14 | I1: 15 | J1: 16 | K1: 17 | L1: 18 | M1: 19 | N1: 20 | O1: 21 | P1: 22 | Q1: 23 | R1: 24 | S1: 25
A2: =MATCH(B3,Tides!D11:D1420,0) -> 321 | B2: 9 | C2: 10 | D2: =$A$2+D1 -> 331 | E2: 332 | F2: 333 | G2: 334 | H2: 335 | I2: 336 | J2: 337 | K2: 338 | L2: 339 | M2: 340 | N2: 341 | O2: 342 | P2: 343 | Q2: 344 | R2: 345 | S2: 346
A3: 5 | B3: =TODAY()+ C3 - (DATEVALUE("01/01/2022")-DATEVALUE("01/01/2021")) -> 2021-03-25 | C3: =DATEVALUE("01/01/2022")-DATEVALUE("01/01/2021") -> 1904-12-31 | D3: =INDIRECT("'Tides'!"&ADDRESS(D$2,$A3)) -> 2021-03-25 | E3: Thu | H3: 2021-03-26 | I3: Fri | L3: 2021-03-27 | M3: Sat | P3: 2021-03-28 | Q3: Sun
A4: 3 | D4: 2021-03-25T01:33:00 | E4: 2021-03-25T07:53:00 | F4: 2021-03-25T14:05:00 | G4: 2021-03-25T20:23:00 | H4: 2021-03-26T02:21:00 | I4: 2021-03-26T08:37:00 | J4: 2021-03-26T14:47:00 | K4: 2021-03-26T21:03:00 | L4: 2021-03-27T03:01:00 | M4: 2021-03-27T09:16:00 | N4: 2021-03-27T15:27:00 | O4: 2021-03-27T21:41:00 | P4: 2021-03-28T03:39:00 | Q4: 2021-03-28T09:54:00 | R4: 2021-03-28T16:05:00 | S4: 2021-03-28T22:19:00
A5: 13 | B5: =IF(Instructions!C2="BST","All Times Local","All Times UTC") -> All Times Local | C5: =INDIRECT("'Tides'!"&ADDRESS(C$2,$A5)) -> State | D5: LW | E5: HW | F5: LW | G5: HW | H5: LW | I5: HW | J5: LW | K5: HW | L5: LW | M5: HW | N5: LW | O5: HW | P5: LW | Q5: HW | R5: LW | S5: HW
A6: 11 | B6: =INDIRECT("'Tides'!"&ADDRESS(B$2,$A6)) -> HOLYHEAD | C6: Time | D6: 42818.06458 | E6: 42818.32847 | F6: 42818.58681 | G6: 42818.84931 | H6: 42819.09792 | I6: 42819.35903 | J6: 42819.61597 | K6: 42819.87708 | L6: 42820.12569 | M6: 42820.38611 | N6: 42820.64375 | O6: 42820.90347 | P6: 42821.19375 | Q6: 42821.45417 | R6: 42821.71181 | S6: 42821.97153
A7: 12 | B7: =INDIRECT("'Tides 2010'!"&ADDRESS(B$2,$A7)) ->  | C7: Ht | D7: 2.03 | E7: 4.75 | F7: 1.57 | G7: 4.86 | H7: 1.61 | I7: 5.14 | J7: 1.11 | K7: 5.2 | L7: 1.19 | M7: 5.49 | N7: 0.7 | O7: 5.49 | P7: 0.81 | Q7: 5.79 | R7: 0.38 | S7: 5.7
A8: 19 | B8: =INDIRECT("'Tides'!"&ADDRESS(B$2,$A8)) -> Beaumaris | C8: Time | D8: 42818.09479 | E8: 42818.33869 | F8: 42818.61825 | G8: 42818.86039 | H8: 42819.12998 | I8: 42819.37052 | J8: 42819.64904 | K8: 42819.88932 | L8: 42820.1593 | M8: 42820.39873 | N8: 42820.67836 | O8: 42820.91681 | P8: 42821.22882 | Q8: 42821.46788 | R8: 42821.74788 | S8: 42821.98597
A9: 20 | B9: =INDIRECT("'Tides 2010'!"&ADDRESS(B$2,$A9)) ->  | C9: Ht | D9: 2.512977099 | E9: 6.36173913 | F9: 1.916030534 | G9: 6.514782609 | H9: 1.967938931 | I9: 6.904347826 | J9: 1.319083969 | K9: 6.987826087 | L9: 1.422900763 | M9: 7.391304348 | N9: 0.7870229008 | O9: 7.391304348 | P9: 0.9297709924 | Q9: 7.808695652 | R9: 0.3717557252 | S9: 7.683478261
A10: 21 | B10: =INDIRECT("'Tides'!"&ADDRESS(B$2,$A10)) -> SLACK | C10: Time | D10: 42818.16076 | E10: 42818.40466 | F10: 42818.68422 | G10: 42818.92636 | H10: 42819.19595 | I10: 42819.43649 | J10: 42819.71501 | K10: 42819.9553 | L10: 42820.22527 | M10: 42820.4647 | N10: 42820.74433 | O10: 42820.98278 | P10: 42821.29479 | Q10: 42821.53385 | R10: 42821.81385 | S10: 42822.05194
A11: 22 | B11: =INDIRECT("'Tides'!"&ADDRESS(B$2,$A11)) -> Menai Bridge | C11: Time | D11: 42818.08151 | E11: 42818.33978 | F11: 42818.60219 | G11: 42818.86177 | H11: 42819.11253 | I11: 42819.37203 | J11: 42819.62933 | K11: 42819.89109 | L11: 42820.13838 | M11: 42820.40062 | N11: 42820.65518 | O11: 42820.91894 | P11: 42821.2046 | Q11: 42821.47014 | R11: 42821.7214 | S11: 42821.98846
A12: 23 | B12: =INDIRECT("'Tides 2010'!"&ADDRESS(B$2,$A12)) ->  | C12: Ht | D12: 2.31221374 | E12: 6.139130435 | F12: 1.750381679 | G12: 6.282608696 | H12: 1.799236641 | I12: 6.647826087 | J12: 1.188549618 | K12: 6.726086957 | L12: 1.286259542 | M12: 7.104347826 | N12: 0.6877862595 | O12: 7.104347826 | P12: 0.8221374046 | Q12: 7.495652174 | R12: 0.2969465649 | S12: 7.37826087
A13: 24 | B13: =INDIRECT("'Tides'!"&ADDRESS(B$2,$A13)) -> Swellies SLACK | C13: Time | D13: =INDIRECT("'Tides'!"&ADDRESS(D$2,$A13)) -> 42818.02292 | E13: 42818.28681 | F13: 42818.54514 | G13: 42818.80764 | H13: 42819.05625 | I13: 42819.31736 | J13: 42819.57431 | K13: 42819.83542 | L13: 42820.08403 | M13: 42820.34444 | N13: 42820.60208 | O13: 42820.86181 | P13: 42821.15208 | Q13: 42821.4125 | R13: 42821.67014 | S13: 42821.92986
A14: 25 | B14: =INDIRECT("'Tides'!"&ADDRESS(B$2,$A14)) -> P'dinorwic | C14: Time | D14: 42818.07344 | E14: 42818.31329 | F14: 42818.59751 | G14: 42818.8347 | H14: 42819.10955 | I14: 42819.3447 | J14: 42819.62911 | K14: 42819.86325 | L14: 42820.13964 | M14: 42820.37253 | N14: 42820.6592 | O14: 42820.89037 | P14: 42821.2099 | Q14: 42821.44132 | R14: 42821.72946 | S14: 42821.95916
A15: 26 | B15: =INDIRECT("'Tides 2010'!"&ADDRESS(B$2,$A15)) ->  | C15: Ht | D15: 2.009160305 | E15: 4.671304348 | F15: 1.58778626 | G15: 4.786086957 | H15: 1.624427481 | I15: 5.07826087 | J15: 1.166412214 | K15: 5.140869565 | L15: 1.239694656 | M15: 5.443478261 | N15: 0.7908396947 | O15: 5.443478261 | P15: 0.8916030534 | Q15: 5.756521739 | R15: 0.4977099237 | S15: 5.662608696
A16: 27 | B16: =INDIRECT("'Tides'!"&ADDRESS(B$2,$A16)) -> P.D. SLACK | C16: Time | D16: 42818.04531 | E16: 42818.30287 | F16: 42818.56568 | G16: 42818.82429 | H16: 42819.07587 | I16: 42819.33428 | J16: 42819.59242 | K16: 42819.85284 | L16: 42820.10133 | M16: 42820.36211 | N16: 42820.61788 | O16: 42820.87996 | P16: 42821.16719 | Q16: 42821.4309 | R16: 42821.68374 | S16: 42821.94875
A17: 28 | B17: =INDIRECT("'Tides'!"&ADDRESS(B$2,$A17)) -> Caern'fon | C17: Time | D17: 42818.06701 | E17: 42818.30764 | F17: 42818.59047 | G17: 42818.82847 | H17: 42819.1022 | I17: 42819.33819 | J17: 42819.62126 | K17: 42819.85625 | L17: 42820.13152 | M17: 42820.36528 | N17: 42820.65058 | O17: 42820.88264 | P17: 42821.20104 | Q17: 42821.43333 | R17: 42821.7201 | S17: 42821.95069
A18: 29 | B18: =INDIRECT("'Tides 2010'!"&ADDRESS(B$2,$A18)) ->  | C18: Ht | D18: 1.909923664 | E18: 4.271304348 | F18: 1.453435115 | G18: 4.386086957 | H18: 1.493129771 | I18: 4.67826087 | J18: 0.9969465649 | K18: 4.740869565 | L18: 1.076335878 | M18: 5.043478261 | N18: 0.5900763359 | O18: 5.043478261 | P18: 0.6992366412 | Q18: 5.356521739 | R18: 0.272519084 | S18: 5.262608696
A19: 30 | B19: =INDIRECT("'Tides'!"&ADDRESS(B$2,$A19)) -> Victoria Dock Gt | C19: Gate | D19: =INDIRECT("'Tides'!"&ADDRESS(D$2,$A19)) -> Cls | E19: Opn | F19: Cls | G19: Opn | H19: Cls | I19: Opn | J19: Cls | K19: Opn | L19: Cls | M19: Opn | N19: Cls | O19: Opn | P19: Cls | Q19: Opn | R19: Cls | S19: Opn
A20: 31 | B20: =INDIRECT("'Tides 2010'!"&ADDRESS(B$2,$A20)) ->  | C20: =INDIRECT("'Tides'!"&ADDRESS(C$2,$A20)) -> Time | D20: 42817.90833 | E20: 42818.19306 | F20: 42818.42222 | G20: 42818.71389 | H20: 42818.94306 | I20: 42819.22361 | J20: 42819.45278 | K20: 42819.74167 | L20: 42819.97083 | M20: 42820.25069 | N20: 42820.47986 | O20: 42820.76806 | P20: 42820.99722 | Q20: 42821.31875 | R20: 42821.54792 | S20: 42821.83611
A21: 32 | B21: =INDIRECT("'Tides'!"&ADDRESS(B$2,$A21)) -> Ft Belan | C21: Time | D21: 42818.05521 | E21: 42818.31261 | F21: 42818.5762 | G21: 42818.83199 | H21: 42819.08669 | I21: 42819.34104 | J21: 42819.60374 | K21: 42819.85784 | L21: 42820.11292 | M21: 42820.36624 | N21: 42820.62998 | O21: 42820.8824 | P21: 42821.17951 | Q21: 42821.43247 | R21: 42821.69657 | S21: 42821.94862
A22: 33 | B22: =INDIRECT("'Tides 2010'!"&ADDRESS(B$2,$A22)) ->  | C22: Ht | D22: 1.809160305 | E22: 3.748695652 | F22: 1.38778626 | G22: 3.853913043 | H22: 1.424427481 | I22: 4.12173913 | J22: 0.9664122137 | K22: 4.179130435 | L22: 1.039694656 | M22: 4.456521739 | N22: 0.5908396947 | O22: 4.456521739 | P22: 0.6916030534 | Q22: 4.743478261 | R22: 0.2977099237 | S22: 4.657391304
A23: 34 | B23: =INDIRECT("'Tides'!"&ADDRESS(B$2,$A23)) -> Llanddwyn | C23: Time | D23: 42818.04774 | E23: 42818.28592 | F23: 42818.56935 | G23: 42818.80559 | H23: 42819.08015 | I23: 42819.31478 | J23: 42819.5977 | K23: 42819.83183 | L23: 42820.10716 | M23: 42820.34035 | N23: 42820.62471 | O23: 42820.85675 | P23: 42821.17448 | Q23: 42821.40694 | R23: 42821.69203 | S23: 42821.92334
A24: 35 | B24: =INDIRECT("'Tides 2010'!"&ADDRESS(B$2,$A24)) ->  | C24: Ht | D24: 1.909160305 | E24: 4.126086957 | F24: 1.48778626 | G24: 4.22173913 | H24: 1.524427481 | I24: 4.465217391 | J24: 1.066412214 | K24: 4.517391304 | L24: 1.139694656 | M24: 4.769565217 | N24: 0.6908396947 | O24: 4.769565217 | P24: 0.7916030534 | Q24: 5.030434783 | R24: 0.3977099237 | S24: 4.952173913
A25: 36 | B25: =INDIRECT("'Tides'!"&ADDRESS(B$2,$A25)) -> Trwyn Dimnor | C25: Time | D25: 42818.09332 | E25: 42818.34107 | F25: 42818.61646 | G25: 42818.86248 | H25: 42819.12804 | I25: 42819.37247 | J25: 42819.64685 | K25: 42819.89103 | L25: 42820.15697 | M25: 42820.40031 | N25: 42820.67578 | O25: 42820.91815 | P25: 42821.22613 | Q25: 42821.4691 | R25: 42821.74494 | S25: 42821.98694
A26: 37 | B26: =INDIRECT("'Tides 2010'!"&ADDRESS(B$2,$A26)) ->  | C26: Ht | D26: 2.51221374 | E26: 6.26173913 | F26: 1.950381679 | G26: 6.414782609 | H26: 1.999236641 | I26: 6.804347826 | J26: 1.388549618 | K26: 6.887826087 | L26: 1.486259542 | M26: 7.291304348 | N26: 0.8877862595 | O26: 7.291304348 | P26: 1.022137405 | Q26: 7.708695652 | R26: 0.4969465649 | S26: 7.583478261
A27: 38 | B27: =INDIRECT("'Tides'!"&ADDRESS(B$2,$A27)) -> Moelfre | C27: Time | D27: 42818.09332 | E27: 42818.34345 | F27: 42818.61646 | G27: 42818.86457 | H27: 42819.12804 | I27: 42819.37443 | J27: 42819.64685 | K27: 42819.89274 | L27: 42820.15697 | M27: 42820.40189 | N27: 42820.67578 | O27: 42820.91949 | P27: 42821.22613 | Q27: 42821.47031 | R27: 42821.74494 | S27: 42821.98791
A28: 39 | B28: =INDIRECT("'Tides 2010'!"&ADDRESS(B$2,$A28)) ->  | C28: Ht | D28: 2.51221374 | E28: 6.184347826 | F28: 1.950381679 | G28: 6.346956522 | H28: 1.999236641 | I28: 6.760869565 | J28: 1.388549618 | K28: 6.849565217 | L28: 1.486259542 | M28: 7.27826087 | N28: 0.8877862595 | O28: 7.27826087 | P28: 1.022137405 | Q28: 7.72173913 | R28: 0.4969465649 | S28: 7.588695652
A29: 40 | B29: =INDIRECT("'Tides'!"&ADDRESS(B$2,$A29)) -> Amlwch | C29: Time | D29: 42818.0849 | E29: 42818.3376 | F29: 42818.60774 | G29: 42818.85901 | H29: 42819.11916 | I29: 42819.369 | J29: 42819.63771 | K29: 42819.88756 | L29: 42820.1477 | M29: 42820.39684 | N29: 42820.66626 | O29: 42820.91468 | P29: 42821.21649 | Q29: 42821.46562 | R29: 42821.73505 | S29: 42821.98347
A30: 41 | B30: =INDIRECT("'Tides 2010'!"&ADDRESS(B$2,$A30)) ->  | C30: Ht | D30: 2.51221374 | E30: 6.039130435 | F30: 1.950381679 | G30: 6.182608696 | H30: 1.999236641 | I30: 6.547826087 | J30: 1.388549618 | K30: 6.626086957 | L30: 1.486259542 | M30: 7.004347826 | N30: 0.8877862595 | O30: 7.004347826 | P30: 1.022137405 | Q30: 7.395652174 | R30: 0.4969465649 | S30: 7.27826087
A31: 42 | B31: =INDIRECT("'Tides'!"&ADDRESS(B$2,$A31)) -> Cemaes | C31: Time | D31: 42818.09036 | E31: 42818.34474 | F31: 42818.6129 | G31: 42818.86529 | H31: 42819.12416 | I31: 42819.37487 | J31: 42819.64247 | K31: 42819.89268 | L31: 42820.15232 | M31: 42820.40158 | N31: 42820.67063 | O31: 42820.9187 | P31: 42821.22075 | Q31: 42821.46927 | R31: 42821.73905 | S31: 42821.98639
A32: 43 | B32: =INDIRECT("'Tides 2010'!"&ADDRESS(B$2,$A32)) ->  | C32: Ht | D32: 2.311450382 | E32: 5.439130435 | F32: 1.784732824 | G32: 5.582608696 | H32: 1.830534351 | I32: 5.947826087 | J32: 1.258015267 | K32: 6.026086957 | L32: 1.349618321 | M32: 6.404347826 | N32: 0.7885496183 | O32: 6.404347826 | P32: 0.9145038168 | Q32: 6.795652174 | R32: 0.4221374046 | S32: 6.67826087
A33: 44 | B33: =INDIRECT("'Tides'!"&ADDRESS(B$2,$A33)) -> Skrries SLACK | C33: Time | D33: 42818.05417 | E33: 42818.31806 | F33: 42818.57639 | G33: 42818.83889 | H33: 42819.0875 | I33: 42819.34861 | J33: 42819.60556 | K33: 42819.86667 | L33: 42820.11528 | M33: 42820.37569 | N33: 42820.63333 | O33: 42820.89306 | P33: 42821.18333 | Q33: 42821.44375 | R33: 42821.70139 | S33: 42821.96111
A34: 45 | B34: =INDIRECT("'Tides'!"&ADDRESS(B$2,$A34)) -> Sth.Stck SLACK | C34: Time | D34: 42818.07847 | E34: 42818.33889 | F34: 42818.60069 | G34: 42818.85972 | H34: 42819.11181 | I34: 42819.36944 | J34: 42819.62986 | K34: 42819.8875 | L34: 42820.13958 | M34: 42820.39653 | N34: 42820.65764 | O34: 42820.91389 | P34: 42821.20764 | Q34: 42821.46458 | R34: 42821.72569 | S34: 42821.98194
A35: 46 | B35: =INDIRECT("'Tides'!"&ADDRESS(B$2,$A35)) -> Tr'ddr Bay | C35: Time | D35: 42818.05417 | E35: 42818.30675 | F35: 42818.57639 | G35: 42818.82643 | H35: 42819.0875 | I35: 42819.33561 | J35: 42819.60556 | K35: 42819.85266 | L35: 42820.11528 | M35: 42820.36119 | N35: 42820.63333 | O35: 42820.87758 | P35: 42821.18333 | Q35: 42821.42778 | R35: 42821.70139 | S35: =INDIRECT("'Tides'!"&ADDRESS(S$2,$A35)) -> 42821.94417
A36: 47 | B36: =INDIRECT("'Tides 2010'!"&ADDRESS(B$2,$A36)) ->  | C36: Ht | D36: 2.009160305 | E36: 4.271304348 | F36: 1.58778626 | G36: 4.386086957 | H36: 1.624427481 | I36: 4.67826087 | J36: 1.166412214 | K36: 4.740869565 | L36: 1.239694656 | M36: 5.043478261 | N36: 0.7908396947 | O36: 5.043478261 | P36: 0.8916030534 | Q36: 5.356521739 | R36: 0.4977099237 | S36: 5.262608696
A37: 48 | B37: =INDIRECT("'Tides'!"&ADDRESS(B$2,$A37)) -> Porth T'castell | C37: Time | D37: 42818.05712 | E37: 42818.30675 | F37: 42818.57996 | G37: 42818.82643 | H37: 42819.09138 | I37: 42819.33561 | J37: 42819.60993 | K37: 42819.85266 | L37: 42820.11993 | M37: 42820.36119 | N37: 42820.63848 | O37: 42820.87758 | P37: 42821.18872 | Q37: 42821.42778 | R37: 42821.70727 | S37: 42821.94417
A38: 49 | B38: =INDIRECT("'Tides 2010'!"&ADDRESS(B$2,$A38)) ->  | C38: Ht | D38: 2.009923664 | E38: 4.071304348 | F38: 1.553435115 | G38: 4.186086957 | H38: 1.593129771 | I38: 4.47826087 | J38: 1.096946565 | K38: 4.540869565 | L38: 1.176335878 | M38: 4.843478261 | N38: 0.6900763359 | O38: 4.843478261 | P38: 0.7992366412 | Q38: 5.156521739 | R38: 0.372519084 | S38: 5.062608696
A39: 50 | B39: =INDIRECT("'Tides'!"&ADDRESS(B$2,$A39)) -> Trefor | C39: Time | D39: 42818.04774 | E39: 42818.28354 | F39: 42818.56935 | G39: 42818.8035 | H39: 42819.08015 | I39: 42819.31282 | J39: 42819.5977 | K39: 42819.83012 | L39: 42820.10716 | M39: 42820.33877 | N39: 42820.62471 | O39: 42820.85541 | P39: 42821.17448 | Q39: 42821.40573 | R39: 42821.69203 | S39: 42821.92237
A40: 51 | B40: =INDIRECT("'Tides 2010'!"&ADDRESS(B$2,$A40)) ->  | C40: Ht | D40: 1.809160305 | E40: 3.793913043 | F40: 1.38778626 | G40: 3.91826087 | H40: 1.424427481 | I40: 4.234782609 | J40: 0.9664122137 | K40: 4.302608696 | L40: 1.039694656 | M40: 4.630434783 | N40: 0.5908396947 | O40: 4.630434783 | P40: 0.6916030534 | Q40: 4.969565217 | R40: 0.2977099237 | S40: 4.867826087
A41: 52 | B41: =INDIRECT("'Tides'!"&ADDRESS(B$2,$A41)) -> Porth Dinllaen | C41: Time | D41: 42818.04427 | E41: 42818.28006 | F41: 42818.56588 | G41: 42818.80003 | H41: 42819.07668 | I41: 42819.30935 | J41: 42819.59423 | K41: 42819.82665 | L41: 42820.10368 | M41: 42820.3353 | N41: 42820.62124 | O41: 42820.85194 | P41: 42821.17101 | Q41: 42821.40226 | R41: 42821.68856 | S41: 42821.91889
A42: 53 | B42: =INDIRECT("'Tides 2010'!"&ADDRESS(B$2,$A42)) ->  | C42: Ht | D42: 1.809923664 | E42: 3.671304348 | F42: 1.353435115 | G42: 3.786086957 | H42: 1.393129771 | I42: 4.07826087 | J42: 0.8969465649 | K42: 4.140869565 | L42: 0.9763358779 | M42: 4.443478261 | N42: 0.4900763359 | O42: 4.443478261 | P42: 0.5992366412 | Q42: 4.756521739 | R42: 0.172519084 | S42: 4.662608696
A43: 54 | B43: =INDIRECT("'Tides'!"&ADDRESS(B$2,$A43)) -> Port Ysgaden | C43: Time | D43: 42818.0388 | E43: 42818.27659 | F43: 42818.56072 | G43: 42818.79656 | H43: 42819.07167 | I43: 42819.30587 | J43: 42819.58948 | K43: 42819.82318 | L43: 42820.09906 | M43: 42820.33183 | N43: 42820.61687 | O43: 42820.84847 | P43: 42821.16675 | Q43: 42821.39878 | R43: 42821.68456 | S43: 42821.91542
A44: 55 | B44: =INDIRECT("'Tides 2010'!"&ADDRESS(B$2,$A44)) ->  | C44: Ht | D44: 1.909923664 | E44: 3.648695652 | F44: 1.453435115 | G44: 3.753913043 | H44: 1.493129771 | I44: 4.02173913 | J44: 0.9969465649 | K44: 4.079130435 | L44: 1.076335878 | M44: 4.356521739 | N44: 0.5900763359 | O44: 4.356521739 | P44: 0.6992366412 | Q44: 4.643478261 | R44: 0.272519084 | S44: 4.557391304
A45: 56 | B45: =INDIRECT("'Tides'!"&ADDRESS(B$2,$A45)) -> Bardsey Is | C45: Time | D45: 42817.99366 | E45: 42818.22172 | F45: 42818.51558 | G45: 42818.74371 | H45: 42819.02653 | I45: 42819.25397 | J45: 42819.54434 | K45: 42819.77303 | L45: 42820.05393 | M45: 42820.28256 | N45: 42820.57173 | O45: 42820.80089 | P45: 42821.12161 | Q45: 42821.35208 | R45: 42821.63942 | S45: 42821.87041
A46: 57 | B46: =INDIRECT("'Tides 2010'!"&ADDRESS(B$2,$A46)) ->  | C46: Ht | D46: 1.506870229 | E46: 3.471304348 | F46: 1.190839695 | G46: 3.586086957 | H46: 1.218320611 | I46: 3.87826087 | J46: 0.8748091603 | K46: 3.940869565 | L46: 0.9297709924 | M46: 4.243478261 | N46: 0.593129771 | O46: 4.243478261 | P46: 0.6687022901 | Q46: 4.556521739 | R46: 0.3732824427 | S46: 4.462608696
A47: 58 | B47: =INDIRECT("'Tides'!"&ADDRESS(B$2,$A47)) -> Sound SLACK | C47: Time | D47: 42818.08889 | E47: 42818.31806 | F47: 42818.61111 | G47: 42818.83889 | H47: 42819.12222 | I47: 42819.34861 | J47: 42819.64028 | K47: 42819.86667 | L47: 42820.15 | M47: 42820.37569 | N47: 42820.66806 | O47: 42820.89306 | P47: 42821.21806 | Q47: 42821.44375 | R47: 42821.73611 | S47: 42821.96111
A48: 3
A49: 60 | B49: =INDIRECT("'Tides'!"&ADDRESS(B$2,$A49)) -> L'pool (approx) | C49: Time | D49: 42818.10625 | E49: 42818.37014 | F49: 42818.62847 | G49: 42818.89097 | H49: 42819.13958 | I49: 42819.40069 | J49: 42819.65764 | K49: 42819.91875 | L49: 42820.16736 | M49: 42820.42778 | N49: 42820.68542 | O49: 42820.94514 | P49: 42821.23542 | Q49: 42821.49583 | R49: =INDIRECT("'Tides'!"&ADDRESS(R$2,$A49)) -> 42821.75347 | S49: =INDIRECT("'Tides'!"&ADDRESS(S$2,$A49)) -> 42822.01319
A50: 61 | B50: Dover (approx) | C50: Time | D50: 42818.09583 | E50: 42818.35972 | F50: 42818.61806 | G50: 42818.88056 | H50: 42819.12917 | I50: 42819.39028 | J50: 42819.64722 | K50: 42819.90833 | L50: 42820.15694 | M50: 42820.41736 | N50: 42820.675 | O50: 42820.93472 | P50: 42821.225 | Q50: 42821.48542 | R50: =INDIRECT("'Tides'!"&ADDRESS(R$2,$A50)) -> 42821.74306 | S50: =INDIRECT("'Tides'!"&ADDRESS(S$2,$A50)) -> 42822.00278

Sheet Tides
A1: Time | B1: Adjustment to apply | C1: Raw HOLYHEAD DateTime | G1: MHWS | K1: 5.64 | S1: 7.6 | V1: 7.3 | Y1: 5.6 | AB1: 5.2 | AF1: 4.6 | AH1: 4.9 | AJ1: 7.5 | AL1: 7.5 | AN1: 7.2 | AP1: 6.6 | AT1: 5.2 | AV1: 5 | AX1: 4.8 | AZ1: 4.6 | BB1: 4.5 | BD1: 4.4
G2: MHWN | K2: 4.49 | S2: 6 | V2: 5.8 | Y2: 4.4 | AB2: 4 | AF2: 3.5 | AH2: 3.9 | AJ2: 5.9 | AL2: 5.8 | AN2: 5.7 | AP2: 5.1 | AT2: 4 | AV2: 3.8 | AX2: 3.5 | AZ2: 3.4 | BB2: 3.4 | BD2: 3.2
A3: BST Offset | G3: MLWN | K3: 2.02 | S3: 2.5 | V3: 2.3 | Y3: 2 | AB3: 1.9 | AF3: 1.8 | AH3: 1.9 | AJ3: 2.5 | AL3: 2.5 | AN3: 2.5 | AP3: 2.3 | AT3: 2 | AV3: 2 | AX3: 1.8 | AZ3: 1.8 | BB3: 1.9 | BD3: 1.5
G4: MLWS | K4: 0.71 | S4: 0.8 | V4: 0.7 | Y4: 0.8 | AB4: 0.6 | AF4: 0.6 | AH4: 0.7 | AJ4: 0.9 | AL4: 0.9 | AN4: 0.9 | AP4: 0.8 | AT4: 0.8 | AV4: 0.7 | AX4: 0.6 | AZ4: 0.5 | BB4: 0.6 | BD4: 0.6
G5: T Diff HW Sp | K5: @ | L5: 00:00:00 | M5: 12:00:00 | S5: 00:25:00 | U5: 02:00:00 | V5: 00:30:00 | X5: -0.04166666667 | Y5: -0.01041666667 | AA5: -0.02083333333 | AB5: -0.02083333333 | AF5: -0.02777777778 | AH5: -0.05208333333 | AJ5: 00:25:00 | AL5: 00:25:00 | AN5: 00:20:00 | AP5: 00:20:00 | AR5: -0.01041666667 | AS5: 00:15:00 | AT5: -0.03125 | AV5: -0.03125 | AX5: -0.05208333333 | AZ5: -0.05555555556 | BB5: -0.05902777778 | BD5: -0.09722222222 | BF5: -0.01041666667 | BH5: 01:00:00 | BI5: 00:45:00
G6: T Diff HW Np | K6: @ | L6: 06:00:00 | M6: 18:00:00 | S6: 00:10:00 | U6: 01:45:00 | V6: 00:10:00 | X6: -0.04166666667 | Y6: -0.01736111111 | AA6: -0.02777777778 | AB6: -0.02083333333 | AF6: -0.01041666667 | AH6: -0.03819444444 | AJ6: 00:15:00 | AL6: 00:20:00 | AN6: 00:10:00 | AP6: 00:25:00 | AR6: -0.01041666667 | AS6: 00:15:00 | AT6: -0.01736111111 | AV6: -0.01736111111 | AX6: -0.04166666667 | AZ6: -0.04513888889 | BB6: -0.04861111111 | BD6: -0.1111111111 | BF6: -0.01041666667 | BH6: 01:00:00 | BI6: 00:45:00
G7: T Diff LW Sp | K7: @ | L7: 05:00:00 | M7: 17:00:00 | S7: 00:55:00 | U7: 02:30:00 | V7: 00:10:00 | X7: -0.04166666667 | Y7: 00:30:00 | AA7: -0.03125 | AB7: 00:15:00 | AD7: +/- HW | AF7: -0.01736111111 | AH7: -0.02083333333 | AJ7: 00:50:00 | AL7: 00:50:00 | AN7: 00:35:00 | AP7: 00:40:00 | AR7: -0.01041666667 | AS7: 00:20:00 | AT7: -0.01041666667 | AV7: -0.003472222222 | AX7: -0.02083333333 | AZ7: -0.02430555556 | BB7: -0.02777777778 | BD7: -0.07291666667 | BF7: 00:35:00 | BH7: 01:00:00 | BI7: 00:45:00
G8: T Diff LW Np | K8: @ | L8: 11:00:00 | M8: 23:00:00 | S8: 00:35:00 | U8: 02:10:00 | V8: 00:35:00 | X8: -0.04166666667 | Y8: 00:00:00 | AA8: -0.01041666667 | AB8: -0.003472222222 | AD8: 02:45:00 | AF8: -0.003472222222 | AH8: -0.01388888889 | AJ8: 00:35:00 | AL8: 00:35:00 | AN8: 00:25:00 | AP8: 00:35:00 | AR8: -0.01041666667 | AS8: 00:20:00 | AT8: -0.01041666667 | AV8: -0.01041666667 | AX8: -0.01388888889 | AZ8: -0.01736111111 | BB8: -0.02430555556 | BD8: -0.06944444444 | BF8: 00:35:00 | BH8: 01:00:00 | BI8: 00:45:00
G9: Place | K9: HOLYHEAD | S9: Beaumaris | U9: SLACK | V9: Menai Bridge | X9: Swellies SLACK | Y9: P'dinorwic | AA9: P.D. SLACK | AB9: Caern'fon | AD9: Victoria Dock Gt | AF9: Ft Belan | AH9: Llanddwyn | AJ9: Trwyn Dimnor | AL9: Moelfre | AN9: Amlwch | AP9: Cemaes | AR9: Skrries SLACK | AS9: Sth.Stck SLACK | AT9: Tr'ddr Bay | AV9: Porth T'castell | AX9: Trefor | AZ9: Porth Dinllaen | BB9: Port Ysgaden | BD9: Bardsey Is | BF9: Sound SLACK | BH9: L'pool (approx) | BI9: Dover (approx)
K10: =$A$1 -> Time | L10: Ht | M10: State | N10: %SpHt | O10: Time | P10: SpTm | Q10: NpTm | R10: %SpTm | S10: Time | T10: Ht | U10: Time | V10: Time | W10: Ht | X10: Time | Y10: Time | Z10: Ht | AA10: Time | AB10: Time | AC10: Ht | AD10: Gate | AE10: Time | AF10: Time | AG10: Ht | AH10: Time | AI10: Ht | AJ10: Time | AK10: Ht | AL10: Time | AM10: Ht | AN10: Time | AO10: Ht | AP10: Time | AQ10: Ht | AR10: Time | AS10: Time | AT10: Time | AU10: Ht | AV10: Time | AW10: Ht | AX10: Time | AY10: Ht | AZ10: Time | BA10: Ht | BB10: Time | BC10: Ht | BD10: Time | BE10: Ht | BF10: Time | BH10: Time | BI10: Time
A11: 0 | B11: =IF(Instructions!$C$2="BST",A11,0) -> 0 | C11: 2021-01-01T05:21:00 | D11: =DATE(YEAR(K11),MONTH(K11),DAY(K11)) -> 2021-01-01 | E11: =IF(D11=D10,IF(J10="","",J10),D11) -> 2021-01-01 | F11: =MONTH(K11) -> 1 | G11: =IF(H11="","",TEXT(F11*29,"mmm")) -> Jan | H11: =IF(I11=I10,"",DAY(K11)) -> 1 | I11: =WEEKDAY(K11,2) -> 5 | J11: =IF(I11=I10,"",TEXT(I11+2,"ddd")) -> Fri | K11: =C11+B11/24 -> 42735.22292 | L11: 1.32 | M11: LW | N11: =IF(M11="HW",(L11-K$2)/(K$1-K$2),(L11-K$3)/(K$4-K$3)) -> 0.534351145 | O11: =C11-INT(C11) -> 05:21:00 | P11: =IF(M11="HW",IF(AND(O11>=L$5,O11<L$6),L$5,IF(AND(O11>=L$6,O11<M$5),M$5,IF(AND(O11>=M$5,O11<M$6),M$5,IF(O11>=M$6,L$5+1,L$5)))),IF(AND(O11>=L$7,O11<L$8),L$7,IF(AND(O11>=L$8,O11<M$7),M$7,IF(AND(O11>=M$7,O11<M$8),M$7,IF(O11>=M$8,L$7+1,L$7))))) -> 05:00:00 | Q11: =IF(M11="HW",IF(AND(O11>=L$5,O11<L$6),L$6,IF(AND(O11>=L$6,O11<M$5),L$6,IF(AND(O11>=M$5,O11<M$6),M$6,IF(O11>=M$6,M$6,M$6-1)))),IF(AND(O11>=L$7,O11<L$8),L$8,IF(AND(O11>=L$8,O11<M$7),L$8,IF(AND(O11>=M$7,O11<M$8),M$8,IF(O11>=M$8,M$8,M$8-1))))) -> 11:00:00 | R11: =ABS((O11-Q11)/(P11-Q11)) -> 0.9416666667 | S11: =IF($M11="HW",$K11+S$6+(S$5-S$6)*$R11,$K11+S$8+(S$7-S$8)*$R11) -> 42735.2603 | T11: =IF($M11="HW",S$2+(S$1-S$2)*$N11,S$3+(S$4-S$3)*$N11) -> 1.591603053 | U11: 42735.32627 | V11: 42735.23087 | W11: =IF($M11="HW",V$2+(V$1-V$2)*$N11,V$3+(V$4-V$3)*$N11) -> 1.445038168 | X11: =IF($M11="HW",$K11+X$6+(X$5-X$6)*$R11,$K11+X$8+(X$7-X$8)*$R11) -> 42735.18125 | Y11: 42735.24253 | Z11: =IF($M11="HW",Y$2+(Y$1-Y$2)*$N11,Y$3+(Y$4-Y$3)*$N11) -> 1.358778626 | AA11: =IF($M11="HW",$K11+AA$6+(AA$5-AA$6)*$R11,$K11+AA$8+(AA$7-AA$8)*$R11) -> 42735.19288 | AB11: =IF($M11="HW",$K11+AB$6+(AB$5-AB$6)*$R11,$K11+AB$8+(AB$7-AB$8)*$R11) -> 42735.23252 | AC11: =IF($M11="HW",AB$2+(AB$1-AB$2)*$N11,AB$3+(AB$4-AB$3)*$N11) -> 1.205343511 | AD11: =IF($M11="HW","Opn","Cls") -> Cls | AE11: =IF($M11="HW",$AB11-AD$8,IF($AB10="HW",$AB11+AD$8,"?")) -> ? | AF11: =IF($M11="HW",$K11+AF$6+(AF$5-AF$6)*$R11,$K11+AF$8+(AF$7-AF$8)*$R11) -> 42735.20637 | AG11: =IF($M11="HW",AF$2+(AF$1-AF$2)*$N11,AF$3+(AF$4-AF$3)*$N11) -> 1.158778626 | AH11: =IF($M11="HW",$K11+AH$6+(AH$5-AH$6)*$R11,$K11+AH$8+(AH$7-AH$8)*$R11) -> 42735.20249 | AI11: =IF($M11="HW",AH$2+(AH$1-AH$2)*$N11,AH$3+(AH$4-AH$3)*$N11) -> 1.258778626 | AJ11: =IF($M11="HW",$K11+AJ$6+(AJ$5-AJ$6)*$R11,$K11+AJ$8+(AJ$7-AJ$8)*$R11) -> 42735.25703 | AK11: =IF($M11="HW",AJ$2+(AJ$1-AJ$2)*$N11,AJ$3+(AJ$4-AJ$3)*$N11) -> 1.645038168 | AL11: =IF($M11="HW",$K11+AL$6+(AL$5-AL$6)*$R11,$K11+AL$8+(AL$7-AL$8)*$R11) -> 42735.25703 | AM11: =IF($M11="HW",AL$2+(AL$1-AL$2)*$N11,AL$3+(AL$4-AL$3)*$N11) -> 1.645038168 | AN11: =IF($M11="HW",$K11+AN$6+(AN$5-AN$6)*$R11,$K11+AN$8+(AN$7-AN$8)*$R11) -> 42735.24682 | AO11: =IF($M11="HW",AN$2+(AN$1-AN$2)*$N11,AN$3+(AN$4-AN$3)*$N11) -> 1.645038168 | AP11: =IF($M11="HW",$K11+AP$6+(AP$5-AP$6)*$R11,$K11+AP$8+(AP$7-AP$8)*$R11) -> 42735.25049 | AQ11: =IF($M11="HW",AP$2+(AP$1-AP$2)*$N11,AP$3+(AP$4-AP$3)*$N11) -> 1.498473282 | AR11: =IF($M11="HW",$K11+AR$6+(AR$5-AR$6)*$R11,$K11+AR$8+(AR$7-AR$8)*$R11) -> 42735.2125 | AS11: 42735.23681 | AT11: =IF($M11="HW",$K11+AT$6+(AT$5-AT$6)*$R11,$K11+AT$8+(AT$7-AT$8)*$R11) -> 42735.2125 | AU11: =IF($M11="HW",AT$2+(AT$1-AT$2)*$N11,AT$3+(AT$4-AT$3)*$N11) -> 1.358778626 | AV11: =IF($M11="HW",$K11+AV$6+(AV$5-AV$6)*$R11,$K11+AV$8+(AV$7-AV$8)*$R11) -> 42735.21904 | AW11: =IF($M11="HW",AV$2+(AV$1-AV$2)*$N11,AV$3+(AV$4-AV$3)*$N11) -> 1.305343511 | AX11: =IF($M11="HW",$K11+AX$6+(AX$5-AX$6)*$R11,$K11+AX$8+(AX$7-AX$8)*$R11) -> 42735.20249 | AY11: =IF($M11="HW",AX$2+(AX$1-AX$2)*$N11,AX$3+(AX$4-AX$3)*$N11) -> 1.158778626 | AZ11: =IF($M11="HW",$K11+AZ$6+(AZ$5-AZ$6)*$R11,$K11+AZ$8+(AZ$7-AZ$8)*$R11) -> 42735.19902 | BA11: =IF($M11="HW",AZ$2+(AZ$1-AZ$2)*$N11,AZ$3+(AZ$4-AZ$3)*$N11) -> 1.105343511 | BB11: =IF($M11="HW",$K11+BB$6+(BB$5-BB$6)*$R11,$K11+BB$8+(BB$7-BB$8)*$R11) -> 42735.19534 | BC11: =IF($M11="HW",BB$2+(BB$1-BB$2)*$N11,BB$3+(BB$4-BB$3)*$N11) -> 1.205343511 | BD11: =IF($M11="HW",$K11+BD$6+(BD$5-BD$6)*$R11,$K11+BD$8+(BD$7-BD$8)*$R11) -> 42735.1502 | BE11: =IF($M11="HW",BD$2+(BD$1-BD$2)*$N11,BD$3+(BD$4-BD$3)*$N11) -> 1.019083969 | BF11: =IF($M11="HW",$K11+BF$6+(BF$5-BF$6)*$R11,$K11+BF$8+(BF$7-BF$8)*$R11) -> 42735.24722 | BH11: 42735.26458 | BI11: 42735.25417
A12: 0 | B12: =IF(Instructions!$C$2="BST",A12,0) -> 0 | C12: 2021-01-01T11:38:00 | D12: =DATE(YEAR(K12),MONTH(K12),DAY(K12)) -> 2021-01-01 | E12: =IF(D12=D11,IF(J11="","",J11),D12) -> Fri | F12: =MONTH(K12) -> 1 | G12: =IF(H12="","",TEXT(F12*29,"mmm")) ->  | H12: =IF(I12=I11,"",DAY(K12)) ->  | I12: 5 | J12: =IF(I12=I11,"",TEXT(I12+2,"ddd")) ->  | K12: =C12+B12/24 -> 42735.48472 | L12: 5.58 | M12: HW | N12: 0.947826087 | O12: =C12-INT(C12) -> 11:38:00 | P12: 12:00:00 | Q12: 06:00:00 | R12: =ABS((O12-Q12)/(P12-Q12)) -> 0.9388888889 | S12: 42735.50145 | T12: 7.516521739 | U12: 42735.56742 | V12: 42735.50471 | W12: 7.22173913 | X12: 42735.44306 | Y12: 42735.47388 | Z12: =IF($M12="HW",Y$2+(Y$1-Y$2)*$N12,Y$3+(Y$4-Y$3)*$N12) -> 5.537391304 | AA12: 42735.46346 | AB12: 42735.46389 | AC12: =IF($M12="HW",AB$2+(AB$1-AB$2)*$N12,AB$3+(AB$4-AB$3)*$N12) -> 5.137391304 | AD12: Opn | AE12: =IF($M12="HW",$AB12-AD$8,$AB11+AD$8) -> 42735.34931 | AF12: 42735.45801 | AG12: =IF($M12="HW",AF$2+(AF$1-AF$2)*$N12,AF$3+(AF$4-AF$3)*$N12) -> 4.542608696 | AH12: 42735.43349 | AI12: =IF($M12="HW",AH$2+(AH$1-AH$2)*$N12,AH$3+(AH$4-AH$3)*$N12) -> 4.847826087 | AJ12: 42735.50166 | AK12: =IF($M12="HW",AJ$2+(AJ$1-AJ$2)*$N12,AJ$3+(AJ$4-AJ$3)*$N12) -> 7.416521739 | AL12: 42735.50187 | AM12: =IF($M12="HW",AL$2+(AL$1-AL$2)*$N12,AL$3+(AL$4-AL$3)*$N12) -> 7.411304348 | AN12: 42735.49819 | AO12: =IF($M12="HW",AN$2+(AN$1-AN$2)*$N12,AN$3+(AN$4-AN$3)*$N12) -> 7.12173913 | AP12: 42735.49882 | AQ12: =IF($M12="HW",AP$2+(AP$1-AP$2)*$N12,AP$3+(AP$4-AP$3)*$N12) -> 6.52173913 | AR12: 42735.47431 | AS12: 42735.49514 | AT12: 42735.45432 | AU12: =IF($M12="HW",AT$2+(AT$1-AT$2)*$N12,AT$3+(AT$4-AT$3)*$N12) -> 5.137391304 | AV12: 42735.45432 | AW12: =IF($M12="HW",AV$2+(AV$1-AV$2)*$N12,AV$3+(AV$4-AV$3)*$N12) -> 4.937391304 | AX12: 42735.43328 | AY12: =IF($M12="HW",AX$2+(AX$1-AX$2)*$N12,AX$3+(AX$4-AX$3)*$N12) -> 4.732173913 | AZ12: 42735.4298 | BA12: =IF($M12="HW",AZ$2+(AZ$1-AZ$2)*$N12,AZ$3+(AZ$4-AZ$3)*$N12) -> 4.537391304 | BB12: 42735.42633 | BC12: =IF($M12="HW",BB$2+(BB$1-BB$2)*$N12,BB$3+(BB$4-BB$3)*$N12) -> 4.442608696 | BD12: 42735.38665 | BE12: =IF($M12="HW",BD$2+(BD$1-BD$2)*$N12,BD$3+(BD$4-BD$3)*$N12) -> 4.337391304 | BF12: 42735.47431 | BH12: 42735.52639 | BI12: 42735.51597
A13: 0 | B13: =IF(Instructions!$C$2="BST",A13,0) -> 0 | C13: 2021-01-01T17:50:00 | D13: 2021-01-01 | E13: =IF(D13=D12,IF(J12="","",J12),D13) ->  | F13: 1 | I13: 5 | K13: 42735.74306 | L13: 1.18 | M13: LW | N13: 0.641221374 | O13: 17:50:00 | P13: 17:00:00 | Q13: 23:00:00 | R13: 0.8611111111 | S13: 42735.77932 | T13: 1.409923664 | U13: 42735.84529 | V13: 42735.75241 | W13: 1.274045802 | X13: 42735.70139 | Y13: 42735.761 | Z13: 1.230534351 | AA13: 42735.7147 | AB13: 42735.75154 | AC13: 1.066412214 | AD13: Cls | AE13: 42735.57847 | AF13: 42735.72762 | AG13: 1.030534351 | AH13: 42735.72319 | AI13: 1.130534351 | AJ13: 42735.77633 | AK13: 1.474045802 | AL13: 42735.77633 | AM13: 1.474045802 | AN13: 42735.7664 | AO13: 1.474045802 | AP13: 42735.77035 | AQ13: 1.338167939 | AR13: 42735.73264 | AS13: 42735.75694 | AT13: 42735.73264 | AU13: 1.230534351 | AV13: 42735.73862 | AW13: 1.166412214 | AX13: 42735.72319 | AY13: 1.030534351 | AZ13: 42735.71971 | BA13: 0.9664122137 | BB13: 42735.71576 | BC13: 1.066412214 | BD13: 42735.67062 | BE13: 0.9229007634 | BF13: 42735.76736 | BH13: 42735.78472 | BI13: 42735.77431
A14: 0 | B14: =IF(Instructions!$C$2="BST",A14,0) -> 0 | C14: 2021-01-02T00:02:00 | D14: 2021-01-02 | E14: 2021-01-02 | F14: 1 | G14: Jan | H14: 2 | I14: 6 | J14: =IF(I14=I13,"",TEXT(I14+2,"ddd")) -> Sat | K14: 42736.00139 | L14: 5.32 | M14: HW | N14: 0.7217391304 | O14: 00:02:00 | P14: 00:00:00 | Q14: 06:00:00 | R14: 0.9944444445 | S14: 42736.01869 | T14: 7.154782609 | U14: 42736.08466 | V14: 42736.02215 | W14: 6.882608696 | X14: 42735.95972 | Y14: 42735.99093 | Z14: =IF($M14="HW",Y$2+(Y$1-Y$2)*$N14,Y$3+(Y$4-Y$3)*$N14) -> 5.266086957 | AA14: 42735.98052 | AB14: 42735.98056 | AC14: =IF($M14="HW",AB$2+(AB$1-AB$2)*$N14,AB$3+(AB$4-AB$3)*$N14) -> 4.866086957 | AD14: Opn | AE14: 42735.86597 | AF14: 42735.97371 | AG14: =IF($M14="HW",AF$2+(AF$1-AF$2)*$N14,AF$3+(AF$4-AF$3)*$N14) -> 4.293913043 | AH14: 42735.94938 | AI14: =IF($M14="HW",AH$2+(AH$1-AH$2)*$N14,AH$3+(AH$4-AH$3)*$N14) -> 4.62173913 | AJ14: 42736.01871 | AK14: =IF($M14="HW",AJ$2+(AJ$1-AJ$2)*$N14,AJ$3+(AJ$4-AJ$3)*$N14) -> 7.054782609 | AL14: 42736.01873 | AM14: =IF($M14="HW",AL$2+(AL$1-AL$2)*$N14,AL$3+(AL$4-AL$3)*$N14) -> 7.026956522 | AN14: 42736.01524 | AO14: =IF($M14="HW",AN$2+(AN$1-AN$2)*$N14,AN$3+(AN$4-AN$3)*$N14) -> 6.782608696 | AP14: 42736.0153 | AQ14: =IF($M14="HW",AP$2+(AP$1-AP$2)*$N14,AP$3+(AP$4-AP$3)*$N14) -> 6.182608696 | AR14: 42735.99097 | AS14: 42736.01181 | AT14: 42735.97022 | AU14: =IF($M14="HW",AT$2+(AT$1-AT$2)*$N14,AT$3+(AT$4-AT$3)*$N14) -> 4.866086957 | AV14: 42735.97022 | AW14: =IF($M14="HW",AV$2+(AV$1-AV$2)*$N14,AV$3+(AV$4-AV$3)*$N14) -> 4.666086957 | AX14: 42735.94936 | AY14: =IF($M14="HW",AX$2+(AX$1-AX$2)*$N14,AX$3+(AX$4-AX$3)*$N14) -> 4.43826087 | AZ14: 42735.94589 | BA14: =IF($M14="HW",AZ$2+(AZ$1-AZ$2)*$N14,AZ$3+(AZ$4-AZ$3)*$N14) -> 4.266086957 | BB14: 42735.94242 | BC14: =IF($M14="HW",BB$2+(BB$1-BB$2)*$N14,BB$3+(BB$4-BB$3)*$N14) -> 4.193913043 | BD14: 42735.90409 | BE14: =IF($M14="HW",BD$2+(BD$1-BD$2)*$N14,BD$3+(BD$4-BD$3)*$N14) -> 4.066086957 | BF14: 42735.99097 | BH14: 42736.04306 | BI14: 42736.03264
A15: 0 | B15: =IF(Instructions!$C$2="BST",A15,0) -> 0 | C15: 2021-01-02T06:00:00 | D15: 2021-01-02 | E15: Sat | F15: 1 | I15: 6 | K15: 42736.25 | L15: 1.35 | M15: LW | N15: 0.5114503817 | O15: 06:00:00 | P15: 05:00:00 | Q15: 11:00:00 | R15: 0.8333333333 | S15: 42736.28588 | T15: 1.630534351 | U15: 42736.35185 | V15: 42736.25984 | W15: 1.481679389 | X15: 42736.20833 | Y15: 42736.26736 | Z15: 1.386259542 | AA15: 42736.22222 | AB15: 42736.2581 | AC15: 1.235114504 | AD15: Cls | AE15: 42736.09514 | AF15: 42736.23495 | AG15: 1.186259542 | AH15: 42736.23032 | AI15: 1.286259542 | AJ15: 42736.28299 | AK15: 1.681679389 | AL15: 42736.28299 | AM15: 1.681679389 | AN15: 42736.27315 | AO15: 1.681679389 | AP15: 42736.2772 | AQ15: 1.532824427 | AR15: 42736.23958 | AS15: 42736.26389 | AT15: 42736.23958 | AU15: 1.386259542 | AV15: 42736.24537 | AW15: 1.335114504 | AX15: 42736.23032 | AY15: 1.186259542 | AZ15: 42736.22685 | BA15: 1.135114504 | BB15: 42736.2228 | BC15: 1.235114504 | BD15: 42736.17766 | BE15: 1.039694656 | BF15: 42736.27431 | BH15: 42736.29167 | BI15: 42736.28125
A16: 0 | B16: =IF(Instructions!$C$2="BST",A16,0) -> 0 | C16: 2021-01-02T12:16:00 | D16: 2021-01-02 | F16: 1 | I16: 6 | K16: 42736.51111 | L16: 5.57 | M16: HW | N16: 0.9391304348 | O16: 12:16:00 | P16: 12:00:00 | Q16: 18:00:00 | R16: 0.9555555556 | S16: 42736.52801 | T16: 7.502608696 | U16: 42736.59398 | V16: 42736.53133 | W16: 7.208695652 | X16: 42736.46944 | Y16: 42736.50039 | Z16: 5.526956522 | AA16: 42736.48997 | AB16: 42736.49028 | AC16: 5.126956522 | AD16: Opn | AE16: 42736.37569 | AF16: 42736.4841 | AG16: 4.533043478 | AH16: 42736.45965 | AI16: 4.839130435 | AJ16: 42736.52816 | AK16: 7.402608696 | AL16: 42736.52832 | AM16: 7.396521739 | AN16: 42736.52469 | AO16: 7.108695652 | AP16: 42736.52515 | AQ16: 6.508695652 | AR16: 42736.50069 | AS16: 42736.52153 | AT16: 42736.48048 | AU16: 5.126956522 | AV16: 42736.48048 | AW16: 4.926956522 | AX16: 42736.45949 | AY16: 4.720869565 | AZ16: 42736.45602 | BA16: 4.526956522 | BB16: 42736.45255 | BC16: 4.433043478 | BD16: 42736.41327 | BE16: 4.326956522 | BF16: 42736.50069 | BH16: 42736.55278 | BI16: 42736.54236
A17: 0 | B17: =IF(Instructions!$C$2="BST",A17,0) -> 0 | C17: 2021-01-02T18:31:00 | D17: 2021-01-02 | F17: 1 | I17: 6 | K17: 42736.77153 | L17: 1.17 | M17: LW | N17: 0.6488549618 | O17: 18:31:00 | P17: 17:00:00 | Q17: 23:00:00 | R17: 0.7472222222 | S17: 42736.80621 | T17: 1.396946565 | U17: 42736.87218 | V17: 42736.78286 | W17: 1.261832061 | X17: 42736.72986 | Y17: 42736.78709 | Z17: 1.221374046 | AA17: 42736.74554 | AB17: 42736.77843 | AC17: 1.05648855 | AD17: Cls | AE17: 42736.60486 | AF17: 42736.75768 | AG17: 1.021374046 | AH17: 42736.75245 | AI17: 1.121374046 | AJ17: 42736.80362 | AK17: 1.461832061 | AL17: 42736.80362 | AM17: 1.461832061 | AN17: 42736.79408 | AO17: 1.461832061 | AP17: 42736.79843 | AQ17: 1.326717557 | AR17: 42736.76111 | AS17: 42736.78542 | AT17: 42736.76111 | AU17: 1.221374046 | AV17: 42736.7663 | AW17: 1.15648855 | AX17: 42736.75245 | AY17: 1.021374046 | AZ17: 42736.74898 | BA17: 0.9564885496 | BB17: 42736.74463 | BC17: 1.05648855 | BD17: 42736.69949 | BE17: 0.9160305344 | BF17: 42736.79583 | BH17: 42736.81319 | BI17: 42736.80278
A18: 0 | B18: =IF(Instructions!$C$2="BST",A18,0) -> 0 | C18: 2021-01-03T00:43:00 | D18: 2021-01-03 | E18: 2021-01-03 | F18: 1 | G18: Jan | H18: 3 | I18: 7 | J18: Sun | K18: 42737.02986 | L18: 5.24 | M18: HW | N18: 0.652173913 | O18: 00:43:00 | P18: 00:00:00 | Q18: 06:00:00 | R18: 0.8805555555 | S18: 42737.04598 | T18: 7.043478261 | U18: 42737.11195 | V18: 42737.04904 | W18: 6.77826087 | X18: 42736.98819 | Y18: 42737.01861 | Z18: =IF($M18="HW",Y$2+(Y$1-Y$2)*$N18,Y$3+(Y$4-Y$3)*$N18) -> 5.182608696 | AA18: 42737.0082 | AB18: 42737.00903 | AC18: =IF($M18="HW",AB$2+(AB$1-AB$2)*$N18,AB$3+(AB$4-AB$3)*$N18) -> 4.782608696 | AD18: Opn | AE18: 42736.89444 | AF18: 42737.00416 | AG18: =IF($M18="HW",AF$2+(AF$1-AF$2)*$N18,AF$3+(AF$4-AF$3)*$N18) -> 4.217391304 | AH18: 42736.97944 | AI18: =IF($M18="HW",AH$2+(AH$1-AH$2)*$N18,AH$3+(AH$4-AH$3)*$N18) -> 4.552173913 | AJ18: 42737.04639 | AK18: =IF($M18="HW",AJ$2+(AJ$1-AJ$2)*$N18,AJ$3+(AJ$4-AJ$3)*$N18) -> 6.943478261 | AL18: 42737.04681 | AM18: =IF($M18="HW",AL$2+(AL$1-AL$2)*$N18,AL$3+(AL$4-AL$3)*$N18) -> 6.908695652 | AN18: 42737.04292 | AO18: =IF($M18="HW",AN$2+(AN$1-AN$2)*$N18,AN$3+(AN$4-AN$3)*$N18) -> 6.67826087 | AP18: 42737.04416 | AQ18: =IF($M18="HW",AP$2+(AP$1-AP$2)*$N18,AP$3+(AP$4-AP$3)*$N18) -> 6.07826087 | AR18: 42737.01944 | AS18: 42737.04028 | AT18: 42737.00027 | AU18: =IF($M18="HW",AT$2+(AT$1-AT$2)*$N18,AT$3+(AT$4-AT$3)*$N18) -> 4.782608696 | AV18: 42737.00027 | AW18: =IF($M18="HW",AV$2+(AV$1-AV$2)*$N18,AV$3+(AV$4-AV$3)*$N18) -> 4.582608696 | AX18: 42736.97902 | AY18: =IF($M18="HW",AX$2+(AX$1-AX$2)*$N18,AX$3+(AX$4-AX$3)*$N18) -> 4.347826087 | AZ18: 42736.97555 | BA18: =IF($M18="HW",AZ$2+(AZ$1-AZ$2)*$N18,AZ$3+(AZ$4-AZ$3)*$N18) -> 4.182608696 | BB18: 42736.97208 | BC18: =IF($M18="HW",BB$2+(BB$1-BB$2)*$N18,BB$3+(BB$4-BB$3)*$N18) -> 4.117391304 | BD18: 42736.93098 | BE18: =IF($M18="HW",BD$2+(BD$1-BD$2)*$N18,BD$3+(BD$4-BD$3)*$N18) -> 3.982608696 | BF18: 42737.01944 | BH18: 42737.07153 | BI18: 42737.06111
A19: 0 | B19: =IF(Instructions!$C$2="BST",A19,0) -> 0 | C19: 2021-01-03T06:41:00 | D19: 2021-01-03 | E19: Sun | F19: 1 | I19: 7 | K19: 42737.27847 | L19: 1.41 | M19: LW | N19: 0.465648855 | O19: 06:41:00 | P19: 05:00:00 | Q19: 11:00:00 | R19: 0.7194444445 | S19: 42737.31277 | T19: 1.708396947 | U19: 42737.37874 | V19: 42737.29029 | W19: 1.554961832 | X19: 42737.23681 | Y19: 42737.29346 | Z19: 1.441221374 | AA19: 42737.25307 | AB19: 42737.28499 | AC19: 1.294656489 | AD19: Cls | AE19: 42737.12361 | AF19: 42737.26501 | AG19: 1.241221374 | AH19: 42737.25959 | AI19: 1.341221374 | AJ19: 42737.31027 | AK19: 1.754961832 | AL19: 42737.31027 | AM19: 1.754961832 | AN19: 42737.30083 | AO19: 1.754961832 | AP19: 42737.30528 | AQ19: 1.601526718 | AR19: 42737.26806 | AS19: 42737.29236 | AT19: 42737.26806 | AU19: 1.441221374 | AV19: 42737.27305 | AW19: 1.394656489 | AX19: 42737.25959 | AY19: 1.241221374 | AZ19: 42737.25611 | BA19: 1.194656489 | BB19: 42737.25167 | BC19: 1.294656489 | BD19: 42737.20653 | BE19: 1.080916031 | BF19: 42737.30278 | BH19: 42737.32014 | BI19: 42737.30972
A20: 0 | B20: =IF(Instructions!$C$2="BST",A20,0) -> 0 | C20: 2021-01-03T12:56:00 | D20: 2021-01-03 | F20: 1 | I20: 7 | K20: 42737.53889 | L20: 5.51 | M20: HW | N20: 0.8869565217 | O20: 12:56:00 | P20: 12:00:00 | Q20: 18:00:00 | R20: 0.8444444444 | S20: 42737.55463 | T20: 7.419130435 | U20: 42737.6206 | V20: 42737.55756 | W20: 7.130434783 | X20: 42737.49722 | Y20: 42737.52739 | Z20: 5.464347826 | AA20: 42737.51698 | AB20: 42737.51806 | AC20: 5.064347826 | AD20: Opn | AE20: 42737.40347 | AF20: 42737.51381 | AG20: 4.475652174 | AH20: 42737.48897 | AI20: 4.786956522 | AJ20: 42737.55517 | AK20: 7.319130435 | AL20: 42737.55571 | AM20: 7.307826087 | AN20: 42737.5517 | AO20: 7.030434783 | AP20: 42737.55332 | AQ20: 6.430434783 | AR20: 42737.52847 | AS20: 42737.54931 | AT20: 42737.5098 | AU20: 5.064347826 | AV20: 42737.5098 | AW20: 4.864347826 | AX20: 42737.48843 | AY20: 4.653043478 | AZ20: 42737.48495 | BA20: 4.464347826 | BB20: 42737.48148 | BC20: 4.375652174 | BD20: 42737.43951 | BE20: 4.264347826 | BF20: 42737.52847 | BH20: 42737.58056 | BI20: 42737.57014
A21: 0 | B21: =IF(Instructions!$C$2="BST",A21,0) -> 0 | C21: 2021-01-03T19:15:00 | D21: 2021-01-03 | F21: 1 | I21: 7 | K21: 42737.80208 | L21: 1.2 | M21: LW | N21: 0.6259541985 | O21: 19:15:00 | P21: 17:00:00 | Q21: 23:00:00 | R21: 0.625 | S21: 42737.83507 | T21: 1.435877863 | U21: 42737.90104 | V21: 42737.81554 | W21: 1.298473282 | X21: 42737.76042 | Y21: 42737.8151 | Z21: 1.248854962 | AA21: 42737.77865 | AB21: 42737.80729 | AC21: 1.086259542 | AD21: Cls | AE21: 42737.63264 | AF21: 42737.78993 | AG21: 1.048854962 | AH21: 42737.78385 | AI21: 1.148854962 | AJ21: 42737.8329 | AK21: 1.498473282 | AL21: 42737.8329 | AM21: 1.498473282 | AN21: 42737.82378 | AO21: 1.498473282 | AP21: 42737.82856 | AQ21: 1.361068702 | AR21: 42737.79167 | AS21: 42737.81597 | AT21: 42737.79167 | AU21: 1.248854962 | AV21: 42737.79601 | AW21: 1.186259542 | AX21: 42737.78385 | AY21: 1.048854962 | AZ21: 42737.78038 | BA21: 0.986259542 | BB21: 42737.77561 | BC21: 1.086259542 | BD21: 42737.73047 | BE21: 0.9366412214 | BF21: 42737.82639 | BH21: 42737.84375 | BI21: 42737.83333
A22: 0 | B22: =IF(Instructions!$C$2="BST",A22,0) -> 0 | C22: 2021-01-04T01:28:00 | D22: 2021-01-04 | E22: 2021-01-04 | F22: 1 | G22: Jan | H22: 4 | I22: 1 | J22: Mon | K22: 42738.06111 | L22: 5.14 | M22: HW | N22: 0.5652173913 | O22: 01:28:00 | P22: 00:00:00 | Q22: 06:00:00 | R22: 0.7555555555 | S22: 42738.07593 | T22: 6.904347826 | U22: 42738.1419 | V22: 42738.07855 | W22: 6.647826087 | X22: 42738.01944 | Y22: 42738.049 | Z22: 5.07826087 | AA22: 42738.03858 | AB22: 42738.04028 | AC22: 4.67826087 | AD22: Opn | AE22: 42737.92569 | AF22: 42738.03758 | AG22: 4.12173913 | AH22: 42738.01242 | AI22: 4.465217391 | AJ22: 42738.07677 | AK22: 6.804347826 | AL22: 42738.07762 | AM22: 6.760869565 | AN22: 42738.0733 | AO22: 6.547826087 | AP22: 42738.07585 | AQ22: 5.947826087 | AR22: 42738.05069 | AS22: 42738.07153 | AT22: 42738.03326 | AU22: 4.67826087 | AV22: 42738.03326 | AW22: 4.47826087 | AX22: 42738.01157 | AY22: 4.234782609 | AZ22: 42738.0081 | BA22: 4.07826087 | BB22: 42738.00463 | BC22: 4.02173913 | BD22: 42737.96049 | BE22: 3.87826087 | BF22: 42738.05069 | BH22: 42738.10278 | BI22: 42738.09236
A23: 0 | B23: =IF(Instructions!$C$2="BST",A23,0) -> 0 | C23: 2021-01-04T07:26:00 | D23: 2021-01-04 | E23: Mon | F23: 1 | I23: 1 | K23: 42738.30972 | L23: 1.5 | M23: LW | N23: 0.3969465649 | O23: 07:26:00 | P23: 05:00:00 | Q23: 11:00:00 | R23: 0.5944444445 | S23: 42738.34228 | T23: 1.82519084 | U23: 42738.40826 | V23: 42738.32371 | W23: 1.664885496 | X23: 42738.26806 | Y23: 42738.32211 | Z23: 1.523664122 | AA23: 42738.28692 | AB23: 42738.31451 | AC23: 1.383969466 | AD23: Cls | AE23: 42738.15486 | AF23: 42738.29799 | AG23: 1.323664122 | AH23: 42738.29171 | AI23: 1.423664122 | AJ23: 42738.34022 | AK23: 1.864885496 | AL23: 42738.34022 | AM23: 1.864885496 | AN23: 42738.33121 | AO23: 1.864885496 | AP23: 42738.33609 | AQ23: 1.704580153 | AR23: 42738.29931 | AS23: 42738.32361 | AT23: 42738.29931 | AU23: 1.523664122 | AV23: 42738.30343 | AW23: 1.483969466 | AX23: 42738.29171 | AY23: 1.323664122 | AZ23: 42738.28823 | BA23: 1.283969466 | BB23: 42738.28335 | BC23: 1.383969466 | BD23: 42738.23821 | BE23: 1.142748092 | BF23: 42738.33403 | BH23: 42738.35139 | BI23: 42738.34097
A24: 0 | B24: =IF(Instructions!$C$2="BST",A24,0) -> 0 | C24: 2021-01-04T13:41:00 | D24: 2021-01-04 | F24: 1 | I24: 1 | K24: 42738.57014 | L24: 5.42 | M24: HW | N24: 0.8086956522 | O24: 13:41:00 | P24: 12:00:00 | Q24: 18:00:00 | R24: 0.7194444444 | S24: 42738.58458 | T24: 7.293913043 | U24: 42738.65055 | V24: 42738.58708 | W24: 7.013043478 | X24: 42738.52847 | Y24: 42738.55777 | Z24: 5.370434783 | AA24: 42738.54736 | AB24: 42738.54931 | AC24: 4.970434783 | AD24: Opn | AE24: 42738.43472 | AF24: 42738.54723 | AG24: 4.389565217 | AH24: 42738.52195 | AI24: 4.708695652 | AJ24: 42738.58555 | AK24: 7.193913043 | AL24: 42738.58653 | AM24: 7.174782609 | AN24: 42738.58208 | AO24: 6.913043478 | AP24: 42738.585 | AQ24: 6.313043478 | AR24: 42738.55972 | AS24: 42738.58056 | AT24: 42738.54279 | AU24: 4.970434783 | AV24: 42738.54279 | AW24: 4.770434783 | AX24: 42738.52098 | AY24: 4.551304348 | AZ24: 42738.51751 | BA24: 4.370434783 | BB24: 42738.51403 | BC24: 4.289565217 | BD24: 42738.46902 | BE24: 4.170434783 | BF24: 42738.55972 | BH24: 42738.61181 | BI24: 42738.60139
A25: 0 | B25: =IF(Instructions!$C$2="BST",A25,0) -> 0 | C25: 2021-01-04T20:04:00 | D25: 2021-01-04 | F25: 1 | I25: 1 | K25: 42738.83611 | L25: 1.27 | M25: LW | N25: 0.572519084 | O25: 20:04:00 | P25: 17:00:00 | Q25: 23:00:00 | R25: 0.4888888889 | S25: 42738.86721 | T25: 1.526717557 | U25: 42738.93318 | V25: 42738.85193 | W25: 1.383969466 | X25: 42738.79444 | Y25: 42738.8463 | Z25: 1.312977099 | AA25: 42738.81551 | AB25: 42738.83943 | AC25: 1.155725191 | AD25: Cls | AE25: 42738.66389 | AF25: 42738.82585 | AG25: 1.112977099 | AH25: 42738.81883 | AI25: 1.212977099 | AJ25: 42738.86551 | AK25: 1.583969466 | AL25: 42738.86551 | AM25: 1.583969466 | AN25: 42738.85687 | AO25: 1.583969466 | AP25: 42738.86211 | AQ25: 1.441221374 | AR25: 42738.82569 | AS25: 42738.85 | AT25: 42738.82569 | AU25: 1.312977099 | AV25: 42738.82909 | AW25: 1.255725191 | AX25: 42738.81883 | AY25: 1.112977099 | AZ25: 42738.81535 | BA25: 1.055725191 | BB25: 42738.81011 | BC25: 1.155725191 | BD25: 42738.76497 | BE25: 0.9847328244 | BF25: 42738.86042 | BH25: 42738.87778 | BI25: 42738.86736
A26: 0 | B26: =IF(Instructions!$C$2="BST",A26,0) -> 0 | C26: 2021-01-05T02:18:00 | D26: 2021-01-05 | E26: 2021-01-05 | F26: 1 | G26: Jan | H26: 5 | I26: 2 | J26: Tue | K26: 42739.09583 | L26: 5.01 | M26: HW | N26: 0.452173913 | O26: 02:18:00 | P26: 00:00:00 | Q26: 06:00:00 | R26: 0.6166666667 | S26: 42739.1092 | T26: 6.723478261 | U26: 42739.17517 | V26: 42739.11134 | W26: 6.47826087 | X26: 42739.05417 | Y26: 42739.08275 | Z26: =IF($M26="HW",Y$2+(Y$1-Y$2)*$N26,Y$3+(Y$4-Y$3)*$N26) -> 4.942608696 | AA26: 42739.07234 | AB26: 42739.075 | AC26: =IF($M26="HW",AB$2+(AB$1-AB$2)*$N26,AB$3+(AB$4-AB$3)*$N26) -> 4.542608696 | AD26: Opn | AE26: 42738.96042 | AF26: 42739.07471 | AG26: =IF($M26="HW",AF$2+(AF$1-AF$2)*$N26,AF$3+(AF$4-AF$3)*$N26) -> 3.997391304 | AH26: 42739.04907 | AI26: =IF($M26="HW",AH$2+(AH$1-AH$2)*$N26,AH$3+(AH$4-AH$3)*$N26) -> 4.352173913 | AJ26: 42739.11053 | AK26: =IF($M26="HW",AJ$2+(AJ$1-AJ$2)*$N26,AJ$3+(AJ$4-AJ$3)*$N26) -> 6.623478261 | AL26: 42739.11186 | AM26: =IF($M26="HW",AL$2+(AL$1-AL$2)*$N26,AL$3+(AL$4-AL$3)*$N26) -> 6.568695652 | AN26: 42739.10706 | AO26: =IF($M26="HW",AN$2+(AN$1-AN$2)*$N26,AN$3+(AN$4-AN$3)*$N26) -> 6.37826087 | AP26: 42739.11105 | AQ26: =IF($M26="HW",AP$2+(AP$1-AP$2)*$N26,AP$3+(AP$4-AP$3)*$N26) -> 5.77826087 | AR26: 42739.08542 | AS26: 42739.10625 | AT26: 42739.06991 | AU26: =IF($M26="HW",AT$2+(AT$1-AT$2)*$N26,AT$3+(AT$4-AT$3)*$N26) -> 4.542608696 | AV26: 42739.06991 | AW26: =IF($M26="HW",AV$2+(AV$1-AV$2)*$N26,AV$3+(AV$4-AV$3)*$N26) -> 4.342608696 | AX26: 42739.04774 | AY26: =IF($M26="HW",AX$2+(AX$1-AX$2)*$N26,AX$3+(AX$4-AX$3)*$N26) -> 4.087826087 | AZ26: 42739.04427 | BA26: =IF($M26="HW",AZ$2+(AZ$1-AZ$2)*$N26,AZ$3+(AZ$4-AZ$3)*$N26) -> 3.942608696 | BB26: 42739.0408 | BC26: =IF($M26="HW",BB$2+(BB$1-BB$2)*$N26,BB$3+(BB$4-BB$3)*$N26) -> 3.897391304 | BD26: 42738.99329 | BE26: =IF($M26="HW",BD$2+(BD$1-BD$2)*$N26,BD$3+(BD$4-BD$3)*$N26) -> 3.742608696 | BF26: 42739.08542 | BH26: 42739.1375 | BI26: 42739.12708
A27: 0 | B27: =IF(Instructions!$C$2="BST",A27,0) -> 0 | C27: 2021-01-05T08:16:00 | D27: 2021-01-05 | E27: Tue | F27: 1 | I27: 2 | K27: 42739.34444 | L27: 1.62 | M27: LW | N27: 0.3053435115 | O27: 08:16:00 | P27: 05:00:00 | Q27: 11:00:00 | R27: 0.4555555555 | S27: 42739.37508 | T27: 1.980916031 | U27: 42739.44105 | V27: 42739.36084 | W27: 1.811450382 | X27: 42739.30278 | Y27: 42739.35394 | Z27: 1.633587786 | AA27: 42739.32454 | AB27: 42739.3473 | AC27: 1.503053435 | AD27: Cls | AE27: 42739.18958 | AF27: 42739.33465 | AG27: 1.433587786 | AH27: 42739.32739 | AI27: 1.533587786 | AJ27: 42739.3735 | AK27: 2.011450382 | AL27: 42739.3735 | AM27: 2.011450382 | AN27: 42739.36497 | AO27: 2.011450382 | AP27: 42739.37033 | AQ27: 1.841984733 | AR27: 42739.33403 | AS27: 42739.35833 | AT27: 42739.33403 | AU27: 1.633587786 | AV27: 42739.33719 | AW27: 1.603053435 | AX27: 42739.32739 | AY27: 1.433587786 | AZ27: 42739.32392 | BA27: 1.403053435 | BB27: 42739.31856 | BC27: 1.503053435 | BD27: 42739.27342 | BE27: 1.22519084 | BF27: 42739.36875 | BH27: 42739.38611 | BI27: 42739.37569
A28: 0 | B28: =IF(Instructions!$C$2="BST",A28,0) -> 0 | C28: 2021-01-05T14:32:00 | D28: 2021-01-05 | F28: 1 | I28: 2 | K28: 42739.60556 | L28: 5.3 | M28: HW | N28: 0.7043478261 | O28: 14:32:00 | P28: 12:00:00 | Q28: 18:00:00 | R28: 0.5777777778 | S28: =IF($M28="HW",$K28+S$6+(S$5-S$6)*$R28,$K28+S$8+(S$7-S$8)*$R28) -> 42739.61852 | T28: 7.126956522 | U28: 42739.68449 | V28: 42739.62052 | W28: 6.856521739 | X28: =IF($M28="HW",$K28+X$6+(X$5-X$6)*$R28,$K28+X$8+(X$7-X$8)*$R28) -> 42739.56389 | Y28: 42739.59221 | Z28: 5.245217391 | AA28: 42739.58179 | AB28: 42739.58472 | AC28: 4.845217391 | AD28: Opn | AE28: 42739.47014 | AF28: 42739.58511 | AG28: 4.274782609 | AH28: 42739.55934 | AI28: 4.604347826 | AJ28: 42739.61998 | AK28: 7.026956522 | AL28: 42739.62145 | AM28: 6.997391304 | AN28: 42739.61651 | AO28: 6.756521739 | AP28: 42739.62091 | AQ28: 6.156521739 | AR28: =IF($M28="HW",$K28+AR$6+(AR$5-AR$6)*$R28,$K28+AR$8+(AR$7-AR$8)*$R28) -> 42739.59514 | AS28: 42739.61597 | AT28: 42739.58017 | AU28: 4.845217391 | AV28: 42739.58017 | AW28: 4.645217391 | AX28: 42739.55787 | AY28: 4.415652174 | AZ28: 42739.5544 | BA28: 4.245217391 | BB28: 42739.55093 | BC28: 4.174782609 | BD28: 42739.50247 | BE28: 4.045217391 | BF28: =IF($M28="HW",$K28+BF$6+(BF$5-BF$6)*$R28,$K28+BF$8+(BF$7-BF$8)*$R28) -> 42739.59514 | BH28: 42739.64722 | BI28: 42739.63681
A29: 0 | B29: =IF(Instructions!$C$2="BST",A29,0) -> 0 | C29: 2021-01-05T20:58:00 | D29: 2021-01-05 | F29: 1 | I29: 2 | K29: 42739.87361 | L29: 1.36 | M29: LW | N29: 0.5038167939 | O29: 20:58:00 | P29: 17:00:00 | Q29: 23:00:00 | R29: 0.3388888889 | S29: 42739.90262 | T29: 1.64351145 | U29: 42739.9686 | V29: 42739.89203 | W29: 1.49389313 | X29: 42739.83194 | Y29: 42739.88067 | Z29: 1.395419847 | AA29: 42739.85613 | AB29: 42739.87485 | AC29: 1.245038168 | AD29: Cls | AE29: 42739.69931 | AF29: 42739.86543 | AG29: 1.195419847 | AH29: 42739.85737 | AI29: 1.295419847 | AJ29: 42739.90145 | AK29: 1.69389313 | AL29: 42739.90145 | AM29: 1.69389313 | AN29: 42739.89333 | AO29: 1.69389313 | AP29: 42739.89909 | AQ29: 1.544274809 | AR29: 42739.86319 | AS29: 42739.8875 | AT29: 42739.86319 | AU29: 1.395419847 | AV29: 42739.86555 | AW29: 1.345038168 | AX29: 42739.85737 | AY29: 1.195419847 | AZ29: 42739.8539 | BA29: 1.145038168 | BB29: 42739.84813 | BC29: 1.245038168 | BD29: 42739.80299 | BE29: 1.046564885 | BF29: 42739.89792 | BH29: 42739.91528 | BI29: 42739.90486
A30: 0 | B30: =IF(Instructions!$C$2="BST",A30,0) -> 0 | C30: 2021-01-06T03:13:00 | D30: 2021-01-06 | E30: 2021-01-06 | F30: 1 | G30: Jan | H30: 6 | I30: 3 | J30: Wed | K30: 42740.13403 | L30: 4.89 | M30: HW | N30: 0.347826087 | O30: 03:13:00 | P30: 00:00:00 | Q30: 06:00:00 | R30: 0.4638888889 | S30: 42740.1458 | T30: 6.556521739 | U30: 42740.21178 | V30: 42740.14742 | W30: 6.32173913 | X30: 42740.09236 | Y30: 42740.11989 | Z30: 4.817391304 | AA30: 42740.10947 | AB30: 42740.11319 | AC30: 4.417391304 | AD30: Opn | AE30: 42739.99861 | AF30: 42740.11556 | AG30: 3.882608696 | AH30: 42740.08939 | AI30: 4.247826087 | AJ30: 42740.14767 | AK30: 6.456521739 | AL30: 42740.14953 | AM30: 6.391304348 | AN30: 42740.14419 | AO30: 6.22173913 | AP30: 42740.14978 | AQ30: 5.62173913 | AR30: 42740.12361 | AS30: 42740.14444 | AT30: 42740.11022 | AU30: 4.417391304 | AV30: 42740.11022 | AW30: 4.217391304 | AX30: 42740.08753 | AY30: 3.952173913 | AZ30: 42740.08406 | BA30: 3.817391304 | BB30: 42740.08058 | BC30: 3.782608696 | BD30: 42740.02936 | BE30: 3.617391304 | BF30: 42740.12361 | BH30: 42740.17569 | BI30: 42740.16528
A31: 0 | B31: =IF(Instructions!$C$2="BST",A31,0) -> 0 | C31: 2021-01-06T09:13:00 | D31: 2021-01-06 | E31: Wed | F31: 1 | I31: 3 | K31: 42740.38403 | L31: 1.75 | M31: LW | N31: 0.2061068702 | O31: 09:13:00 | P31: 05:00:00 | Q31: 11:00:00 | R31: 0.2972222222 | S31: 42740.41246 | T31: 2.149618321 | U31: 42740.47843 | V31: 42740.40317 | W31: 1.970229008 | X31: 42740.34236 | Y31: 42740.39022 | Z31: 1.752671756 | AA31: 42740.36742 | AB31: 42740.38468 | AC31: 1.632061069 | AD31: Cls | AE31: 42740.22778 | AF31: 42740.37643 | AG31: 1.552671756 | AH31: 42740.36807 | AI31: 1.652671756 | AJ31: 42740.41143 | AK31: 2.170229008 | AL31: 42740.41143 | AM31: 2.170229008 | AN31: 42740.40345 | AO31: 2.170229008 | AP31: 42740.40937 | AQ31: 1.990839695 | AR31: 42740.37361 | AS31: 42740.39792 | AT31: 42740.37361 | AU31: 1.752671756 | AV31: 42740.37568 | AW31: 1.732061069 | AX31: 42740.36807 | AY31: 1.552671756 | AZ31: 42740.3646 | BA31: 1.532061069 | BB31: 42740.35869 | BC31: 1.632061069 | BD31: 42740.31355 | BE31: 1.314503817 | BF31: 42740.40833 | BH31: 42740.42569 | BI31: 42740.41528
A32: 0 | B32: =IF(Instructions!$C$2="BST",A32,0) -> 0 | C32: 2021-01-06T15:30:00 | D32: 2021-01-06 | F32: 1 | I32: 3 | K32: 42740.64583 | L32: 5.16 | M32: HW | N32: 0.5826086957 | O32: 15:30:00 | P32: 12:00:00 | Q32: 18:00:00 | R32: 0.4166666667 | S32: 42740.65712 | T32: 6.932173913 | U32: 42740.72309 | V32: 42740.65856 | W32: 6.673913043 | X32: 42740.60417 | Y32: 42740.63137 | Z32: 5.099130435 | AA32: 42740.62095 | AB32: 42740.625 | AC32: 4.699130435 | AD32: Opn | AE32: 42740.51042 | AF32: 42740.62818 | AG32: 4.140869565 | AH32: 42740.60185 | AI32: 4.482608696 | AJ32: 42740.65914 | AK32: 6.832173913 | AL32: 42740.66117 | AM32: 6.790434783 | AN32: 42740.65567 | AO32: 6.573913043 | AP32: 42740.66175 | AQ32: 5.973913043 | AR32: 42740.63542 | AS32: 42740.65625 | AT32: 42740.62269 | AU32: 4.699130435 | AV32: 42740.62269 | AW32: 4.499130435 | AX32: 42740.59983 | AY32: 4.257391304 | AZ32: 42740.59635 | BA32: 4.099130435 | BB32: 42740.59288 | BC32: 4.040869565 | BD32: 42740.54051 | BE32: 3.899130435 | BF32: 42740.63542 | BH32: 42740.6875 | BI32: 42740.67708
A33: 0 | B33: =IF(Instructions!$C$2="BST",A33,0) -> 0 | C33: 2021-01-06T22:00:00 | D33: 2021-01-06 | F33: 1 | I33: 3 | K33: 42740.91667 | L33: 1.46 | M33: LW | N33: 0.427480916 | O33: 22:00:00 | P33: 17:00:00 | Q33: 23:00:00 | R33: 0.1666666667 | S33: 42740.94329 | T33: 1.773282443 | U33: 42741.00926 | V33: 42740.93808 | W33: 1.616030534 | X33: 42740.875 | Y33: 42740.92014 | Z33: 1.487022901 | AA33: 42740.90278 | AB33: 42740.91551 | AC33: 1.344274809 | AD33: Cls | AE33: 42740.73958 | AF33: 42740.91088 | AG33: 1.287022901 | AH33: 42740.90162 | AI33: 1.387022901 | AJ33: 42740.94271 | AK33: 1.816030534 | AL33: 42740.94271 | AM33: 1.816030534 | AN33: 42740.93519 | AO33: 1.816030534 | AP33: 42740.94155 | AQ33: 1.658778626 | AR33: 42740.90625 | AS33: 42740.93056 | AT33: 42740.90625 | AU33: 1.487022901 | AV33: 42740.90741 | AW33: 1.444274809 | AX33: 42740.90162 | AY33: 1.287022901 | AZ33: 42740.89815 | BA33: 1.244274809 | BB33: 42740.89178 | BC33: 1.344274809 | BD33: 42740.84664 | BE33: 1.115267176 | BF33: 42740.94097 | BH33: 42740.95833 | BI33: 42740.94792
A34: 0 | B34: =IF(Instructions!$C$2="BST",A34,0) -> 0 | C34: 2021-01-07T04:17:00 | D34: 2021-01-07 | E34: 2021-01-07 | F34: 1 | G34: Jan | H34: 7 | I34: 4 | J34: Thu | K34: 42741.17847 | L34: 4.8 | M34: HW | N34: 0.2695652174 | O34: 04:17:00 | P34: 00:00:00 | Q34: 06:00:00 | R34: 0.2861111111 | S34: 42741.1884 | T34: 6.431304348 | U34: 42741.25437 | V34: 42741.18939 | W34: 6.204347826 | X34: 42741.13681 | Y34: 42741.1631 | Z34: 4.723478261 | AA34: 42741.15268 | AB34: 42741.15764 | AC34: 4.323478261 | AD34: Opn | AE34: 42741.04306 | AF34: 42741.16309 | AG34: 3.796521739 | AH34: 42741.1363 | AI34: 4.169565217 | AJ34: 42741.19088 | AK34: 6.331304348 | AL34: 42741.19335 | AM34: 6.25826087 | AN34: 42741.1874 | AO34: 6.104347826 | AP34: 42741.19484 | AQ34: 5.504347826 | AR34: 42741.16806 | AS34: 42741.18889 | AT34: 42741.15714 | AU34: 4.323478261 | AV34: 42741.15714 | AW34: 4.123478261 | AX34: 42741.13383 | AY34: 3.850434783 | AZ34: 42741.13035 | BA34: 3.723478261 | BB34: 42741.12688 | BC34: 3.696521739 | BD34: 42741.07133 | BE34: 3.523478261 | BF34: 42741.16806 | BH34: 42741.22014 | BI34: 42741.20972
A35: 0 | B35: =IF(Instructions!$C$2="BST",A35,0) -> 0 | C35: 2021-01-07T10:19:00 | D35: 2021-01-07 | E35: Thu | F35: 1 | I35: 4 | K35: 42741.42986 | L35: 1.83 | M35: LW | N35: 0.1450381679 | O35: 10:19:00 | P35: 05:00:00 | Q35: 11:00:00 | R35: 0.1138888889 | S35: 42741.45575 | T35: 2.253435115 | U35: 42741.52172 | V35: 42741.45219 | W35: 2.067938931 | X35: 42741.38819 | Y35: 42741.43223 | Z35: 1.825954198 | AA35: 42741.41707 | AB35: 42741.42797 | AC35: 1.711450382 | AD35: Cls | AE35: 42741.27222 | AF35: 42741.42481 | AG35: 1.625954198 | AH35: 42741.41518 | AI35: 1.725954198 | AJ35: 42741.45535 | AK35: 2.267938931 | AL35: 42741.45535 | AM35: 2.267938931 | AN35: 42741.44801 | AO35: 2.267938931 | AP35: 42741.45456 | AQ35: 2.082442748 | AR35: 42741.41944 | AS35: 42741.44375 | AT35: 42741.41944 | AU35: 1.825954198 | AV35: 42741.42024 | AW35: 1.811450382 | AX35: 42741.41518 | AY35: 1.625954198 | AZ35: 42741.41171 | BA35: 1.611450382 | BB35: 42741.40516 | BC35: 1.711450382 | BD35: 42741.36002 | BE35: 1.369465649 | BF35: 42741.45417 | BH35: 42741.47153 | BI35: 42741.46111
A36: 0 | B36: =IF(Instructions!$C$2="BST",A36,0) -> 0 | C36: 2021-01-07T16:37:00 | D36: 2021-01-07 | F36: 1 | I36: 4 | K36: 42741.69236 | L36: 5.06 | M36: HW | N36: 0.4956521739 | O36: 16:37:00 | P36: 12:00:00 | Q36: 18:00:00 | R36: 0.2305555556 | S36: 42741.70171 | T36: 6.793043478 | U36: 42741.76768 | V36: 42741.70251 | W36: 6.543478261 | X36: 42741.65069 | Y36: 42741.6766 | Z36: 4.994782609 | AA36: 42741.66618 | AB36: 42741.67153 | AC36: 4.594782609 | AD36: Opn | AE36: 42741.55694 | AF36: 42741.67794 | AG36: 4.045217391 | AH36: 42741.65096 | AI36: 4.395652174 | AJ36: 42741.70438 | AK36: 6.693043478 | AL36: 42741.70705 | AM36: 6.642608696 | AN36: 42741.70091 | AO36: 6.443478261 | AP36: 42741.70892 | AQ36: 5.843478261 | AR36: 42741.68194 | AS36: 42741.70278 | AT36: 42741.6718 | AU36: 4.594782609 | AV36: 42741.6718 | AW36: 4.394782609 | AX36: 42741.64829 | AY36: 4.144347826 | AZ36: 42741.64482 | BA36: 3.994782609 | BB36: 42741.64135 | BC36: 3.945217391 | BD36: 42741.58445 | BE36: 3.794782609 | BF36: 42741.68194 | BH36: 42741.73403 | BI36: 42741.72361
A37: 0 | B37: =IF(Instructions!$C$2="BST",A37,0) -> 0 | C37: 2021-01-07T23:07:00 | D37: 2021-01-07 | F37: 1 | I37: 4 | K37: 42741.96319 | L37: 1.51 | M37: LW | N37: 0.3893129771 | O37: 23:07:00 | P37: 1.208333333 | Q37: 23:00:00 | R37: 0.01944444443 | S37: 42741.98777 | T37: 1.838167939 | U37: 42742.05374 | V37: 42741.98716 | W37: 1.677099237 | X37: 42741.92153 | Y37: 42741.9636 | Z37: 1.532824427 | AA37: 42741.95237 | AB37: 42741.95999 | AC37: 1.39389313 | AD37: Cls | AE37: 42741.78611 | AF37: 42741.95945 | AG37: 1.332824427 | AH37: 42741.94917 | AI37: 1.432824427 | AJ37: 42741.9877 | AK37: 1.877099237 | AL37: 42741.9877 | AM37: 1.877099237 | AN37: 42741.98069 | AO37: 1.877099237 | AP37: 42741.98757 | AQ37: 1.716030534 | AR37: 42741.95278 | AS37: 42741.97708 | AT37: 42741.95278 | AU37: 1.532824427 | AV37: 42741.95291 | AW37: 1.49389313 | AX37: 42741.94917 | AY37: 1.332824427 | AZ37: 42741.9457 | BA37: 1.29389313 | BB37: 42741.93882 | BC37: 1.39389313 | BD37: 42741.89368 | BE37: 1.149618321 | BF37: 42741.9875 | BH37: 42742.00486 | BI37: 42741.99444
A38: 0 | B38: =IF(Instructions!$C$2="BST",A38,0) -> 0 | C38: 2021-01-08T05:27:00 | D38: 2021-01-08 | E38: 2021-01-08 | F38: 1 | G38: Jan | H38: 8 | I38: 5 | J38: Fri | K38: 42742.22708 | L38: 4.79 | M38: HW | N38: 0.2608695652 | O38: 05:27:00 | P38: 00:00:00 | Q38: 06:00:00 | R38: 0.09166666667 | S38: 42742.23498 | T38: 6.417391304 | U38: 42742.30095 | V38: 42742.2353 | W38: 6.191304348 | X38: 42742.18542 | Y38: 42742.21036 | Z38: 4.713043478 | AA38: 42742.19994 | AB38: 42742.20625 | AC38: 4.313043478 | AD38: Opn | AE38: 42742.09167 | AF38: 42742.21508 | AG38: 3.786956522 | AH38: 42742.18762 | AI38: 4.160869565 | AJ38: 42742.23814 | AK38: 6.317391304 | AL38: 42742.24129 | AM38: 6.243478261 | AN38: 42742.23466 | AO38: 6.091304348 | AP38: 42742.24413 | AQ38: 5.491304348 | AR38: 42742.21667 | AS38: 42742.2375 | AT38: 42742.20845 | AU38: 4.313043478 | AV38: 42742.20845 | AW38: 4.113043478 | AX38: 42742.18446 | AY38: 3.839130435 | AZ38: 42742.18099 | BA38: 3.713043478 | BB38: 42742.17752 | BC38: 3.686956522 | BD38: 42742.11725 | BE38: 3.513043478 | BF38: 42742.21667 | BH38: 42742.26875 | BI38: 42742.25833
A39: 0 | B39: =IF(Instructions!$C$2="BST",A39,0) -> 0 | C39: 2021-01-08T11:30:00 | D39: 2021-01-08 | E39: Fri | F39: 1 | I39: 5 | K39: 42742.47917 | L39: 1.83 | M39: LW | N39: 0.1450381679 | O39: 11:30:00 | P39: 17:00:00 | Q39: 11:00:00 | R39: 0.08333333332 | S39: 42742.50463 | T39: 2.253435115 | U39: 42742.5706 | V39: 42742.50203 | W39: 2.067938931 | X39: 42742.4375 | Y39: 42742.4809 | Z39: 1.825954198 | AA39: 42742.46701 | AB39: 42742.47685 | AC39: 1.711450382 | AD39: Cls | AE39: 42742.32083 | AF39: 42742.47454 | AG39: 1.625954198 | AH39: 42742.4647 | AI39: 1.725954198 | AJ39: 42742.50434 | AK39: 2.267938931 | AL39: 42742.50434 | AM39: 2.267938931 | AN39: 42742.49711 | AO39: 2.267938931 | AP39: 42742.50376 | AQ39: 2.082442748 | AR39: 42742.46875 | AS39: 42742.49306 | AT39: 42742.46875 | AU39: 1.825954198 | AV39: 42742.46933 | AW39: 1.811450382 | AX39: 42742.4647 | AY39: 1.625954198 | AZ39: 42742.46123 | BA39: 1.611450382 | BB39: 42742.45457 | BC39: 1.711450382 | BD39: 42742.40943 | BE39: 1.369465649 | BF39: 42742.50347 | BH39: 42742.52083 | BI39: 42742.51042
A40: 0 | B40: =IF(Instructions!$C$2="BST",A40,0) -> 0 | C40: 2021-01-08T17:51:00 | D40: 2021-01-08 | F40: 1 | I40: 5 | K40: 42742.74375 | L40: 5.03 | M40: HW | N40: 0.4695652174 | O40: 17:51:00 | P40: 12:00:00 | Q40: 18:00:00 | R40: 0.02499999999 | S40: 42742.75095 | T40: 6.751304348 | U40: 42742.81693 | V40: 42742.75104 | W40: 6.504347826 | X40: 42742.70208 | Y40: 42742.72656 | Z40: 4.963478261 | AA40: 42742.71615 | AB40: 42742.72292 | AC40: 4.563478261 | AD40: Opn | AE40: 42742.60833 | AF40: 42742.7329 | AG40: 4.016521739 | AH40: 42742.70521 | AI40: 4.369565217 | AJ40: 42742.75434 | AK40: 6.651304348 | AL40: 42742.75773 | AM40: 6.59826087 | AN40: 42742.75087 | AO40: 6.404347826 | AP40: 42742.76102 | AQ40: 5.804347826 | AR40: 42742.73333 | AS40: 42742.75417 | AT40: 42742.72604 | AU40: 4.563478261 | AV40: 42742.72604 | AW40: 4.363478261 | AX40: 42742.70182 | AY40: 4.110434783 | AZ40: 42742.69835 | BA40: 3.963478261 | BB40: 42742.69488 | BC40: 3.916521739 | BD40: 42742.63299 | BE40: 3.763478261 | BF40: 42742.73333 | BH40: 42742.78542 | BI40: 42742.775
A41: 0 | B41: =IF(Instructions!$C$2="BST",A41,0) -> 0 | C41: 2021-01-09T00:17:00 | D41: 2021-01-09 | E41: 2021-01-09 | F41: 1 | G41: Jan | H41: 9 | I41: 6 | J41: Sat | K41: 42743.01181 | L41: 1.48 | M41: LW | N41: 0.4122137405 | O41: 00:17:00 | P41: 05:00:00 | Q41: -0.04166666667 | R41: 0.2138888889 | S41: 42743.03908 | T41: 1.799236641 | U41: 42743.10505 | V41: 42743.0324 | W41: 1.640458015 | X41: 42742.97014 | Y41: 42743.01626 | Z41: 1.505343511 | AA41: 42742.99693 | AB41: 42743.0113 | AC41: 1.364122137 | AD41: Cls | AE41: 42742.8375 | AF41: 42743.00536 | AG41: 1.305343511 | AH41: 42742.99643 | AI41: 1.405343511 | AJ41: 42743.03834 | AK41: 1.840458015 | AL41: 42743.03834 | AM41: 1.840458015 | AN41: 42743.03065 | AO41: 1.840458015 | AP41: 42743.03685 | AQ41: 1.681679389 | AR41: 42743.00139 | AS41: 42743.02569 | AT41: 42743.00139 | AU41: 1.505343511 | AV41: 42743.00287 | AW41: 1.464122137 | AX41: 42742.99643 | AY41: 1.305343511 | AZ41: 42742.99296 | BA41: 1.264122137 | BB41: 42742.98676 | BC41: 1.364122137 | BD41: 42742.94162 | BE41: 1.129007634 | BF41: 42743.03611 | BH41: 42743.05347 | BI41: 42743.04306
A42: 0 | B42: =IF(Instructions!$C$2="BST",A42,0) -> 0 | C42: 2021-01-09T06:38:00 | D42: 2021-01-09 | E42: Sat | F42: 1 | I42: 6 | K42: 42743.27639 | L42: 4.9 | M42: HW | N42: 0.3565217391 | O42: 06:38:00 | P42: 12:00:00 | Q42: 06:00:00 | R42: 0.1055555556 | S42: 42743.28443 | T42: 6.570434783 | U42: 42743.35041 | V42: 42743.2848 | W42: 6.334782609 | X42: 42743.23472 | Y42: 42743.25976 | Z42: =IF($M42="HW",Y$2+(Y$1-Y$2)*$N42,Y$3+(Y$4-Y$3)*$N42) -> 4.827826087 | AA42: 42743.24934 | AB42: 42743.25556 | AC42: =IF($M42="HW",AB$2+(AB$1-AB$2)*$N42,AB$3+(AB$4-AB$3)*$N42) -> 4.427826087 | AD42: Opn | AE42: 42743.14097 | AF42: 42743.26414 | AG42: =IF($M42="HW",AF$2+(AF$1-AF$2)*$N42,AF$3+(AF$4-AF$3)*$N42) -> 3.892173913 | AH42: 42743.23673 | AI42: =IF($M42="HW",AH$2+(AH$1-AH$2)*$N42,AH$3+(AH$4-AH$3)*$N42) -> 4.256521739 | AJ42: 42743.28754 | AK42: =IF($M42="HW",AJ$2+(AJ$1-AJ$2)*$N42,AJ$3+(AJ$4-AJ$3)*$N42) -> 6.470434783 | AL42: 42743.29064 | AM42: =IF($M42="HW",AL$2+(AL$1-AL$2)*$N42,AL$3+(AL$4-AL$3)*$N42) -> 6.406086957 | AN42: 42743.28407 | AO42: =IF($M42="HW",AN$2+(AN$1-AN$2)*$N42,AN$3+(AN$4-AN$3)*$N42) -> 6.234782609 | AP42: 42743.29338 | AQ42: =IF($M42="HW",AP$2+(AP$1-AP$2)*$N42,AP$3+(AP$4-AP$3)*$N42) -> 5.634782609 | AR42: 42743.26597 | AS42: 42743.28681 | AT42: 42743.25756 | AU42: =IF($M42="HW",AT$2+(AT$1-AT$2)*$N42,AT$3+(AT$4-AT$3)*$N42) -> 4.427826087 | AV42: 42743.25756 | AW42: =IF($M42="HW",AV$2+(AV$1-AV$2)*$N42,AV$3+(AV$4-AV$3)*$N42) -> 4.227826087 | AX42: 42743.23362 | AY42: =IF($M42="HW",AX$2+(AX$1-AX$2)*$N42,AX$3+(AX$4-AX$3)*$N42) -> 3.963478261 | AZ42: 42743.23015 | BA42: =IF($M42="HW",AZ$2+(AZ$1-AZ$2)*$N42,AZ$3+(AZ$4-AZ$3)*$N42) -> 3.827826087 | BB42: 42743.22668 | BC42: =IF($M42="HW",BB$2+(BB$1-BB$2)*$N42,BB$3+(BB$4-BB$3)*$N42) -> 3.792173913 | BD42: 42743.16674 | BE42: =IF($M42="HW",BD$2+(BD$1-BD$2)*$N42,BD$3+(BD$4-BD$3)*$N42) -> 3.627826087 | BF42: 42743.26597 | BH42: 42743.31806 | BI42: 42743.30764
A43: 0 | B43: =IF(Instructions!$C$2="BST",A43,0) -> 0 | C43: 2021-01-09T12:42:00 | D43: 2021-01-09 | F43: 1 | I43: 6 | K43: 42743.52917 | L43: 1.7 | M43: LW | N43: 0.2442748092 | O43: 12:42:00 | P43: 17:00:00 | Q43: 11:00:00 | R43: 0.2833333333 | S43: 42743.55741 | T43: 2.084732824 | U43: 42743.62338 | V43: 42743.54855 | W43: 1.909160305 | X43: 42743.4875 | Y43: 42743.53507 | Z43: 1.706870229 | AA43: 42743.51285 | AB43: 42743.52963 | AC43: 1.582442748 | AD43: Cls | AE43: 42743.37014 | AF43: 42743.52176 | AG43: 1.506870229 | AH43: 42743.51331 | AI43: 1.606870229 | AJ43: 42743.55642 | AK43: 2.109160305 | AL43: 42743.55642 | AM43: 2.109160305 | AN43: 42743.5485 | AO43: 2.109160305 | AP43: 42743.55446 | AQ43: 1.933587786 | AR43: 42743.51875 | AS43: 42743.54306 | AT43: 42743.51875 | AU43: 1.706870229 | AV43: 42743.52072 | AW43: 1.682442748 | AX43: 42743.51331 | AY43: 1.506870229 | AZ43: 42743.50984 | BA43: 1.482442748 | BB43: 42743.50388 | BC43: 1.582442748 | BD43: 42743.45874 | BE43: 1.280152672 | BF43: 42743.55347 | BH43: 42743.57083 | BI43: 42743.56042
A44: 0 | B44: =IF(Instructions!$C$2="BST",A44,0) -> 0 | C44: 2021-01-09T19:04:00 | D44: 2021-01-09 | F44: 1 | I44: 6 | K44: 42743.79444 | L44: 5.11 | M44: HW | N44: 0.5391304348 | O44: 19:04:00 | P44: 1 | Q44: 18:00:00 | R44: 0.1777777778 | S44: =IF($M44="HW",$K44+S$6+(S$5-S$6)*$R44,$K44+S$8+(S$7-S$8)*$R44) -> 42743.80324 | T44: 6.862608696 | U44: 42743.86921 | V44: 42743.80386 | W44: 6.608695652 | X44: =IF($M44="HW",$K44+X$6+(X$5-X$6)*$R44,$K44+X$8+(X$7-X$8)*$R44) -> 42743.75278 | Y44: 42743.77832 | Z44: 5.046956522 | AA44: 42743.7679 | AB44: 42743.77361 | AC44: 4.646956522 | AD44: Opn | AE44: 42743.65903 | AF44: 42743.78094 | AG44: 4.093043478 | AH44: 42743.75378 | AI44: 4.439130435 | AJ44: 42743.8061 | AK44: 6.762608696 | AL44: 42743.80895 | AM44: 6.716521739 | AN44: 42743.80262 | AO44: 6.508695652 | AP44: 42743.81119 | AQ44: 5.908695652 | AR44: =IF($M44="HW",$K44+AR$6+(AR$5-AR$6)*$R44,$K44+AR$8+(AR$7-AR$8)*$R44) -> 42743.78403 | AS44: 42743.80486 | AT44: 42743.77461 | AU44: 4.646956522 | AV44: 42743.77461 | AW44: 4.446956522 | AX44: 42743.75093 | AY44: 4.200869565 | AZ44: 42743.74745 | BA44: 4.046956522 | BB44: 42743.74398 | BC44: 3.993043478 | BD44: 42743.6858 | BE44: 3.846956522 | BF44: =IF($M44="HW",$K44+BF$6+(BF$5-BF$6)*$R44,$K44+BF$8+(BF$7-BF$8)*$R44) -> 42743.78403 | BH44: 42743.83611 | BI44: 42743.82569
A45: 0 | B45: =IF(Instructions!$C$2="BST",A45,0) -> 0 | C45: 2021-01-10T01:22:00 | D45: 2021-01-10 | E45: 2021-01-10 | F45: 1 | G45: Jan | H45: 10 | I45: 7 | J45: Sun | K45: 42744.05694 | L45: 1.36 | M45: LW | N45: 0.5038167939 | O45: 01:22:00 | P45: 05:00:00 | Q45: -0.04166666667 | R45: 0.3944444444 | S45: 42744.08673 | T45: 1.64351145 | U45: 42744.1527 | V45: 42744.0744 | W45: 1.49389313 | X45: 42744.01528 | Y45: 42744.06516 | Z45: 1.395419847 | AA45: 42744.03831 | AB45: 42744.05895 | AC45: 1.245038168 | AD45: Cls | AE45: 42743.88819 | AF45: 42744.04799 | AG45: 1.195419847 | AH45: 42744.04032 | AI45: 1.295419847 | AJ45: 42744.08536 | AK45: 1.69389313 | AL45: 42744.08536 | AM45: 1.69389313 | AN45: 42744.07704 | AO45: 1.69389313 | AP45: 42744.08262 | AQ45: 1.544274809 | AR45: 42744.04653 | AS45: 42744.07083 | AT45: 42744.04653 | AU45: 1.395419847 | AV45: 42744.04927 | AW45: 1.345038168 | AX45: 42744.04032 | AY45: 1.195419847 | AZ45: 42744.03684 | BA45: 1.145038168 | BB45: 42744.03127 | BC45: 1.245038168 | BD45: 42743.98613 | BE45: 1.046564885 | BF45: 42744.08125 | BH45: 42744.09861 | BI45: 42744.08819
A46: 0 | B46: =IF(Instructions!$C$2="BST",A46,0) -> 0 | C46: 2021-01-10T07:43:00 | D46: 2021-01-10 | E46: Sun | F46: 1 | I46: 7 | K46: 42744.32153 | L46: 5.1 | M46: HW | N46: 0.5304347826 | O46: 07:43:00 | P46: 12:00:00 | Q46: 06:00:00 | R46: 0.2861111111 | S46: 42744.33145 | T46: 6.848695652 | U46: 42744.39742 | V46: 42744.33245 | W46: 6.595652174 | X46: 42744.27986 | Y46: 42744.30615 | Z46: 5.036521739 | AA46: 42744.29574 | AB46: 42744.30069 | AC46: 4.636521739 | AD46: Opn | AE46: 42744.18611 | AF46: 42744.30614 | AG46: 4.083478261 | AH46: 42744.27936 | AI46: 4.430434783 | AJ46: 42744.33393 | AK46: 6.748695652 | AL46: 42744.33641 | AM46: 6.70173913 | AN46: 42744.33046 | AO46: 6.495652174 | AP46: 42744.3379 | AQ46: 5.895652174 | AR46: 42744.31111 | AS46: 42744.33194 | AT46: 42744.30019 | AU46: 4.636521739 | AV46: 42744.30019 | AW46: 4.436521739 | AX46: 42744.27688 | AY46: 4.189565217 | AZ46: 42744.27341 | BA46: 4.036521739 | BB46: 42744.26994 | BC46: 3.983478261 | BD46: 42744.21439 | BE46: 3.836521739 | BF46: 42744.31111 | BH46: 42744.36319 | BI46: 42744.35278
A47: 0 | B47: =IF(Instructions!$C$2="BST",A47,0) -> 0 | C47: 2021-01-10T13:47:00 | D47: 2021-01-10 | F47: 1 | I47: 7 | K47: 42744.57431 | L47: 1.47 | M47: LW | N47: 0.4198473282 | O47: 13:47:00 | P47: 17:00:00 | Q47: 11:00:00 | R47: 0.4638888889 | S47: 42744.60505 | T47: 1.786259542 | U47: 42744.67103 | V47: 42744.59056 | W47: 1.628244275 | X47: 42744.53264 | Y47: 42744.58397 | Z47: 1.496183206 | AA47: 42744.55422 | AB47: 42744.57728 | AC47: 1.354198473 | AD47: Cls | AE47: 42744.41528 | AF47: 42744.56439 | AG47: 1.296183206 | AH47: 42744.5572 | AI47: 1.396183206 | AJ47: 42744.60344 | AK47: 1.828244275 | AL47: 42744.60344 | AM47: 1.828244275 | AN47: 42744.59489 | AO47: 1.828244275 | AP47: 42744.60022 | AQ47: 1.670229008 | AR47: 42744.56389 | AS47: 42744.58819 | AT47: 42744.56389 | AU47: 1.496183206 | AV47: 42744.56711 | AW47: 1.454198473 | AX47: 42744.5572 | AY47: 1.296183206 | AZ47: 42744.55372 | BA47: 1.254198473 | BB47: 42744.54839 | BC47: 1.354198473 | BD47: 42744.50325 | BE47: 1.122137405 | BF47: 42744.59861 | BH47: 42744.61597 | BI47: 42744.60556
A48: 0 | B48: =IF(Instructions!$C$2="BST",A48,0) -> 0 | C48: 2021-01-10T20:09:00 | D48: 2021-01-10 | F48: 1 | I48: 7 | K48: 42744.83958 | L48: 5.25 | M48: HW | N48: 0.6608695652 | O48: 20:09:00 | P48: 1 | Q48: 18:00:00 | R48: 0.3583333333 | S48: 42744.85026 | T48: 7.057391304 | U48: 42744.91623 | V48: 42744.8515 | W48: 6.791304348 | X48: 42744.79792 | Y48: 42744.82471 | Z48: 5.193043478 | AA48: 42744.81429 | AB48: 42744.81875 | AC48: 4.793043478 | AD48: Opn | AE48: 42744.70417 | AF48: 42744.82295 | AG48: 4.226956522 | AH48: 42744.79641 | AI48: 4.560869565 | AJ48: 42744.85249 | AK48: 6.957391304 | AL48: 42744.85472 | AM48: 6.923478261 | AN48: 42744.84902 | AO48: 6.691304348 | AP48: 42744.8557 | AQ48: 6.091304348 | AR48: 42744.82917 | AS48: 42744.85 | AT48: 42744.81725 | AU48: 4.793043478 | AV48: 42744.81725 | AW48: 4.593043478 | AX48: 42744.79418 | AY48: 4.359130435 | AZ48: 42744.79071 | BA48: 4.193043478 | BB48: 42744.78724 | BC48: 4.126956522 | BD48: 42744.73345 | BE48: 3.993043478 | BF48: 42744.82917 | BH48: 42744.88125 | BI48: 42744.87083
A49: 0 | B49: =IF(Instructions!$C$2="BST",A49,0) -> 0 | C49: 2021-01-11T02:19:00 | D49: 2021-01-11 | E49: 2021-01-11 | F49: 1 | G49: Jan | H49: 11 | I49: 1 | J49: Mon | K49: 42745.09653 | L49: 1.22 | M49: LW | N49: 0.6106870229 | O49: 02:19:00 | P49: 05:00:00 | Q49: -0.04166666667 | R49: 0.5527777778 | S49: 42745.12851 | T49: 1.461832061 | U49: 42745.19448 | V49: 42745.11124 | W49: 1.322900763 | X49: 42745.05486 | Y49: 42745.10804 | Z49: 1.267175573 | AA49: 42745.07459 | AB49: 42745.10073 | AC49: 1.10610687 | AD49: Cls | AE49: 42744.93333 | AF49: 42745.08538 | AG49: 1.067175573 | AH49: 42745.0788 | AI49: 1.167175573 | AJ49: 42745.12659 | AK49: 1.522900763 | AL49: 42745.12659 | AM49: 1.522900763 | AN49: 42745.11773 | AO49: 1.522900763 | AP49: 42745.12275 | AQ49: 1.383969466 | AR49: 42745.08611 | AS49: 42745.11042 | AT49: 42745.08611 | AU49: 1.267175573 | AV49: 42745.08995 | AW49: 1.20610687 | AX49: 42745.0788 | AY49: 1.067175573 | AZ49: 42745.07533 | BA49: 1.00610687 | BB49: 42745.0703 | BC49: 1.10610687 | BD49: 42745.02516 | BE49: 0.9503816794 | BF49: 42745.12083 | BH49: 42745.13819 | BI49: 42745.12778
A50: 0 | B50: =IF(Instructions!$C$2="BST",A50,0) -> 0 | C50: 2021-01-11T08:38:00 | D50: 2021-01-11 | E50: Mon | F50: 1 | I50: 1 | K50: 42745.35972 | L50: 5.34 | M50: HW | N50: 0.7391304348 | O50: 08:38:00 | P50: 12:00:00 | Q50: 06:00:00 | R50: 0.4388888889 | S50: 42745.37124 | T50: 7.182608696 | U50: 42745.43721 | V50: 42745.37276 | W50: 6.908695652 | X50: 42745.31806 | Y50: 42745.34541 | Z50: 5.286956522 | AA50: 42745.33499 | AB50: 42745.33889 | AC50: 4.886956522 | AD50: Opn | AE50: 42745.22431 | AF50: 42745.34169 | AG50: 4.313043478 | AH50: 42745.31543 | AI50: 4.639130435 | AJ50: 42745.37319 | AK50: 7.082608696 | AL50: 42745.37514 | AM50: 7.056521739 | AN50: 42745.36971 | AO50: 6.808695652 | AP50: 42745.37556 | AQ50: 6.208695652 | AR50: 42745.34931 | AS50: 42745.37014 | AT50: 42745.33627 | AU50: 4.886956522 | AV50: 42745.33627 | AW50: 4.686956522 | AX50: 42745.31348 | AY50: 4.460869565 | AZ50: 42745.31001 | BA50: 4.286956522 | BB50: 42745.30654 | BC50: 4.213043478 | BD50: 42745.25471 | BE50: 4.086956522 | BF50: 42745.34931 | BH50: 42745.40139 | BI50: 42745.39097
A51: 0 | B51: =IF(Instructions!$C$2="BST",A51,0) -> 0 | C51: 2021-01-11T14:44:00 | D51: 2021-01-11 | F51: 1 | I51: 1 | K51: 42745.61389 | L51: 1.22 | M51: LW | N51: 0.6106870229 | O51: 14:44:00 | P51: 17:00:00 | Q51: 11:00:00 | R51: 0.6222222222 | S51: 42745.64684 | T51: 1.461832061 | U51: 42745.71281 | V51: 42745.62739 | W51: 1.322900763 | X51: 42745.57222 | Y51: 42745.62685 | Z51: 1.267175573 | AA51: 42745.59051 | AB51: 42745.61906 | AC51: 1.10610687 | AD51: Cls | AE51: 42745.45347 | AF51: 42745.60177 | AG51: 1.067175573 | AH51: 42745.59568 | AI51: 1.167175573 | AJ51: 42745.64468 | AK51: 1.522900763 | AL51: 42745.64468 | AM51: 1.522900763 | AN51: 42745.63557 | AO51: 1.522900763 | AP51: 42745.64035 | AQ51: 1.383969466 | AR51: 42745.60347 | AS51: 42745.62778 | AT51: 42745.60347 | AU51: 1.267175573 | AV51: 42745.60779 | AW51: 1.20610687 | AX51: 42745.59568 | AY51: 1.067175573 | AZ51: 42745.59221 | BA51: 1.00610687 | BB51: 42745.58742 | BC51: 1.10610687 | BD51: 42745.54228 | BE51: 0.9503816794 | BF51: 42745.63819 | BH51: 42745.65556 | BI51: 42745.64514
A52: 0 | B52: =IF(Instructions!$C$2="BST",A52,0) -> 0 | C52: 2021-01-11T21:05:00 | D52: 2021-01-11 | F52: 1 | I52: 1 | K52: 42745.87847 | L52: 5.4 | M52: HW | N52: 0.7913043478 | O52: 21:05:00 | P52: 1 | Q52: 18:00:00 | R52: 0.5138888889 | S52: 42745.89077 | T52: 7.266086957 | U52: 42745.95674 | V52: 42745.89255 | W52: 6.986956522 | X52: 42745.83681 | Y52: 42745.86468 | Z52: 5.349565217 | AA52: 42745.85426 | AB52: 42745.85764 | AC52: 4.949565217 | AD52: Opn | AE52: 42745.74306 | AF52: 42745.85913 | AG52: 4.370434783 | AH52: 42745.83314 | AI52: 4.691304348 | AJ52: 42745.89246 | AK52: 7.166086957 | AL52: 42745.89415 | AM52: 7.145217391 | AN52: 42745.88899 | AO52: 6.886956522 | AP52: 42745.89405 | AQ52: 6.286956522 | AR52: 42745.86806 | AS52: 42745.88889 | AT52: 42745.85397 | AU52: 4.949565217 | AV52: 42745.85397 | AW52: 4.749565217 | AX52: 42745.83145 | AY52: 4.528695652 | AZ52: 42745.82798 | BA52: 4.349565217 | BB52: 42745.82451 | BC52: 4.270434783 | BD52: 42745.7745 | BE52: 4.149565217 | BF52: 42745.86806 | BH52: 42745.92014 | BI52: 42745.90972
A53: 0 | B53: =IF(Instructions!$C$2="BST",A53,0) -> 0 | C53: 2021-01-12T03:11:00 | D53: 2021-01-12 | E53: 2021-01-12 | F53: 1 | G53: Jan | H53: 12 | I53: 2 | J53: Tue | K53: 42746.13264 | L53: 1.08 | M53: LW | N53: 0.7175572519 | O53: 03:11:00 | P53: 05:00:00 | Q53: -0.04166666667 | R53: 0.6972222222 | S53: 42746.16663 | T53: 1.280152672 | U53: 42746.2326 | V53: 42746.14484 | W53: 1.151908397 | X53: 42746.09097 | Y53: 42746.14716 | Z53: 1.138931298 | AA53: 42746.1077 | AB53: 42746.13885 | AC53: 0.9671755725 | AD53: Cls | AE53: 42745.97222 | AF53: 42746.11948 | AG53: 0.9389312977 | AH53: 42746.11391 | AI53: 1.038931298 | AJ53: 42746.16421 | AK53: 1.351908397 | AL53: 42746.16421 | AM53: 1.351908397 | AN53: 42746.15484 | AO53: 1.351908397 | AP53: 42746.15937 | AQ53: 1.223664122 | AR53: 42746.12222 | AS53: 42746.14653 | AT53: 42746.12222 | AU53: 1.138931298 | AV53: 42746.12706 | AW53: 1.067175573 | AX53: 42746.11391 | AY53: 0.9389312977 | AZ53: 42746.11044 | BA53: 0.8671755725 | BB53: 42746.10591 | BC53: 0.9671755725 | BD53: 42746.06077 | BE53: 0.8541984733 | BF53: 42746.15694 | BH53: 42746.17431 | BI53: 42746.16389
A54: 0 | B54: =IF(Instructions!$C$2="BST",A54,0) -> 0 | C54: 2021-01-12T09:29:00 | D54: 2021-01-12 | E54: Tue | F54: 1 | I54: 2 | K54: 42746.39514 | L54: 5.55 | M54: HW | N54: 0.9217391304 | O54: 09:29:00 | P54: 12:00:00 | Q54: 06:00:00 | R54: 0.5805555556 | S54: 42746.40813 | T54: 7.474782609 | U54: 42746.4741 | V54: 42746.41015 | W54: 7.182608696 | X54: 42746.35347 | Y54: 42746.38181 | Z54: 5.506086957 | AA54: 42746.37139 | AB54: 42746.37431 | AC54: 5.106086957 | AD54: Opn | AE54: 42746.25972 | AF54: 42746.37464 | AG54: 4.513913043 | AH54: 42746.34888 | AI54: 4.82173913 | AJ54: 42746.40959 | AK54: 7.374782609 | AL54: 42746.41104 | AM54: 7.366956522 | AN54: 42746.40611 | AO54: 7.082608696 | AP54: 42746.41048 | AQ54: 6.482608696 | AR54: 42746.38472 | AS54: 42746.40556 | AT54: 42746.36971 | AU54: 5.106086957 | AV54: 42746.36971 | AW54: 4.906086957 | AX54: 42746.34742 | AY54: 4.69826087 | AZ54: 42746.34395 | BA54: 4.506086957 | BB54: 42746.34048 | BC54: 4.413913043 | BD54: 42746.29209 | BE54: 4.306086957 | BF54: 42746.38472 | BH54: 42746.43681 | BI54: 42746.42639
A55: 0 | B55: =IF(Instructions!$C$2="BST",A55,0) -> 0 | C55: 2021-01-12T15:36:00 | D55: 2021-01-12 | F55: 1 | I55: 2 | K55: 42746.65 | L55: 0.99 | M55: LW | N55: 0.786259542 | O55: 15:36:00 | P55: 17:00:00 | Q55: 11:00:00 | R55: 0.7666666667 | S55: 42746.68495 | T55: 1.163358779 | U55: 42746.75093 | V55: 42746.661 | W55: 1.041984733 | X55: 42746.60833 | Y55: 42746.66597 | Z55: 1.05648855 | AA55: 42746.62361 | AB55: 42746.65718 | AC55: 0.8778625954 | AD55: Cls | AE55: 42746.48889 | AF55: 42746.63588 | AG55: 0.8564885496 | AH55: 42746.63079 | AI55: 0.9564885496 | AJ55: 42746.68229 | AK55: 1.241984733 | AL55: 42746.68229 | AM55: 1.241984733 | AN55: 42746.67269 | AO55: 1.241984733 | AP55: 42746.67697 | AQ55: 1.120610687 | AR55: 42746.63958 | AS55: 42746.66389 | AT55: 42746.63958 | AU55: 1.05648855 | AV55: 42746.64491 | AW55: 0.9778625954 | AX55: 42746.63079 | AY55: 0.8564885496 | AZ55: 42746.62731 | BA55: 0.7778625954 | BB55: 42746.62303 | BC55: 0.8778625954 | BD55: 42746.57789 | BE55: 0.7923664122 | BF55: 42746.67431 | BH55: 42746.69167 | BI55: 42746.68125
A56: 0 | B56: =IF(Instructions!$C$2="BST",A56,0) -> 0 | C56: 2021-01-12T21:55:00 | D56: 2021-01-12 | F56: 1 | I56: 2 | K56: 42746.91319 | L56: 5.51 | M56: HW | N56: 0.8869565217 | O56: 21:55:00 | P56: 1 | Q56: 18:00:00 | R56: 0.6527777778 | S56: 42746.92694 | T56: 7.419130435 | U56: 42746.99291 | V56: 42746.92921 | W56: 7.130434783 | X56: 42746.87153 | Y56: 42746.90037 | Z56: 5.464347826 | AA56: 42746.88995 | AB56: 42746.89236 | AC56: 5.064347826 | AD56: Opn | AE56: 42746.77778 | AF56: 42746.89144 | AG56: 4.475652174 | AH56: 42746.86593 | AI56: 4.786956522 | AJ56: 42746.92814 | AK56: 7.319130435 | AL56: 42746.92935 | AM56: 7.307826087 | AN56: 42746.92467 | AO56: 7.030434783 | AP56: 42746.92829 | AQ56: 6.430434783 | AR56: 42746.90278 | AS56: 42746.92361 | AT56: 42746.88677 | AU56: 5.064347826 | AV56: 42746.88677 | AW56: 4.864347826 | AX56: 42746.86473 | AY56: 4.653043478 | AZ56: 42746.86126 | BA56: 4.464347826 | BB56: 42746.85778 | BC56: 4.375652174 | BD56: 42746.81115 | BE56: 4.264347826 | BF56: 42746.90278 | BH56: 42746.95486 | BI56: 42746.94444
A57: 0 | B57: =IF(Instructions!$C$2="BST",A57,0) -> 0 | C57: 2021-01-13T03:59:00 | D57: 2021-01-13 | E57: 2021-01-13 | F57: 1 | G57: Jan | H57: 13 | I57: 3 | J57: Wed | K57: 42747.16597 | L57: 0.98 | M57: LW | N57: 0.7938931298 | O57: 03:59:00 | P57: 05:00:00 | Q57: -0.04166666667 | R57: 0.8305555556 | S57: 42747.20181 | T57: 1.150381679 | U57: 42747.26779 | V57: 42747.17586 | W57: 1.029770992 | X57: 42747.12431 | Y57: 42747.18328 | Z57: 1.047328244 | AA57: 42747.13825 | AB57: 42747.17404 | AC57: 0.8679389313 | AD57: Cls | AE57: 42747.00694 | AF57: 42747.15096 | AG57: 0.8473282443 | AH57: 42747.14632 | AI57: 0.9473282443 | AJ57: 42747.19893 | AK57: 1.229770992 | AL57: 42747.19893 | AM57: 1.229770992 | AN57: 42747.1891 | AO57: 1.229770992 | AP57: 42747.19316 | AQ57: 1.109160305 | AR57: 42747.15556 | AS57: 42747.17986 | AT57: 42747.15556 | AU57: 1.047328244 | AV57: 42747.16132 | AW57: 0.9679389313 | AX57: 42747.14632 | AY57: 0.8473282443 | AZ57: 42747.14284 | BA57: 0.7679389313 | BB57: 42747.13878 | BC57: 0.8679389313 | BD57: 42747.09364 | BE57: 0.7854961832 | BF57: 42747.19028 | BH57: 42747.20764 | BI57: 42747.19722
A58: 0 | B58: =IF(Instructions!$C$2="BST",A58,0) -> 0 | C58: 2021-01-13T10:15:00 | D58: 2021-01-13 | E58: Wed | F58: 1 | I58: 3 | K58: 42747.42708 | L58: 5.72 | M58: HW | N58: 1.069565217 | O58: 10:15:00 | P58: 12:00:00 | Q58: 06:00:00 | R58: 0.7083333333 | S58: 42747.44141 | T58: 7.711304348 | U58: 42747.50738 | V58: 42747.44387 | W58: 7.404347826 | X58: 42747.38542 | Y58: 42747.41464 | Z58: 5.683478261 | AA58: 42747.40422 | AB58: 42747.40625 | AC58: 5.283478261 | AD58: Opn | AE58: 42747.29167 | AF58: 42747.40437 | AG58: 4.676521739 | AH58: 42747.37905 | AI58: 4.969565217 | AJ58: 42747.44242 | AK58: 7.611304348 | AL58: 42747.44343 | AM58: 7.61826087 | AN58: 42747.43895 | AO58: 7.304347826 | AP58: 42747.44198 | AQ58: 6.704347826 | AR58: 42747.41667 | AS58: 42747.4375 | AT58: 42747.39988 | AU58: 5.283478261 | AV58: 42747.39988 | AW58: 5.083478261 | AX58: 42747.37804 | AY58: 4.890434783 | AZ58: 42747.37457 | BA58: 4.683478261 | BB58: 42747.37109 | BC58: 4.576521739 | BD58: 42747.32581 | BE58: 4.483478261 | BF58: 42747.41667 | BH58: 42747.46875 | BI58: 42747.45833
A59: 0 | B59: =IF(Instructions!$C$2="BST",A59,0) -> 0 | C59: 2021-01-13T16:24:00 | D59: 2021-01-13 | F59: 1 | I59: 3 | K59: 42747.68333 | L59: 0.83 | M59: LW | N59: 0.9083969466 | O59: 16:24:00 | P59: 17:00:00 | Q59: 11:00:00 | R59: 0.9 | S59: 42747.72014 | T59: 0.9557251908 | U59: 42747.78611 | V59: 42747.69201 | W59: 0.8465648855 | X59: 42747.64167 | Y59: 42747.70208 | Z59: 0.9099236641 | AA59: 42747.65417 | AB59: 42747.69236 | AC59: 0.7190839695 | AD59: Cls | AE59: 42747.52083 | AF59: 42747.66736 | AG59: 0.7099236641 | AH59: 42747.66319 | AI59: 0.8099236641 | AJ59: 42747.71701 | AK59: 1.046564885 | AL59: 42747.71701 | AM59: 1.046564885 | AN59: 42747.70694 | AO59: 1.046564885 | AP59: 42747.71076 | AQ59: 0.9374045802 | AR59: 42747.67292 | AS59: 42747.69722 | AT59: 42747.67292 | AU59: 0.9099236641 | AV59: 42747.67917 | AW59: 0.8190839695 | AX59: 42747.66319 | AY59: 0.7099236641 | AZ59: 42747.65972 | BA59: 0.6190839695 | BB59: 42747.6559 | BC59: 0.7190839695 | BD59: 42747.61076 | BE59: 0.6824427481 | BF59: 42747.70764 | BH59: 42747.725 | BI59: 42747.71458
A60: 0 | B60: =IF(Instructions!$C$2="BST",A60,0) -> 0 | C60: 2021-01-13T22:42:00 | D60: 2021-01-13 | F60: 1 | I60: 3 | K60: 42747.94583 | L60: 5.55 | M60: HW | N60: 0.9217391304 | O60: 22:42:00 | P60: 1 | Q60: 18:00:00 | R60: 0.7833333333 | S60: 42747.96094 | T60: 7.474782609 | U60: 42748.02691 | V60: 42747.96366 | W60: 7.182608696 | X60: 42747.90417 | Y60: 42747.93391 | Z60: 5.506086957 | AA60: 42747.9235 | AB60: 42747.925 | AC60: 5.106086957 | AD60: Opn | AE60: 42747.81042 | AF60: 42747.92182 | AG60: 4.513913043 | AH60: 42747.89676 | AI60: 4.82173913 | AJ60: 42747.96169 | AK60: 7.374782609 | AL60: 42747.96244 | AM60: 7.366956522 | AN60: 42747.95822 | AO60: 7.082608696 | AP60: 42747.96047 | AQ60: 6.482608696 | AR60: 42747.93542 | AS60: 42747.95625 | AT60: 42747.91759 | AU60: 5.106086957 | AV60: 42747.91759 | AW60: 4.906086957 | AX60: 42747.89601 | AY60: 4.69826087 | AZ60: 42747.89253 | BA60: 4.506086957 | BB60: 42747.88906 | BC60: 4.413913043 | BD60: 42747.8456 | BE60: 4.306086957 | BF60: 42747.93542 | BH60: 42747.9875 | BI60: 42747.97708
A61: 0 | B61: =IF(Instructions!$C$2="BST",A61,0) -> 0 | C61: 2021-01-14T04:44:00 | D61: 2021-01-14 | E61: 2021-01-14 | F61: 1 | G61: Jan | H61: 14 | I61: 4 | J61: Thu | K61: 42748.19722 | L61: 0.95 | M61: LW | N61: 0.8167938931 | O61: 04:44:00 | P61: 05:00:00 | Q61: -0.04166666667 | R61: 0.9555555556 | S61: =IF($M61="HW",$K61+S$6+(S$5-S$6)*$R61,$K61+S$8+(S$7-S$8)*$R61) -> 42748.2348 | T61: 1.111450382 | U61: 42748.30077 | V61: 42748.20494 | W61: 0.993129771 | X61: =IF($M61="HW",$K61+X$6+(X$5-X$6)*$R61,$K61+X$8+(X$7-X$8)*$R61) -> 42748.15556 | Y61: 42748.21713 | Z61: 1.019847328 | AA61: 42748.1669 | AB61: 42748.20702 | AC61: 0.8381679389 | AD61: Cls | AE61: 42748.03958 | AF61: 42748.18048 | AG61: 0.8198473282 | AH61: 42748.1767 | AI61: 0.9198473282 | AJ61: 42748.23148 | AK61: 1.193129771 | AL61: 42748.23148 | AM61: 1.193129771 | AN61: 42748.22122 | AO61: 1.193129771 | AP61: 42748.22485 | AQ61: 1.07480916 | AR61: =IF($M61="HW",$K61+AR$6+(AR$5-AR$6)*$R61,$K61+AR$8+(AR$7-AR$8)*$R61) -> 42748.18681 | AS61: 42748.21111 | AT61: 42748.18681 | AU61: 1.019847328 | AV61: 42748.19344 | AW61: 0.9381679389 | AX61: 42748.1767 | AY61: 0.8198473282 | AZ61: 42748.17323 | BA61: 0.7381679389 | BB61: 42748.1696 | BC61: 0.8381679389 | BD61: 42748.12446 | BE61: 0.7648854962 | BF61: =IF($M61="HW",$K61+BF$6+(BF$5-BF$6)*$R61,$K61+BF$8+(BF$7-BF$8)*$R61) -> 42748.22153 | BH61: 42748.23889 | BI61: 42748.22847
A62: 0 | B62: =IF(Instructions!$C$2="BST",A62,0) -> 0 | C62: 2021-01-14T10:59:00 | D62: 2021-01-14 | E62: Thu | F62: 1 | I62: 4 | K62: 42748.45764 | L62: 5.81 | M62: HW | N62: 1.147826087 | O62: 10:59:00 | P62: 12:00:00 | Q62: 06:00:00 | R62: 0.8305555556 | S62: 42748.47323 | T62: 7.836521739 | U62: 42748.53921 | V62: 42748.47612 | W62: 7.52173913 | X62: 42748.41597 | Y62: 42748.44605 | Z62: 5.777391304 | AA62: 42748.43563 | AB62: 42748.43681 | AC62: 5.377391304 | AD62: Opn | AE62: 42748.32222 | AF62: 42748.4328 | AG62: 4.762608696 | AH62: 42748.40791 | AI62: 5.047826087 | AJ62: 42748.47382 | AK62: 7.736521739 | AL62: 42748.47441 | AM62: 7.751304348 | AN62: 42748.47035 | AO62: 7.42173913 | AP62: 42748.47212 | AQ62: 6.82173913 | AR62: 42748.44722 | AS62: 42748.46806 | AT62: 42748.42874 | AU62: 5.377391304 | AV62: 42748.42874 | AW62: 5.177391304 | AX62: 42748.40732 | AY62: 4.992173913 | AZ62: 42748.40385 | BA62: 4.777391304 | BB62: 42748.40038 | BC62: 4.662608696 | BD62: 42748.35806 | BE62: 4.577391304 | BF62: 42748.44722 | BH62: 42748.49931 | BI62: 42748.48889
A63: 0 | B63: =IF(Instructions!$C$2="BST",A63,0) -> 0 | C63: 2021-01-14T17:09:00 | D63: 2021-01-14 | F63: 1 | I63: 4 | K63: 42748.71458 | L63: 0.76 | M63: LW | N63: 0.9618320611 | O63: 17:09:00 | P63: 17:00:00 | Q63: 23:00:00 | R63: 0.975 | S63: 42748.75243 | T63: 0.8648854962 | U63: 42748.8184 | V63: 42748.72196 | W63: 0.7610687023 | X63: 42748.67292 | Y63: 42748.7349 | Z63: 0.8458015267 | AA63: 42748.68385 | AB63: 42748.72465 | AC63: 0.6496183206 | AD63: Cls | AE63: 42748.55139 | AF63: 42748.69757 | AG63: 0.6458015267 | AH63: 42748.69392 | AI63: 0.7458015267 | AJ63: 42748.74905 | AK63: 0.9610687023 | AL63: 42748.74905 | AM63: 0.9610687023 | AN63: 42748.73872 | AO63: 0.9610687023 | AP63: 42748.74227 | AQ63: 0.8572519084 | AR63: 42748.70417 | AS63: 42748.72847 | AT63: 42748.70417 | AU63: 0.8458015267 | AV63: 42748.71094 | AW63: 0.7496183206 | AX63: 42748.69392 | AY63: 0.6458015267 | AZ63: 42748.69045 | BA63: 0.5496183206 | BB63: 42748.68689 | BC63: 0.6496183206 | BD63: 42748.64175 | BE63: 0.634351145 | BF63: 42748.73889 | BH63: 42748.75625 | BI63: 42748.74583
A64: 0 | B64: =IF(Instructions!$C$2="BST",A64,0) -> 0 | C64: 2021-01-14T23:27:00 | D64: 2021-01-14 | F64: 1 | I64: 4 | K64: 42748.97708 | L64: 5.5 | M64: HW | N64: 0.8782608696 | O64: 23:27:00 | P64: 1 | Q64: 18:00:00 | R64: 0.9083333333 | S64: 42748.99349 | T64: 7.405217391 | U64: 42749.05946 | V64: 42748.99664 | W64: 7.117391304 | X64: 42748.93542 | Y64: 42748.96603 | Z64: 5.453913043 | AA64: 42748.95561 | AB64: 42748.95625 | AC64: 5.053913043 | AD64: Opn | AE64: 42748.84167 | AF64: 42748.9509 | AG64: 4.466086957 | AH64: 42748.92627 | AI64: 4.77826087 | AJ64: 42748.99381 | AK64: 7.305217391 | AL64: 42748.99413 | AM64: 7.293043478 | AN64: 42748.99034 | AO64: 7.017391304 | AP64: 42748.99129 | AQ64: 6.417391304 | AR64: 42748.96667 | AS64: 42748.9875 | AT64: 42748.94711 | AU64: 5.053913043 | AV64: 42748.94711 | AW64: 4.853913043 | AX64: 42748.92595 | AY64: 4.64173913 | AZ64: 42748.92248 | BA64: 4.453913043 | BB64: 42748.91901 | BC64: 4.366086957 | BD64: 42748.87859 | BE64: 4.253913043 | BF64: 42748.96667 | BH64: 42749.01875 | BI64: 42749.00833
A65: 0 | B65: =IF(Instructions!$C$2="BST",A65,0) -> 0 | C65: 2021-01-15T05:27:00 | D65: 2021-01-15 | E65: 2021-01-15 | F65: 1 | G65: Jan | H65: 15 | I65: 5 | J65: Fri | K65: 42749.22708 | L65: 0.99 | M65: LW | N65: 0.786259542 | O65: 05:27:00 | P65: 05:00:00 | Q65: 11:00:00 | R65: 0.925 | S65: 42749.26424 | T65: 1.163358779 | U65: 42749.33021 | V65: 42749.23533 | W65: 1.041984733 | X65: 42749.18542 | Y65: 42749.24635 | Z65: 1.05648855 | AA65: 42749.1974 | AB65: 42749.23646 | AC65: 0.8778625954 | AD65: Cls | AE65: 42749.07083 | AF65: 42749.21076 | AG65: 0.8564885496 | AH65: 42749.20677 | AI65: 0.9564885496 | AJ65: 42749.26102 | AK65: 1.241984733 | AL65: 42749.26102 | AM65: 1.241984733 | AN65: 42749.25087 | AO65: 1.241984733 | AP65: 42749.2546 | AQ65: 1.120610687 | AR65: 42749.21667 | AS65: 42749.24097 | AT65: 42749.21667 | AU65: 1.05648855 | AV65: 42749.22309 | AW65: 0.9778625954 | AX65: 42749.20677 | AY65: 0.8564885496 | AZ65: 42749.2033 | BA65: 0.7778625954 | BB65: 42749.19957 | BC65: 0.8778625954 | BD65: 42749.15443 | BE65: 0.7923664122 | BF65: 42749.25139 | BH65: 42749.26875 | BI65: 42749.25833
A66: 0 | B66: =IF(Instructions!$C$2="BST",A66,0) -> 0 | C66: 2021-01-15T11:41:00 | D66: 2021-01-15 | E66: Fri | F66: 1 | I66: 5 | K66: 42749.48681 | L66: 5.8 | M66: HW | N66: 1.139130435 | O66: 11:41:00 | P66: 12:00:00 | Q66: 06:00:00 | R66: 0.9472222222 | S66: 42749.50362 | T66: 7.822608696 | U66: 42749.56959 | V66: 42749.50691 | W66: 7.508695652 | X66: 42749.44514 | Y66: 42749.47602 | Z66: 5.766956522 | AA66: 42749.46561 | AB66: 42749.46597 | AC66: 5.366956522 | AD66: Opn | AE66: 42749.35139 | AF66: 42749.45994 | AG66: 4.753043478 | AH66: 42749.43546 | AI66: 5.039130435 | AJ66: 42749.5038 | AK66: 7.722608696 | AL66: 42749.50398 | AM66: 7.736521739 | AN66: 42749.50033 | AO66: 7.408695652 | AP66: 42749.50088 | AQ66: 6.808695652 | AR66: 42749.47639 | AS66: 42749.49722 | AT66: 42749.45629 | AU66: 5.366956522 | AV66: 42749.45629 | AW66: 5.166956522 | AX66: 42749.43527 | AY66: 4.980869565 | AZ66: 42749.4318 | BA66: 4.766956522 | BB66: 42749.42833 | BC66: 4.653043478 | BD66: 42749.38885 | BE66: 4.566956522 | BF66: 42749.47639 | BH66: 42749.52847 | BI66: 42749.51806
A67: 0 | B67: =IF(Instructions!$C$2="BST",A67,0) -> 0 | C67: 2021-01-15T17:54:00 | D67: 2021-01-15 | F67: 1 | I67: 5 | K67: 42749.74583 | L67: 0.79 | M67: LW | N67: 0.9389312977 | O67: 17:54:00 | P67: 17:00:00 | Q67: 23:00:00 | R67: 0.85 | S67: 42749.78194 | T67: 0.9038167939 | U67: 42749.84792 | V67: 42749.75538 | W67: 0.7977099237 | X67: 42749.70417 | Y67: 42749.76354 | Z67: 0.8732824427 | AA67: 42749.71771 | AB67: 42749.75417 | AC67: 0.679389313 | AD67: Cls | AE67: 42749.58056 | AF67: 42749.73056 | AG67: 0.6732824427 | AH67: 42749.72604 | AI67: 0.7732824427 | AJ67: 42749.77899 | AK67: 0.9977099237 | AL67: 42749.77899 | AM67: 0.9977099237 | AN67: 42749.7691 | AO67: 0.9977099237 | AP67: 42749.77309 | AQ67: 0.8916030534 | AR67: 42749.73542 | AS67: 42749.75972 | AT67: 42749.73542 | AU67: 0.8732824427 | AV67: 42749.74132 | AW67: 0.779389313 | AX67: 42749.72604 | AY67: 0.6732824427 | AZ67: 42749.72257 | BA67: 0.579389313 | BB67: 42749.71858 | BC67: 0.679389313 | BD67: 42749.67344 | BE67: 0.6549618321 | BF67: 42749.77014 | BH67: 42749.7875 | BI67: 42749.77708
A68: 0 | B68: =IF(Instructions!$C$2="BST",A68,0) -> 0 | C68: 2021-01-16T00:09:00 | D68: 2021-01-16 | E68: 2021-01-16 | F68: 1 | G68: Jan | H68: 16 | I68: 6 | J68: Sat | K68: 42750.00625 | L68: 5.38 | M68: HW | N68: 0.7739130435 | O68: 00:09:00 | P68: 00:00:00 | Q68: 06:00:00 | R68: 0.975 | S68: 42750.02335 | T68: 7.23826087 | U68: 42750.08932 | V68: 42750.02674 | W68: 6.960869565 | X68: 42749.96458 | Y68: 42749.99566 | Z68: 5.328695652 | AA68: 42749.98524 | AB68: 42749.98542 | AC68: 4.928695652 | AD68: Opn | AE68: 42749.87083 | AF68: 42749.97891 | AG68: 4.351304348 | AH68: 42749.95451 | AI68: 4.673913043 | AJ68: 42750.02344 | AK68: 7.13826087 | AL68: 42750.02352 | AM68: 7.115652174 | AN68: 42750.01997 | AO68: 6.860869565 | AP68: 42750.02023 | AQ68: 6.260869565 | AR68: 42749.99583 | AS68: 42750.01667 | AT68: 42749.97535 | AU68: 4.928695652 | AV68: 42749.97535 | AW68: 4.728695652 | AX68: 42749.95443 | AY68: 4.506086957 | AZ68: 42749.95095 | BA68: 4.328695652 | BB68: 42749.94748 | BC68: 4.251304348 | BD68: 42749.90868 | BE68: 4.128695652 | BF68: 42749.99583 | BH68: 42750.04792 | BI68: 42750.0375
A69: 0 | B69: =IF(Instructions!$C$2="BST",A69,0) -> 0 | C69: 2021-01-16T06:09:00 | D69: 2021-01-16 | E69: Sat | F69: 1 | I69: 6 | K69: 42750.25625 | L69: 1.1 | M69: LW | N69: 0.7022900763 | O69: 06:09:00 | P69: 05:00:00 | Q69: 11:00:00 | R69: 0.8083333333 | S69: 42750.29178 | T69: 1.30610687 | U69: 42750.35775 | V69: 42750.26652 | W69: 1.176335878 | X69: 42750.21458 | Y69: 42750.27309 | Z69: 1.157251908 | AA69: 42750.22899 | AB69: 42750.264 | AC69: 0.9870229008 | AD69: Cls | AE69: 42750.1 | AF69: 42750.24155 | AG69: 0.9572519084 | AH69: 42750.23675 | AI69: 1.057251908 | AJ69: 42750.28898 | AK69: 1.376335878 | AL69: 42750.28898 | AM69: 1.376335878 | AN69: 42750.27922 | AO69: 1.376335878 | AP69: 42750.28336 | AQ69: 1.246564885 | AR69: 42750.24583 | AS69: 42750.27014 | AT69: 42750.24583 | AU69: 1.157251908 | AV69: 42750.25145 | AW69: 1.087022901 | AX69: 42750.23675 | AY69: 0.9572519084 | AZ69: 42750.23328 | BA69: 0.8870229008 | BB69: 42750.22914 | BC69: 0.9870229008 | BD69: 42750.184 | BE69: 0.8679389313 | BF69: 42750.28056 | BH69: 42750.29792 | BI69: 42750.2875
A70: 0 | B70: =IF(Instructions!$C$2="BST",A70,0) -> 0 | C70: 2021-01-16T12:22:00 | D70: 2021-01-16 | F70: 1 | I70: 6 | K70: 42750.51528 | L70: 5.71 | M70: HW | N70: 1.060869565 | O70: 12:22:00 | P70: 12:00:00 | Q70: 18:00:00 | R70: 0.9388888889 | S70: 42750.532 | T70: 7.697391304 | U70: 42750.59797 | V70: 42750.53526 | W70: 7.391304348 | X70: 42750.47361 | Y70: 42750.50444 | Z70: 5.673043478 | AA70: 42750.49402 | AB70: 42750.49444 | AC70: 5.273043478 | AD70: Opn | AE70: 42750.37986 | AF70: 42750.48856 | AG70: 4.666956522 | AH70: 42750.46404 | AI70: 4.960869565 | AJ70: 42750.53221 | AK70: 7.597391304 | AL70: 42750.53243 | AM70: 7.603478261 | AN70: 42750.52874 | AO70: 7.291304348 | AP70: 42750.52938 | AQ70: 6.691304348 | AR70: 42750.50486 | AS70: 42750.52569 | AT70: 42750.48488 | AU70: 5.273043478 | AV70: 42750.48488 | AW70: 5.073043478 | AX70: 42750.46383 | AY70: 4.879130435 | AZ70: 42750.46036 | BA70: 4.673043478 | BB70: 42750.45689 | BC70: 4.566956522 | BD70: 42750.41721 | BE70: 4.473043478 | BF70: 42750.50486 | BH70: 42750.55694 | BI70: 42750.54653
A71: 0 | B71: =IF(Instructions!$C$2="BST",A71,0) -> 0 | C71: 2021-01-16T18:36:00 | D71: 2021-01-16 | F71: 1 | I71: 6 | K71: 42750.775 | L71: 0.92 | M71: LW | N71: 0.8396946565 | O71: 18:36:00 | P71: 17:00:00 | Q71: 23:00:00 | R71: 0.7333333333 | S71: 42750.80949 | T71: 1.072519084 | U71: 42750.87546 | V71: 42750.78657 | W71: 0.9564885496 | X71: 42750.73333 | Y71: 42750.79028 | Z71: 0.9923664122 | AA71: 42750.74931 | AB71: 42750.78171 | AC71: 0.8083969466 | AD71: Cls | AE71: 42750.60903 | AF71: 42750.76134 | AG71: 0.7923664122 | AH71: 42750.75602 | AI71: 0.8923664122 | AJ71: 42750.80694 | AK71: 1.15648855 | AL71: 42750.80694 | AM71: 1.15648855 | AN71: 42750.79745 | AO71: 1.15648855 | AP71: 42750.80185 | AQ71: 1.040458015 | AR71: 42750.76458 | AS71: 42750.78889 | AT71: 42750.76458 | AU71: 0.9923664122 | AV71: 42750.76968 | AW71: 0.9083969466 | AX71: 42750.75602 | AY71: 0.7923664122 | AZ71: 42750.75255 | BA71: 0.7083969466 | BB71: 42750.74815 | BC71: 0.8083969466 | BD71: 42750.70301 | BE71: 0.7442748092 | BF71: 42750.79931 | BH71: 42750.81667 | BI71: 42750.80625
A72: 0 | B72: =IF(Instructions!$C$2="BST",A72,0) -> 0 | C72: 2021-01-17T00:51:00 | D72: 2021-01-17 | E72: 2021-01-17 | F72: 1 | G72: Jan | H72: 17 | I72: 7 | J72: Sun | K72: 42751.03542 | L72: 5.2 | M72: HW | N72: 0.6173913043 | O72: 00:51:00 | P72: 00:00:00 | Q72: 06:00:00 | R72: 0.8583333333 | S72: 42751.0513 | T72: 6.987826087 | U72: 42751.11727 | V72: 42751.05428 | W72: 6.726086957 | X72: 42750.99375 | Y72: 42751.02402 | Z72: 5.140869565 | AA72: 42751.0136 | AB72: 42751.01458 | AC72: 4.740869565 | AD72: Opn | AE72: 42750.9 | AF72: 42751.0101 | AG72: 4.179130435 | AH72: 42750.9853 | AI72: 4.517391304 | AJ72: 42751.05179 | AK72: 6.887826087 | AL72: 42751.05229 | AM72: 6.849565217 | AN72: 42751.04832 | AO72: 6.626086957 | AP72: 42751.0498 | AQ72: 6.026086957 | AR72: 42751.025 | AS72: 42751.04583 | AT72: 42751.00613 | AU72: 4.740869565 | AV72: 42751.00613 | AW72: 4.540869565 | AX72: 42750.98481 | AY72: 4.302608696 | AZ72: 42750.98134 | BA72: 4.140869565 | BB72: 42750.97786 | BC72: 4.079130435 | BD72: 42750.93623 | BE72: 3.940869565 | BF72: 42751.025 | BH72: 42751.07708 | BI72: 42751.06667
A73: 0 | B73: =IF(Instructions!$C$2="BST",A73,0) -> 0 | C73: 2021-01-17T06:50:00 | D73: 2021-01-17 | E73: Sun | F73: 1 | I73: 7 | K73: 42751.28472 | L73: 1.28 | M73: LW | N73: 0.5648854962 | O73: 06:50:00 | P73: 05:00:00 | Q73: 11:00:00 | R73: 0.6944444445 | S73: 42751.31867 | T73: 1.539694656 | U73: 42751.38465 | V73: 42751.29697 | W73: 1.396183206 | X73: 42751.24306 | Y73: 42751.29919 | Z73: 1.322137405 | AA73: 42751.25984 | AB73: 42751.2909 | AC73: 1.165648855 | AD73: Cls | AE73: 42751.12917 | AF73: 42751.2716 | AG73: 1.122137405 | AH73: 42751.26601 | AI73: 1.222137405 | AJ73: 42751.31626 | AK73: 1.596183206 | AL73: 42751.31626 | AM73: 1.596183206 | AN73: 42751.30691 | AO73: 1.596183206 | AP73: 42751.31144 | AQ73: 1.452671756 | AR73: 42751.27431 | AS73: 42751.29861 | AT73: 42751.27431 | AU73: 1.322137405 | AV73: 42751.27913 | AW73: 1.265648855 | AX73: 42751.26601 | AY73: 1.122137405 | AZ73: 42751.26254 | BA73: 1.065648855 | BB73: 42751.25801 | BC73: 1.165648855 | BD73: 42751.21287 | BE73: 0.9916030534 | BF73: 42751.30903 | BH73: 42751.32639 | BI73: 42751.31597
A74: 0 | B74: =IF(Instructions!$C$2="BST",A74,0) -> 0 | C74: 2021-01-17T13:02:00 | D74: 2021-01-17 | F74: 1 | I74: 7 | K74: 42751.54306 | L74: 5.54 | M74: HW | N74: 0.9130434783 | O74: 13:02:00 | P74: 12:00:00 | Q74: 18:00:00 | R74: 0.8277777778 | S74: 42751.55862 | T74: 7.460869565 | U74: 42751.62459 | V74: 42751.5615 | W74: 7.169565217 | X74: 42751.50139 | Y74: 42751.53144 | Z74: =IF($M74="HW",Y$2+(Y$1-Y$2)*$N74,Y$3+(Y$4-Y$3)*$N74) -> 5.495652174 | AA74: 42751.52103 | AB74: 42751.52222 | AC74: =IF($M74="HW",AB$2+(AB$1-AB$2)*$N74,AB$3+(AB$4-AB$3)*$N74) -> 5.095652174 | AD74: Opn | AE74: 42751.40764 | AF74: 42751.51827 | AG74: =IF($M74="HW",AF$2+(AF$1-AF$2)*$N74,AF$3+(AF$4-AF$3)*$N74) -> 4.504347826 | AH74: 42751.49336 | AI74: =IF($M74="HW",AH$2+(AH$1-AH$2)*$N74,AH$3+(AH$4-AH$3)*$N74) -> 4.813043478 | AJ74: 42751.55922 | AK74: =IF($M74="HW",AJ$2+(AJ$1-AJ$2)*$N74,AJ$3+(AJ$4-AJ$3)*$N74) -> 7.360869565 | AL74: 42751.55982 | AM74: =IF($M74="HW",AL$2+(AL$1-AL$2)*$N74,AL$3+(AL$4-AL$3)*$N74) -> 7.352173913 | AN74: 42751.55575 | AO74: =IF($M74="HW",AN$2+(AN$1-AN$2)*$N74,AN$3+(AN$4-AN$3)*$N74) -> 7.069565217 | AP74: 42751.55754 | AQ74: =IF($M74="HW",AP$2+(AP$1-AP$2)*$N74,AP$3+(AP$4-AP$3)*$N74) -> 6.469565217 | AR74: 42751.53264 | AS74: 42751.55347 | AT74: 42751.5142 | AU74: =IF($M74="HW",AT$2+(AT$1-AT$2)*$N74,AT$3+(AT$4-AT$3)*$N74) -> 5.095652174 | AV74: 42751.5142 | AW74: =IF($M74="HW",AV$2+(AV$1-AV$2)*$N74,AV$3+(AV$4-AV$3)*$N74) -> 4.895652174 | AX74: 42751.49277 | AY74: =IF($M74="HW",AX$2+(AX$1-AX$2)*$N74,AX$3+(AX$4-AX$3)*$N74) -> 4.686956522 | AZ74: 42751.48929 | BA74: =IF($M74="HW",AZ$2+(AZ$1-AZ$2)*$N74,AZ$3+(AZ$4-AZ$3)*$N74) -> 4.495652174 | BB74: 42751.48582 | BC74: =IF($M74="HW",BB$2+(BB$1-BB$2)*$N74,BB$3+(BB$4-BB$3)*$N74) -> 4.404347826 | BD74: 42751.44344 | BE74: =IF($M74="HW",BD$2+(BD$1-BD$2)*$N74,BD$3+(BD$4-BD$3)*$N74) -> 4.295652174 | BF74: 42751.53264 | BH74: 42751.58472 | BI74: 42751.57431
A75: 0 | B75: =IF(Instructions!$C$2="BST",A75,0) -> 0 | C75: 2021-01-17T19:18:00 | D75: 2021-01-17 | F75: 1 | I75: 7 | K75: 42751.80417 | L75: 1.12 | M75: LW | N75: =IF(M75="HW",(L75-K$2)/(K$1-K$2),(L75-K$3)/(K$4-K$3)) -> 0.6870229008 | O75: 19:18:00 | P75: =IF(M75="HW",IF(AND(O75>=L$5,O75<L$6),L$5,IF(AND(O75>=L$6,O75<M$5),M$5,IF(AND(O75>=M$5,O75<M$6),M$5,IF(O75>=M$6,L$5+1,L$5)))),IF(AND(O75>=L$7,O75<L$8),L$7,IF(AND(O75>=L$8,O75<M$7),M$7,IF(AND(O75>=M$7,O75<M$8),M$7,IF(O75>=M$8,L$7+1,L$7))))) -> 17:00:00 | Q75: =IF(M75="HW",IF(AND(O75>=L$5,O75<L$6),L$6,IF(AND(O75>=L$6,O75<M$5),L$6,IF(AND(O75>=M$5,O75<M$6),M$6,IF(O75>=M$6,M$6,M$6-1)))),IF(AND(O75>=L$7,O75<L$8),L$8,IF(AND(O75>=L$8,O75<M$7),L$8,IF(AND(O75>=M$7,O75<M$8),M$8,IF(O75>=M$8,M$8,M$8-1))))) -> 23:00:00 | R75: 0.6166666667 | S75: 42751.83704 | T75: =IF($M75="HW",S$2+(S$1-S$2)*$N75,S$3+(S$4-S$3)*$N75) -> 1.332061069 | U75: 42751.90301 | V75: 42751.81777 | W75: =IF($M75="HW",V$2+(V$1-V$2)*$N75,V$3+(V$4-V$3)*$N75) -> 1.200763359 | X75: 42751.7625 | Y75: 42751.81701 | Z75: 1.175572519 | AA75: 42751.7809 | AB75: =IF($M75="HW",$K75+AB$6+(AB$5-AB$6)*$R75,$K75+AB$8+(AB$7-AB$8)*$R75) -> 42751.80926 | AC75: 1.006870229 | AD75: =IF($M75="HW","Opn","Cls") -> Cls | AE75: 42751.63681 | AF75: =IF($M75="HW",$K75+AF$6+(AF$5-AF$6)*$R75,$K75+AF$8+(AF$7-AF$8)*$R75) -> 42751.79213 | AG75: 0.9755725191 | AH75: =IF($M75="HW",$K75+AH$6+(AH$5-AH$6)*$R75,$K75+AH$8+(AH$7-AH$8)*$R75) -> 42751.786 | AI75: 1.075572519 | AJ75: =IF($M75="HW",$K75+AJ$6+(AJ$5-AJ$6)*$R75,$K75+AJ$8+(AJ$7-AJ$8)*$R75) -> 42751.8349 | AK75: 1.400763359 | AL75: =IF($M75="HW",$K75+AL$6+(AL$5-AL$6)*$R75,$K75+AL$8+(AL$7-AL$8)*$R75) -> 42751.8349 | AM75: 1.400763359 | AN75: =IF($M75="HW",$K75+AN$6+(AN$5-AN$6)*$R75,$K75+AN$8+(AN$7-AN$8)*$R75) -> 42751.82581 | AO75: 1.400763359 | AP75: =IF($M75="HW",$K75+AP$6+(AP$5-AP$6)*$R75,$K75+AP$8+(AP$7-AP$8)*$R75) -> 42751.83061 | AQ75: 1.269465649 | AR75: 42751.79375 | AS75: 42751.81806 | AT75: =IF($M75="HW",$K75+AT$6+(AT$5-AT$6)*$R75,$K75+AT$8+(AT$7-AT$8)*$R75) -> 42751.79375 | AU75: 1.175572519 | AV75: =IF($M75="HW",$K75+AV$6+(AV$5-AV$6)*$R75,$K75+AV$8+(AV$7-AV$8)*$R75) -> 42751.79803 | AW75: 1.106870229 | AX75: =IF($M75="HW",$K75+AX$6+(AX$5-AX$6)*$R75,$K75+AX$8+(AX$7-AX$8)*$R75) -> 42751.786 | AY75: 0.9755725191 | AZ75: =IF($M75="HW",$K75+AZ$6+(AZ$5-AZ$6)*$R75,$K75+AZ$8+(AZ$7-AZ$8)*$R75) -> 42751.78252 | BA75: 0.906870229 | BB75: =IF($M75="HW",$K75+BB$6+(BB$5-BB$6)*$R75,$K75+BB$8+(BB$7-BB$8)*$R75) -> 42751.77772 | BC75: 1.006870229 | BD75: =IF($M75="HW",$K75+BD$6+(BD$5-BD$6)*$R75,$K75+BD$8+(BD$7-BD$8)*$R75) -> 42751.73258 | BE75: 0.8816793893 | BF75: 42751.82847 | BH75: 42751.84583 | BI75: 42751.83542
A76: 0 | B76: =IF(Instructions!$C$2="BST",A76,0) -> 0 | C76: 2021-01-18T01:30:00 | D76: =DATE(YEAR(K76),MONTH(K76),DAY(K76)) -> 2021-01-18 | E76: 2021-01-18 | F76: =MONTH(K76) -> 1 | G76: =IF(H76="","",TEXT(F76*29,"mmm")) -> Jan | H76: =IF(I76=I75,"",DAY(K76)) -> 18 | I76: =WEEKDAY(K76,2) -> 1 | J76: =IF(I76=I75,"",TEXT(I76+2,"ddd")) -> Mon | K76: =C76+B76/24 -> 42752.0625 | L76: 4.98 | M76: HW | N76: 0.4260869565 | O76: =C76-INT(C76) -> 01:30:00 | P76: 00:00:00 | Q76: 06:00:00 | R76: =ABS((O76-Q76)/(P76-Q76)) -> 0.75 | S76: 42752.07726 | T76: 6.68173913 | U76: 42752.14323 | V76: 42752.07986 | W76: 6.439130435 | X76: 42752.02083 | Y76: 42752.05035 | Z76: 4.911304348 | AA76: =IF($M76="HW",$K76+AA$6+(AA$5-AA$6)*$R76,$K76+AA$8+(AA$7-AA$8)*$R76) -> 42752.03993 | AB76: 42752.04167 | AC76: 4.511304348 | AD76: Opn | AE76: =IF($M76="HW",$AB76-AD$8,$AB75+AD$8) -> 42751.92708 | AF76: 42752.03906 | AG76: 3.968695652 | AH76: 42752.01389 | AI76: 4.326086957 | AJ76: 42752.07812 | AK76: 6.58173913 | AL76: 42752.07899 | AM76: 6.524347826 | AN76: 42752.07465 | AO76: 6.339130435 | AP76: 42752.07726 | AQ76: 5.739130435 | AR76: 42752.05208 | AS76: 42752.07292 | AT76: 42752.03472 | AU76: 4.511304348 | AV76: 42752.03472 | AW76: 4.311304348 | AX76: 42752.01302 | AY76: 4.053913043 | AZ76: 42752.00955 | BA76: 3.911304348 | BB76: 42752.00608 | BC76: 3.868695652 | BD76: 42751.96181 | BE76: 3.711304348 | BF76: 42752.05208 | BH76: 42752.10417 | BI76: 42752.09375
A77: 0 | B77: =IF(Instructions!$C$2="BST",A77,0) -> 0 | C77: 2021-01-18T07:30:00 | D77: 2021-01-18 | E77: =IF(D77=D76,IF(J76="","",J76),D77) -> Mon | F77: 1 | I77: 1 | K77: 42752.3125 | L77: 1.49 | M77: LW | N77: 0.4045801527 | O77: 07:30:00 | P77: 05:00:00 | Q77: 11:00:00 | R77: 0.5833333333 | S77: =IF($M77="HW",$K77+S$6+(S$5-S$6)*$R77,$K77+S$8+(S$7-S$8)*$R77) -> 42752.34491 | T77: 1.81221374 | U77: 42752.41088 | V77: 42752.32668 | W77: 1.652671756 | X77: =IF($M77="HW",$K77+X$6+(X$5-X$6)*$R77,$K77+X$8+(X$7-X$8)*$R77) -> 42752.27083 | Y77: 42752.32465 | Z77: 1.514503817 | AA77: 42752.28993 | AB77: 42752.31713 | AC77: 1.374045802 | AD77: Cls | AE77: 42752.15625 | AF77: 42752.30093 | AG77: 1.314503817 | AH77: 42752.29456 | AI77: 1.414503817 | AJ77: 42752.34288 | AK77: 1.852671756 | AL77: 42752.34288 | AM77: 1.852671756 | AN77: 42752.33391 | AO77: 1.852671756 | AP77: 42752.33883 | AQ77: 1.693129771 | AR77: =IF($M77="HW",$K77+AR$6+(AR$5-AR$6)*$R77,$K77+AR$8+(AR$7-AR$8)*$R77) -> 42752.30208 | AS77: 42752.32639 | AT77: 42752.30208 | AU77: 1.514503817 | AV77: 42752.30613 | AW77: 1.474045802 | AX77: 42752.29456 | AY77: 1.314503817 | AZ77: 42752.29109 | BA77: 1.274045802 | BB77: 42752.28617 | BC77: 1.374045802 | BD77: 42752.24103 | BE77: 1.135877863 | BF77: =IF($M77="HW",$K77+BF$6+(BF$5-BF$6)*$R77,$K77+BF$8+(BF$7-BF$8)*$R77) -> 42752.33681 | BH77: 42752.35417 | BI77: 42752.34375
A78: 0 | B78: =IF(Instructions!$C$2="BST",A78,0) -> 0 | C78: 2021-01-18T13:41:00 | D78: 2021-01-18 | F78: 1 | I78: 1 | K78: 42752.57014 | L78: 5.33 | M78: HW | N78: 0.7304347826 | O78: 13:41:00 | P78: 12:00:00 | Q78: 18:00:00 | R78: 0.7194444444 | S78: 42752.58458 | T78: 7.168695652 | U78: 42752.65055 | V78: 42752.58708 | W78: 6.895652174 | X78: 42752.52847 | Y78: 42752.55777 | Z78: 5.276521739 | AA78: 42752.54736 | AB78: 42752.54931 | AC78: 4.876521739 | AD78: Opn | AE78: 42752.43472 | AF78: 42752.54723 | AG78: 4.303478261 | AH78: 42752.52195 | AI78: 4.630434783 | AJ78: 42752.58555 | AK78: 7.068695652 | AL78: 42752.58653 | AM78: 7.04173913 | AN78: 42752.58208 | AO78: 6.795652174 | AP78: 42752.585 | AQ78: 6.195652174 | AR78: 42752.55972 | AS78: 42752.58056 | AT78: 42752.54279 | AU78: 4.876521739 | AV78: 42752.54279 | AW78: 4.676521739 | AX78: 42752.52098 | AY78: 4.449565217 | AZ78: 42752.51751 | BA78: 4.276521739 | BB78: 42752.51403 | BC78: 4.203478261 | BD78: 42752.46902 | BE78: 4.076521739 | BF78: 42752.55972 | BH78: 42752.61181 | BI78: 42752.60139
A79: 0 | B79: =IF(Instructions!$C$2="BST",A79,0) -> 0 | C79: 2021-01-18T19:59:00 | D79: 2021-01-18 | F79: 1 | I79: 1 | K79: 42752.83264 | L79: 1.36 | M79: LW | N79: 0.5038167939 | O79: 19:59:00 | P79: 17:00:00 | Q79: 23:00:00 | R79: 0.5027777778 | S79: 42752.86393 | T79: 1.64351145 | U79: 42752.9299 | V79: 42752.84822 | W79: 1.49389313 | X79: 42752.79097 | Y79: 42752.84311 | Z79: 1.395419847 | AA79: 42752.81175 | AB79: 42752.83615 | AC79: 1.245038168 | AD79: Cls | AE79: 42752.66389 | AF79: 42752.82218 | AG79: 1.195419847 | AH79: 42752.81526 | AI79: 1.295419847 | AJ79: 42752.86218 | AK79: 1.69389313 | AL79: 42752.86218 | AM79: 1.69389313 | AN79: 42752.85349 | AO79: 1.69389313 | AP79: 42752.85869 | AQ79: 1.544274809 | AR79: 42752.82222 | AS79: 42752.84653 | AT79: 42752.82222 | AU79: 1.395419847 | AV79: 42752.82571 | AW79: 1.345038168 | AX79: 42752.81526 | AY79: 1.195419847 | AZ79: 42752.81179 | BA79: 1.145038168 | BB79: 42752.80659 | BC79: 1.245038168 | BD79: 42752.76145 | BE79: 1.046564885 | BF79: 42752.85694 | BH79: 42752.87431 | BI79: 42752.86389
A80: 0 | B80: =IF(Instructions!$C$2="BST",A80,0) -> 0 | C80: 2021-01-19T02:10:00 | D80: 2021-01-19 | E80: 2021-01-19 | F80: 1 | G80: Jan | H80: 19 | I80: 2 | J80: Tue | K80: 42753.09028 | L80: 4.77 | M80: HW | N80: 0.2434782609 | O80: 02:10:00 | P80: 00:00:00 | Q80: 06:00:00 | R80: 0.6388888889 | S80: 42753.10388 | T80: 6.389565217 | U80: 42753.16985 | V80: 42753.1061 | W80: 6.165217391 | X80: 42753.04861 | Y80: 42753.07735 | Z80: 4.692173913 | AA80: 42753.06694 | AB80: 42753.06944 | AC80: 4.292173913 | AD80: Opn | AE80: 42752.95486 | AF80: 42753.06877 | AG80: 3.767826087 | AH80: 42753.04321 | AI80: 4.143478261 | AJ80: 42753.10513 | AK80: 6.289565217 | AL80: 42753.10639 | AM80: 6.213913043 | AN80: 42753.10166 | AO80: 6.065217391 | AP80: 42753.10542 | AQ80: 5.465217391 | AR80: 42753.07986 | AS80: 42753.10069 | AT80: 42753.06404 | AU80: 4.292173913 | AV80: 42753.06404 | AW80: 4.092173913 | AX80: 42753.04196 | AY80: 3.816521739 | AZ80: 42753.03848 | BA80: 3.692173913 | BB80: 42753.03501 | BC80: 3.667826087 | BD80: 42752.98804 | BE80: 3.492173913 | BF80: 42753.07986 | BH80: 42753.13194 | BI80: 42753.12153
A81: 0 | B81: =IF(Instructions!$C$2="BST",A81,0) -> 0 | C81: 2021-01-19T08:11:00 | D81: 2021-01-19 | E81: Tue | F81: 1 | I81: 2 | K81: 42753.34097 | L81: 1.73 | M81: LW | N81: 0.2213740458 | O81: 08:11:00 | P81: 05:00:00 | Q81: 11:00:00 | R81: 0.4694444445 | S81: 42753.3718 | T81: 2.123664122 | U81: 42753.43777 | V81: 42753.35713 | W81: 1.945801527 | X81: 42753.29931 | Y81: 42753.35075 | Z81: 1.734351145 | AA81: 42753.32078 | AB81: 42753.34402 | AC81: 1.61221374 | AD81: Cls | AE81: 42753.18403 | AF81: 42753.33098 | AG81: 1.534351145 | AH81: 42753.32382 | AI81: 1.634351145 | AJ81: 42753.37017 | AK81: 2.145801527 | AL81: 42753.37017 | AM81: 2.145801527 | AN81: 42753.36159 | AO81: 2.145801527 | AP81: 42753.36691 | AQ81: 1.967938931 | AR81: 42753.33056 | AS81: 42753.35486 | AT81: 42753.33056 | AU81: 1.734351145 | AV81: 42753.33382 | AW81: 1.71221374 | AX81: 42753.32382 | AY81: 1.534351145 | AZ81: 42753.32035 | BA81: 1.51221374 | BB81: 42753.31504 | BC81: 1.61221374 | BD81: 42753.2699 | BE81: 1.300763359 | BF81: 42753.36528 | BH81: 42753.38264 | BI81: 42753.37222
A82: 0 | B82: =IF(Instructions!$C$2="BST",A82,0) -> 0 | C82: 2021-01-19T14:22:00 | D82: 2021-01-19 | F82: 1 | I82: 2 | K82: 42753.59861 | L82: 5.09 | M82: HW | N82: 0.5217391304 | O82: 14:22:00 | P82: 12:00:00 | Q82: 18:00:00 | R82: 0.6055555556 | S82: 42753.61186 | T82: 6.834782609 | U82: 42753.67784 | V82: 42753.61397 | W82: 6.582608696 | X82: 42753.55694 | Y82: 42753.58546 | Z82: 5.026086957 | AA82: 42753.57504 | AB82: 42753.57778 | AC82: 4.626086957 | AD82: Opn | AE82: 42753.46319 | AF82: 42753.57768 | AG82: 4.073913043 | AH82: 42753.55201 | AI82: 4.42173913 | AJ82: 42753.61323 | AK82: 6.734782609 | AL82: 42753.6146 | AM82: 6.686956522 | AN82: 42753.60976 | AO82: 6.482608696 | AP82: 42753.61387 | AQ82: 5.882608696 | AR82: 42753.58819 | AS82: 42753.60903 | AT82: 42753.57284 | AU82: 4.626086957 | AV82: 42753.57284 | AW82: 4.426086957 | AX82: 42753.55064 | AY82: 4.17826087 | AZ82: 42753.54716 | BA82: 4.026086957 | BB82: 42753.54369 | BC82: 3.973913043 | BD82: 42753.49591 | BE82: 3.826086957 | BF82: 42753.58819 | BH82: 42753.64028 | BI82: 42753.62986
A83: 0 | B83: =IF(Instructions!$C$2="BST",A83,0) -> 0 | C83: 2021-01-19T20:42:00 | D83: 2021-01-19 | F83: 1 | I83: 2 | K83: 42753.8625 | L83: 1.62 | M83: LW | N83: 0.3053435115 | O83: 20:42:00 | P83: 17:00:00 | Q83: 23:00:00 | R83: 0.3833333333 | S83: 42753.89213 | T83: 1.980916031 | U83: 42753.9581 | V83: 42753.88015 | W83: 1.811450382 | X83: 42753.82083 | Y83: 42753.87049 | Z83: 1.633587786 | AA83: 42753.8441 | AB83: 42753.86435 | AC83: 1.503053435 | AD83: Cls | AE83: 42753.69236 | AF83: 42753.8537 | AG83: 1.433587786 | AH83: 42753.84595 | AI83: 1.533587786 | AJ83: 42753.8908 | AK83: 2.011450382 | AL83: 42753.8908 | AM83: 2.011450382 | AN83: 42753.88252 | AO83: 2.011450382 | AP83: 42753.88814 | AQ83: 1.841984733 | AR83: 42753.85208 | AS83: 42753.87639 | AT83: 42753.85208 | AU83: 1.633587786 | AV83: 42753.85475 | AW83: 1.603053435 | AX83: 42753.84595 | AY83: 1.433587786 | AZ83: 42753.84248 | BA83: 1.403053435 | BB83: 42753.83686 | BC83: 1.503053435 | BD83: 42753.79172 | BE83: 1.22519084 | BF83: 42753.88681 | BH83: 42753.90417 | BI83: 42753.89375
A84: 0 | B84: =IF(Instructions!$C$2="BST",A84,0) -> 0 | C84: 2021-01-20T02:53:00 | D84: 2021-01-20 | E84: 2021-01-20 | F84: 1 | G84: Jan | H84: 20 | I84: 3 | J84: Wed | K84: 42754.12014 | L84: 4.57 | M84: HW | N84: 0.06956521739 | O84: 02:53:00 | P84: 00:00:00 | Q84: 06:00:00 | R84: 0.5194444444 | S84: 42754.13249 | T84: 6.111304348 | U84: 42754.19847 | V84: 42754.1343 | W84: 5.904347826 | X84: 42754.07847 | Y84: 42754.10639 | Z84: 4.483478261 | AA84: 42754.09597 | AB84: 42754.09931 | AC84: 4.083478261 | AD84: Opn | AE84: 42753.98472 | AF84: 42754.1007 | AG84: 3.576521739 | AH84: 42754.07473 | AI84: 3.969565217 | AJ84: 42754.13416 | AK84: 6.011304348 | AL84: 42754.13583 | AM84: 5.91826087 | AN84: 42754.13069 | AO84: 5.804347826 | AP84: 42754.1357 | AQ84: 5.204347826 | AR84: 42754.10972 | AS84: 42754.13056 | AT84: 42754.09556 | AU84: 4.083478261 | AV84: 42754.09556 | AW84: 3.883478261 | AX84: 42754.07306 | AY84: 3.590434783 | AZ84: 42754.06959 | BA84: 3.483478261 | BB84: 42754.06612 | BC84: 3.476521739 | BD84: 42754.01624 | BE84: 3.283478261 | BF84: 42754.10972 | BH84: 42754.16181 | BI84: 42754.15139
A85: 0 | B85: =IF(Instructions!$C$2="BST",A85,0) -> 0 | C85: 2021-01-20T08:56:00 | D85: 2021-01-20 | E85: Wed | F85: 1 | I85: 3 | K85: 42754.37222 | L85: 1.98 | M85: LW | N85: 0.03053435115 | O85: 08:56:00 | P85: 05:00:00 | Q85: 11:00:00 | R85: 0.3444444445 | S85: 42754.40131 | T85: 2.448091603 | U85: 42754.46728 | V85: 42754.39055 | W85: 2.251145038 | X85: 42754.33056 | Y85: 42754.3794 | Z85: 1.963358779 | AA85: 42754.35463 | AB85: 42754.37353 | AC85: 1.860305344 | AD85: Cls | AE85: 42754.21389 | AF85: 42754.36397 | AG85: 1.763358779 | AH85: 42754.35594 | AI85: 1.863358779 | AJ85: 42754.40012 | AK85: 2.451145038 | AL85: 42754.40012 | AM85: 2.451145038 | AN85: 42754.39198 | AO85: 2.451145038 | AP85: 42754.39772 | AQ85: 2.254198473 | AR85: 42754.36181 | AS85: 42754.38611 | AT85: 42754.36181 | AU85: 1.963358779 | AV85: 42754.3642 | AW85: 1.960305344 | AX85: 42754.35594 | AY85: 1.763358779 | AZ85: 42754.35247 | BA85: 1.760305344 | BB85: 42754.34672 | BC85: 1.860305344 | BD85: 42754.30158 | BE85: 1.472519084 | BF85: 42754.39653 | BH85: 42754.41389 | BI85: 42754.40347
A86: 0 | B86: =IF(Instructions!$C$2="BST",A86,0) -> 0 | C86: 2021-01-20T15:07:00 | D86: 2021-01-20 | F86: 1 | I86: 3 | K86: 42754.62986 | L86: 4.85 | M86: HW | N86: 0.3130434783 | O86: 15:07:00 | P86: 12:00:00 | Q86: 18:00:00 | R86: 0.4805555556 | S86: 42754.64181 | T86: 6.500869565 | U86: 42754.70778 | V86: 42754.64348 | W86: 6.269565217 | X86: 42754.58819 | Y86: 42754.61584 | Z86: 4.775652174 | AA86: 42754.60542 | AB86: 42754.60903 | AC86: 4.375652174 | AD86: Opn | AE86: 42754.49444 | AF86: 42754.6111 | AG86: 3.844347826 | AH86: 42754.58499 | AI86: 4.213043478 | AJ86: 42754.64361 | AK86: 6.400869565 | AL86: 42754.64542 | AM86: 6.332173913 | AN86: 42754.64014 | AO86: 6.169565217 | AP86: 42754.64555 | AQ86: 5.569565217 | AR86: 42754.61944 | AS86: 42754.64028 | AT86: 42754.60583 | AU86: 4.375652174 | AV86: 42754.60583 | AW86: 4.175652174 | AX86: 42754.58319 | AY86: 3.906956522 | AZ86: 42754.57972 | BA86: 3.775652174 | BB86: 42754.57624 | BC86: 3.744347826 | BD86: 42754.52542 | BE86: 3.575652174 | BF86: 42754.61944 | BH86: 42754.67153 | BI86: 42754.66111
A87: 0 | B87: =IF(Instructions!$C$2="BST",A87,0) -> 0 | C87: 2021-01-20T21:30:00 | D87: 2021-01-20 | F87: 1 | I87: 3 | K87: 42754.89583 | L87: 1.87 | M87: LW | N87: 0.1145038168 | O87: 21:30:00 | P87: 17:00:00 | Q87: 23:00:00 | R87: 0.25 | S87: 42754.92361 | T87: 2.305343511 | U87: 42754.98958 | V87: 42754.9158 | W87: 2.116793893 | X87: 42754.85417 | Y87: 42754.90104 | Z87: 1.86259542 | AA87: 42754.88021 | AB87: 42754.89583 | AC87: 1.751145038 | AD87: Cls | AE87: 42754.72361 | AF87: 42754.88889 | AG87: 1.66259542 | AH87: 42754.88021 | AI87: 1.76259542 | AJ87: 42754.92274 | AK87: 2.316793893 | AL87: 42754.92274 | AM87: 2.316793893 | AN87: 42754.91493 | AO87: 2.316793893 | AP87: 42754.92101 | AQ87: 2.128244275 | AR87: 42754.88542 | AS87: 42754.90972 | AT87: 42754.88542 | AU87: 1.86259542 | AV87: 42754.88715 | AW87: 1.851145038 | AX87: 42754.88021 | AY87: 1.66259542 | AZ87: 42754.87674 | BA87: 1.651145038 | BB87: 42754.87066 | BC87: 1.751145038 | BD87: 42754.82552 | BE87: 1.396946565 | BF87: 42754.92014 | BH87: 42754.9375 | BI87: 42754.92708
A88: 0 | B88: =IF(Instructions!$C$2="BST",A88,0) -> 0 | C88: 2021-01-21T03:43:00 | D88: 2021-01-21 | E88: 2021-01-21 | F88: 1 | G88: Jan | H88: 21 | I88: 4 | J88: Thu | K88: 42755.15486 | L88: 4.41 | M88: HW | N88: -0.06956521739 | O88: 03:43:00 | P88: 00:00:00 | Q88: 06:00:00 | R88: 0.3805555555 | S88: 42755.16577 | T88: 5.888695652 | U88: 42755.23174 | V88: 42755.16709 | W88: 5.695652174 | X88: 42755.11319 | Y88: 42755.14014 | Z88: 4.316521739 | AA88: 42755.12973 | AB88: 42755.13403 | AC88: 3.916521739 | AD88: Opn | AE88: 42755.01944 | AF88: 42755.13784 | AG88: 3.423478261 | AH88: 42755.11138 | AI88: 3.830434783 | AJ88: 42755.16792 | AK88: 5.788695652 | AL88: 42755.17007 | AM88: 5.68173913 | AN88: 42755.16445 | AO88: 5.595652174 | AP88: 42755.1709 | AQ88: 4.995652174 | AR88: 42755.14444 | AS88: 42755.16528 | AT88: 42755.13221 | AU88: 3.916521739 | AV88: 42755.13221 | AW88: 3.716521739 | AX88: 42755.10923 | AY88: 3.409565217 | AZ88: 42755.10576 | BA88: 3.316521739 | BB88: 42755.10229 | BC88: 3.323478261 | BD88: 42755.04904 | BE88: 3.116521739 | BF88: 42755.14444 | BH88: 42755.19653 | BI88: 42755.18611
A89: 0 | B89: =IF(Instructions!$C$2="BST",A89,0) -> 0 | C89: 2021-01-21T09:49:00 | D89: 2021-01-21 | E89: Thu | F89: 1 | I89: 4 | K89: 42755.40903 | L89: 2.2 | M89: LW | N89: -0.1374045802 | O89: 09:49:00 | P89: 05:00:00 | Q89: 11:00:00 | R89: 0.1972222222 | S89: 42755.43607 | T89: 2.733587786 | U89: 42755.50204 | V89: 42755.42991 | W89: 2.519847328 | X89: 42755.36736 | Y89: 42755.41314 | Z89: 2.164885496 | AA89: 42755.3945 | AB89: 42755.40829 | AC89: 2.078625954 | AD89: Cls | AE89: 42755.24861 | AF89: 42755.40282 | AG89: 1.964885496 | AH89: 42755.39377 | AI89: 2.064885496 | AJ89: 42755.43539 | AK89: 2.719847328 | AL89: 42755.43539 | AM89: 2.719847328 | AN89: 42755.42776 | AO89: 2.719847328 | AP89: 42755.43402 | AQ89: 2.50610687 | AR89: 42755.39861 | AS89: 42755.42292 | AT89: 42755.39861 | AU89: 2.164885496 | AV89: 42755.39998 | AW89: 2.178625954 | AX89: 42755.39377 | AY89: 1.964885496 | AZ89: 42755.3903 | BA89: 1.978625954 | BB89: 42755.38404 | BC89: 2.078625954 | BD89: 42755.3389 | BE89: 1.623664122 | BF89: 42755.43333 | BH89: 42755.45069 | BI89: 42755.44028
A90: 0 | B90: =IF(Instructions!$C$2="BST",A90,0) -> 0 | C90: 2021-01-21T16:00:00 | D90: 2021-01-21 | F90: 1 | I90: 4 | K90: 42755.66667 | L90: 4.64 | M90: HW | N90: 0.1304347826 | O90: 16:00:00 | P90: 12:00:00 | Q90: 18:00:00 | R90: 0.3333333333 | S90: 42755.67708 | T90: 6.208695652 | U90: 42755.74306 | V90: 42755.67824 | W90: 5.995652174 | X90: 42755.625 | Y90: 42755.65162 | Z90: 4.556521739 | AA90: 42755.6412 | AB90: 42755.64583 | AC90: 4.156521739 | AD90: Opn | AE90: 42755.53125 | AF90: 42755.65046 | AG90: 3.643478261 | AH90: 42755.62384 | AI90: 4.030434783 | AJ90: 42755.6794 | AK90: 6.108695652 | AL90: 42755.68171 | AM90: 6.02173913 | AN90: 42755.67593 | AO90: 5.895652174 | AP90: 42755.68287 | AQ90: 5.295652174 | AR90: 42755.65625 | AS90: 42755.67708 | AT90: 42755.64468 | AU90: 4.156521739 | AV90: 42755.64468 | AW90: 3.956521739 | AX90: 42755.62153 | AY90: 3.669565217 | AZ90: 42755.61806 | BA90: 3.556521739 | BB90: 42755.61458 | BC90: 3.543478261 | BD90: 42755.56019 | BE90: 3.356521739 | BF90: 42755.65625 | BH90: 42755.70833 | BI90: 42755.69792
A91: 0 | B91: =IF(Instructions!$C$2="BST",A91,0) -> 0 | C91: 2021-01-21T22:27:00 | D91: 2021-01-21 | F91: 1 | I91: 4 | K91: 42755.93542 | L91: 2.08 | M91: LW | N91: -0.04580152672 | O91: 22:27:00 | P91: 17:00:00 | Q91: 23:00:00 | R91: 0.09166666666 | S91: 42755.961 | T91: 2.577862595 | U91: 42756.02697 | V91: 42755.95813 | W91: 2.373282443 | X91: 42755.89375 | Y91: 42755.93733 | Z91: 2.054961832 | AA91: 42755.92309 | AB91: 42755.93322 | AC91: 1.959541985 | AD91: Cls | AE91: 42755.76042 | AF91: 42755.93067 | AG91: 1.854961832 | AH91: 42755.92089 | AI91: 1.954961832 | AJ91: 42755.96068 | AK91: 2.573282443 | AL91: 42755.96068 | AM91: 2.573282443 | AN91: 42755.95341 | AO91: 2.573282443 | AP91: 42755.96004 | AQ91: 2.36870229 | AR91: 42755.925 | AS91: 42755.94931 | AT91: 42755.925 | AU91: 2.054961832 | AV91: 42755.92564 | AW91: 2.059541985 | AX91: 42755.92089 | AY91: 1.854961832 | AZ91: 42755.91742 | BA91: 1.859541985 | BB91: 42755.91079 | BC91: 1.959541985 | BD91: 42755.86565 | BE91: 1.541221374 | BF91: 42755.95972 | BH91: 42755.97708 | BI91: 42755.96667
A92: 0 | B92: =IF(Instructions!$C$2="BST",A92,0) -> 0 | C92: 2021-01-22T04:44:00 | D92: 2021-01-22 | E92: 2021-01-22 | F92: 1 | G92: Jan | H92: 22 | I92: 5 | J92: Fri | K92: 42756.19722 | L92: 4.3 | M92: HW | N92: -0.1652173913 | O92: 04:44:00 | P92: 00:00:00 | Q92: 06:00:00 | R92: 0.2111111111 | S92: 42756.20637 | T92: 5.735652174 | U92: 42756.27234 | V92: 42756.2071 | W92: 5.552173913 | X92: 42756.15556 | Y92: 42756.18133 | Z92: 4.20173913 | AA92: 42756.17091 | AB92: 42756.17639 | AC92: 3.80173913 | AD92: Opn | AE92: 42756.06181 | AF92: 42756.18314 | AG92: 3.31826087 | AH92: 42756.1561 | AI92: 3.734782609 | AJ92: 42756.2091 | AK92: 5.635652174 | AL92: 42756.21184 | AM92: 5.519130435 | AN92: 42756.20563 | AO92: 5.452173913 | AP92: 42756.21385 | AQ92: 4.852173913 | AR92: 42756.18681 | AS92: 42756.20764 | AT92: 42756.17693 | AU92: 3.80173913 | AV92: 42756.17693 | AW92: 3.60173913 | AX92: 42756.15336 | AY92: 3.285217391 | AZ92: 42756.14988 | BA92: 3.20173913 | BB92: 42756.14641 | BC92: 3.21826087 | BD92: 42756.08904 | BE92: 3.00173913 | BF92: 42756.18681 | BH92: 42756.23889 | BI92: 42756.22847
A93: 0 | B93: =IF(Instructions!$C$2="BST",A93,0) -> 0 | C93: 2021-01-22T10:56:00 | D93: 2021-01-22 | E93: Fri | F93: 1 | I93: 5 | K93: 42756.45556 | L93: 2.35 | M93: LW | N93: -0.2519083969 | O93: 10:56:00 | P93: 05:00:00 | Q93: 11:00:00 | R93: 0.01111111111 | S93: 42756.48002 | T93: 2.928244275 | U93: 42756.54599 | V93: 42756.47967 | W93: 2.703053435 | X93: 42756.41389 | Y93: 42756.45579 | Z93: 2.302290076 | AA93: 42756.44491 | AB93: 42756.45224 | AC93: 2.227480916 | AD93: Cls | AE93: 42756.29097 | AF93: 42756.45193 | AG93: 2.102290076 | AH93: 42756.44159 | AI93: 2.202290076 | AJ93: 42756.47998 | AK93: 2.903053435 | AL93: 42756.47998 | AM93: 2.903053435 | AN93: 42756.47299 | AO93: 2.903053435 | AP93: 42756.4799 | AQ93: 2.677862595 | AR93: 42756.44514 | AS93: 42756.46944 | AT93: 42756.44514 | AU93: 2.302290076 | AV93: 42756.44522 | AW93: 2.327480916 | AX93: 42756.44159 | AY93: 2.102290076 | AZ93: 42756.43812 | BA93: 2.127480916 | BB93: 42756.43121 | BC93: 2.227480916 | BD93: 42756.38607 | BE93: 1.726717557 | BF93: 42756.47986 | BH93: 42756.49722 | BI93: 42756.48681
A94: 0 | B94: =IF(Instructions!$C$2="BST",A94,0) -> 0 | C94: 2021-01-22T17:06:00 | D94: 2021-01-22 | F94: 1 | I94: 5 | K94: 42756.7125 | L94: 4.48 | M94: HW | N94: -0.008695652174 | O94: 17:06:00 | P94: 12:00:00 | Q94: 18:00:00 | R94: 0.15 | S94: =IF($M94="HW",$K94+S$6+(S$5-S$6)*$R94,$K94+S$8+(S$7-S$8)*$R94) -> 42756.72101 | T94: 5.986086957 | U94: 42756.78698 | V94: 42756.72153 | W94: 5.786956522 | X94: =IF($M94="HW",$K94+X$6+(X$5-X$6)*$R94,$K94+X$8+(X$7-X$8)*$R94) -> 42756.67083 | Y94: 42756.69618 | Z94: 4.389565217 | AA94: 42756.68576 | AB94: 42756.69167 | AC94: 3.989565217 | AD94: Opn | AE94: 42756.57708 | AF94: 42756.69948 | AG94: 3.490434783 | AH94: 42756.67222 | AI94: 3.891304348 | AJ94: 42756.72396 | AK94: 5.886086957 | AL94: 42756.72691 | AM94: 5.785217391 | AN94: 42756.72049 | AO94: 5.686956522 | AP94: 42756.72934 | AQ94: 5.086956522 | AR94: =IF($M94="HW",$K94+AR$6+(AR$5-AR$6)*$R94,$K94+AR$8+(AR$7-AR$8)*$R94) -> 42756.70208 | AS94: 42756.72292 | AT94: 42756.69306 | AU94: 3.989565217 | AV94: 42756.69306 | AW94: 3.789565217 | AX94: 42756.66927 | AY94: 3.488695652 | AZ94: 42756.6658 | BA94: 3.389565217 | BB94: 42756.66233 | BC94: 3.390434783 | BD94: 42756.60347 | BE94: 3.189565217 | BF94: =IF($M94="HW",$K94+BF$6+(BF$5-BF$6)*$R94,$K94+BF$8+(BF$7-BF$8)*$R94) -> 42756.70208 | BH94: 42756.75417 | BI94: 42756.74375
A95: 0 | B95: =IF(Instructions!$C$2="BST",A95,0) -> 0 | C95: 2021-01-22T23:35:00 | D95: 2021-01-22 | F95: 1 | I95: 5 | K95: 42756.98264 | L95: 2.19 | M95: LW | N95: -0.1297709924 | O95: 23:35:00 | P95: 1.208333333 | Q95: 23:00:00 | R95: 0.09722222223 | S95: 42757.00829 | T95: 2.720610687 | U95: 42757.07427 | V95: 42757.00526 | W95: 2.507633588 | X95: 42756.94097 | Y95: 42756.98466 | Z95: 2.155725191 | AA95: 42756.9702 | AB95: 42756.98052 | AC95: 2.06870229 | AD95: Cls | AE95: 42756.80625 | AF95: 42756.97782 | AG95: 1.955725191 | AH95: 42756.96807 | AI95: 2.055725191 | AJ95: 42757.00796 | AK95: 2.707633588 | AL95: 42757.00796 | AM95: 2.707633588 | AN95: 42757.00068 | AO95: 2.707633588 | AP95: 42757.00728 | AQ95: 2.494656489 | AR95: 42756.97222 | AS95: 42756.99653 | AT95: 42756.97222 | AU95: 2.155725191 | AV95: 42756.9729 | AW95: 2.16870229 | AX95: 42756.96807 | AY95: 1.955725191 | AZ95: 42756.9646 | BA95: 1.96870229 | BB95: 42756.958 | BC95: 2.06870229 | BD95: 42756.91286 | BE95: 1.616793893 | BF95: 42757.00694 | BH95: 42757.02431 | BI95: 42757.01389
A96: 0 | B96: =IF(Instructions!$C$2="BST",A96,0) -> 0 | C96: 2021-01-23T06:00:00 | D96: 2021-01-23 | E96: 2021-01-23 | F96: 1 | G96: Jan | H96: 23 | I96: 6 | J96: Sat | K96: 42757.25 | L96: 4.32 | M96: HW | N96: -0.147826087 | O96: 06:00:00 | P96: 12:00:00 | Q96: 06:00:00 | R96: 0 | S96: 42757.25694 | T96: 5.763478261 | U96: 42757.32292 | V96: 42757.25694 | W96: 5.57826087 | X96: 42757.20833 | Y96: 42757.23264 | Z96: 4.222608696 | AA96: 42757.22222 | AB96: 42757.22917 | AC96: 3.822608696 | AD96: Opn | AE96: 42757.11458 | AF96: 42757.23958 | AG96: 3.337391304 | AH96: 42757.21181 | AI96: 3.752173913 | AJ96: 42757.26042 | AK96: 5.663478261 | AL96: 42757.26389 | AM96: 5.548695652 | AN96: 42757.25694 | AO96: 5.47826087 | AP96: 42757.26736 | AQ96: 4.87826087 | AR96: 42757.23958 | AS96: 42757.26042 | AT96: 42757.23264 | AU96: 3.822608696 | AV96: 42757.23264 | AW96: 3.622608696 | AX96: 42757.20833 | AY96: 3.307826087 | AZ96: 42757.20486 | BA96: 3.222608696 | BB96: 42757.20139 | BC96: 3.237391304 | BD96: 42757.13889 | BE96: 3.022608696 | BF96: 42757.23958 | BH96: 42757.29167 | BI96: 42757.28125
A97: 0 | B97: =IF(Instructions!$C$2="BST",A97,0) -> 0 | C97: 2021-01-23T12:12:00 | D97: 2021-01-23 | E97: Sat | F97: 1 | I97: 6 | K97: 42757.50833 | L97: 2.37 | M97: LW | N97: -0.2671755725 | O97: 12:12:00 | P97: 17:00:00 | Q97: 11:00:00 | R97: 0.2 | S97: 42757.53542 | T97: 2.954198473 | U97: 42757.60139 | V97: 42757.52917 | W97: 2.727480916 | X97: 42757.46667 | Y97: 42757.5125 | Z97: 2.320610687 | AA97: 42757.49375 | AB97: 42757.50764 | AC97: 2.247328244 | AD97: Cls | AE97: 42757.34375 | AF97: 42757.50208 | AG97: 2.120610687 | AH97: 42757.49306 | AI97: 2.220610687 | AJ97: 42757.53472 | AK97: 2.927480916 | AL97: 42757.53472 | AM97: 2.927480916 | AN97: 42757.52708 | AO97: 2.927480916 | AP97: 42757.53333 | AQ97: 2.700763359 | AR97: 42757.49792 | AS97: 42757.52222 | AT97: 42757.49792 | AU97: 2.320610687 | AV97: 42757.49931 | AW97: 2.347328244 | AX97: 42757.49306 | AY97: 2.120610687 | AZ97: 42757.48958 | BA97: 2.147328244 | BB97: 42757.48333 | BC97: 2.247328244 | BD97: 42757.43819 | BE97: 1.740458015 | BF97: 42757.53264 | BH97: 42757.55 | BI97: 42757.53958
A98: 0 | B98: =IF(Instructions!$C$2="BST",A98,0) -> 0 | C98: 2021-01-23T18:22:00 | D98: 2021-01-23 | F98: 1 | I98: 6 | K98: 42757.76528 | L98: 4.46 | M98: HW | N98: -0.02608695652 | O98: 18:22:00 | P98: 1 | Q98: 18:00:00 | R98: 0.06111111111 | S98: 42757.77286 | T98: 5.95826087 | U98: 42757.83883 | V98: 42757.77307 | W98: 5.760869565 | X98: 42757.72361 | Y98: 42757.74834 | Z98: 4.368695652 | AA98: 42757.73792 | AB98: 42757.74444 | AC98: 3.968695652 | AD98: Opn | AE98: 42757.62986 | AF98: 42757.7538 | AG98: 3.471304348 | AH98: 42757.72623 | AI98: 3.873913043 | AJ98: 42757.77612 | AK98: 5.85826087 | AL98: 42757.77938 | AM98: 5.755652174 | AN98: 42757.77265 | AO98: 5.660869565 | AP98: 42757.78243 | AQ98: 5.060869565 | AR98: 42757.75486 | AS98: 42757.77569 | AT98: 42757.74707 | AU98: 3.968695652 | AV98: 42757.74707 | AW98: 3.768695652 | AX98: 42757.72297 | AY98: 3.466086957 | AZ98: 42757.7195 | BA98: 3.368695652 | BB98: 42757.71603 | BC98: 3.371304348 | BD98: 42757.65502 | BE98: 3.168695652 | BF98: 42757.75486 | BH98: 42757.80694 | BI98: 42757.79653
A99: 0 | B99: =IF(Instructions!$C$2="BST",A99,0) -> 0 | C99: 2021-01-24T00:45:00 | D99: 2021-01-24 | E99: 2021-01-24 | F99: 1 | G99: Jan | H99: 24 | I99: 7 | J99: Sun | K99: 42758.03125 | L99: 2.16 | M99: LW | N99: -0.106870229 | O99: 00:45:00 | P99: 05:00:00 | Q99: -0.04166666667 | R99: 0.2916666667 | S99: 42758.05961 | T99: 2.681679389 | U99: 42758.12558 | V99: 42758.05049 | W99: 2.470992366 | X99: 42757.98958 | Y99: 42758.03733 | Z99: 2.128244275 | AA99: 42758.01476 | AB99: 42758.03183 | AC99: 2.038931298 | AD99: Cls | AE99: 42757.85903 | AF99: 42758.02373 | AG99: 1.928244275 | AH99: 42758.01534 | AI99: 2.028244275 | AJ99: 42758.05859 | AK99: 2.670992366 | AL99: 42758.05859 | AM99: 2.670992366 | AN99: 42758.05064 | AO99: 2.670992366 | AP99: 42758.05657 | AQ99: 2.460305344 | AR99: 42758.02083 | AS99: 42758.04514 | AT99: 42758.02083 | AU99: 2.128244275 | AV99: 42758.02286 | AW99: 2.138931298 | AX99: 42758.01534 | AY99: 1.928244275 | AZ99: 42758.01186 | BA99: 1.938931298 | BB99: 42758.00593 | BC99: 2.038931298 | BD99: 42757.96079 | BE99: 1.596183206 | BF99: 42758.05556 | BH99: 42758.07292 | BI99: 42758.0625
A100: 0 | B100: =IF(Instructions!$C$2="BST",A100,0) -> 0 | C100: 2021-01-24T07:12:00 | D100: 2021-01-24 | E100: Sun | F100: 1 | I100: 7 | K100: 42758.3 | L100: 4.48 | M100: HW | N100: -0.008695652174 | O100: 07:12:00 | P100: 12:00:00 | Q100: 06:00:00 | R100: 0.2 | S100: 42758.30903 | T100: 5.986086957 | U100: 42758.375 | V100: 42758.30972 | W100: 5.786956522 | X100: 42758.25833 | Y100: 42758.28403 | Z100: 4.389565217 | AA100: 42758.27361 | AB100: 42758.27917 | AC100: 3.989565217 | AD100: Opn | AE100: 42758.16458 | AF100: 42758.28611 | AG100: 3.490434783 | AH100: 42758.25903 | AI100: 3.891304348 | AJ100: 42758.31181 | AK100: 5.886086957 | AL100: 42758.31458 | AM100: 5.785217391 | AN100: 42758.30833 | AO100: 5.686956522 | AP100: 42758.31667 | AQ100: 5.086956522 | AR100: 42758.28958 | AS100: 42758.31042 | AT100: 42758.27986 | AU100: 3.989565217 | AV100: 42758.27986 | AW100: 3.789565217 | AX100: 42758.25625 | AY100: 3.488695652 | AZ100: 42758.25278 | BA100: 3.389565217 | BB100: 42758.24931 | BC100: 3.390434783 | BD100: 42758.19167 | BE100: 3.189565217 | BF100: 42758.28958 | BH100: 42758.34167 | BI100: 42758.33125
A101: 0 | B101: =IF(Instructions!$C$2="BST",A101,0) -> 0 | C101: 2021-01-24T13:22:00 | D101: 2021-01-24 | F101: 1 | I101: 7 | K101: 42758.55694 | L101: 2.22 | M101: LW | N101: -0.1526717557 | O101: 13:22:00 | P101: 17:00:00 | Q101: 11:00:00 | R101: 0.3944444444 | S101: 42758.58673 | T101: 2.759541985 | U101: 42758.6527 | V101: 42758.5744 | W101: 2.544274809 | X101: 42758.51528 | Y101: 42758.56516 | Z101: 2.183206107 | AA101: 42758.53831 | AB101: 42758.55895 | AC101: 2.098473282 | AD101: Cls | AE101: 42758.39375 | AF101: 42758.54799 | AG101: 1.983206107 | AH101: 42758.54032 | AI101: 2.083206107 | AJ101: 42758.58536 | AK101: 2.744274809 | AL101: 42758.58536 | AM101: 2.744274809 | AN101: 42758.57704 | AO101: 2.744274809 | AP101: 42758.58262 | AQ101: 2.529007634 | AR101: 42758.54653 | AS101: 42758.57083 | AT101: 42758.54653 | AU101: 2.183206107 | AV101: 42758.54927 | AW101: 2.198473282 | AX101: 42758.54032 | AY101: 1.983206107 | AZ101: 42758.53684 | BA101: 1.998473282 | BB101: 42758.53127 | BC101: 2.098473282 | BD101: 42758.48613 | BE101: 1.63740458 | BF101: 42758.58125 | BH101: 42758.59861 | BI101: 42758.58819
A102: 0 | B102: =IF(Instructions!$C$2="BST",A102,0) -> 0 | C102: 2021-01-24T19:32:00 | D102: 2021-01-24 | F102: 1 | I102: 7 | K102: 42758.81389 | L102: 4.59 | M102: HW | N102: 0.08695652174 | O102: 19:32:00 | P102: 1 | Q102: 18:00:00 | R102: 0.2555555555 | S102: 42758.8235 | T102: 6.139130435 | U102: 42758.88947 | V102: 42758.82438 | W102: 5.930434783 | X102: 42758.77222 | Y102: 42758.7983 | Z102: 4.504347826 | AA102: 42758.78789 | AB102: 42758.79306 | AC102: 4.104347826 | AD102: Opn | AE102: 42758.67847 | AF102: 42758.79904 | AG102: 3.595652174 | AH102: 42758.77215 | AI102: 3.986956522 | AJ102: 42758.82608 | AK102: 6.039130435 | AL102: 42758.82867 | AM102: 5.947826087 | AN102: 42758.82261 | AO102: 5.830434783 | AP102: 42758.83036 | AQ102: 5.230434783 | AR102: 42758.80347 | AS102: 42758.82431 | AT102: 42758.79298 | AU102: 4.104347826 | AV102: 42758.79298 | AW102: 3.904347826 | AX102: 42758.76956 | AY102: 3.613043478 | AZ102: 42758.76609 | BA102: 3.504347826 | BB102: 42758.76262 | BC102: 3.495652174 | BD102: 42758.70633 | BE102: 3.304347826 | BF102: 42758.80347 | BH102: 42758.85556 | BI102: 42758.84514
A103: 0 | B103: =IF(Instructions!$C$2="BST",A103,0) -> 0 | C103: 2021-01-25T01:44:00 | D103: 2021-01-25 | E103: 2021-01-25 | F103: 1 | G103: Jan | H103: 25 | I103: 1 | J103: Mon | K103: 42759.07222 | L103: 2.01 | M103: LW | N103: 0.007633587786 | O103: 01:44:00 | P103: 05:00:00 | Q103: -0.04166666667 | R103: 0.4555555556 | S103: 42759.10285 | T103: 2.487022901 | U103: 42759.16883 | V103: 42759.08862 | W103: 2.28778626 | X103: 42759.03056 | Y103: 42759.08171 | Z103: 1.990839695 | AA103: 42759.05231 | AB103: 42759.07508 | AC103: 1.890076336 | AD103: Cls | AE103: 42758.90764 | AF103: 42759.06242 | AG103: 1.790839695 | AH103: 42759.05517 | AI103: 1.890839695 | AJ103: 42759.10127 | AK103: 2.48778626 | AL103: 42759.10127 | AM103: 2.48778626 | AN103: 42759.09275 | AO103: 2.48778626 | AP103: 42759.09811 | AQ103: 2.288549618 | AR103: 42759.06181 | AS103: 42759.08611 | AT103: 42759.06181 | AU103: 1.990839695 | AV103: 42759.06497 | AW103: 1.990076336 | AX103: 42759.05517 | AY103: 1.790839695 | AZ103: 42759.0517 | BA103: 1.790076336 | BB103: 42759.04633 | BC103: 1.890076336 | BD103: 42759.0012 | BE103: 1.493129771 | BF103: 42759.09653 | BH103: 42759.11389 | BI103: 42759.10347
A104: 0 | B104: =IF(Instructions!$C$2="BST",A104,0) -> 0 | C104: 2021-01-25T08:09:00 | D104: 2021-01-25 | E104: Mon | F104: 1 | I104: 1 | K104: 42759.33958 | L104: 4.72 | M104: HW | N104: 0.2 | O104: 08:09:00 | P104: 12:00:00 | Q104: 06:00:00 | R104: 0.3583333333 | S104: 42759.35026 | T104: 6.32 | U104: 42759.41623 | V104: 42759.3515 | W104: 6.1 | X104: 42759.29792 | Y104: 42759.32471 | Z104: 4.64 | AA104: 42759.31429 | AB104: 42759.31875 | AC104: 4.24 | AD104: Opn | AE104: 42759.20417 | AF104: 42759.32295 | AG104: 3.72 | AH104: 42759.29641 | AI104: 4.1 | AJ104: 42759.35249 | AK104: 6.22 | AL104: 42759.35472 | AM104: 6.14 | AN104: 42759.34902 | AO104: 6 | AP104: 42759.3557 | AQ104: 5.4 | AR104: 42759.32917 | AS104: 42759.35 | AT104: 42759.31725 | AU104: 4.24 | AV104: 42759.31725 | AW104: 4.04 | AX104: 42759.29418 | AY104: 3.76 | AZ104: 42759.29071 | BA104: 3.64 | BB104: 42759.28724 | BC104: 3.62 | BD104: 42759.23345 | BE104: 3.44 | BF104: 42759.32917 | BH104: 42759.38125 | BI104: 42759.37083
A105: 0 | B105: =IF(Instructions!$C$2="BST",A105,0) -> 0 | C105: 2021-01-25T14:16:00 | D105: 2021-01-25 | F105: 1 | I105: 1 | K105: 42759.59444 | L105: 1.98 | M105: LW | N105: 0.03053435115 | O105: 14:16:00 | P105: 17:00:00 | Q105: 11:00:00 | R105: 0.5444444445 | S105: 42759.62631 | T105: 2.448091603 | U105: 42759.69228 | V105: 42759.6093 | W105: 2.251145038 | X105: 42759.55278 | Y105: 42759.60579 | Z105: 1.963358779 | AA105: 42759.57269 | AB105: 42759.59853 | AC105: 1.860305344 | AD105: Cls | AE105: 42759.43333 | AF105: 42759.58341 | AG105: 1.763358779 | AH105: 42759.57677 | AI105: 1.863358779 | AJ105: 42759.62442 | AK105: 2.451145038 | AL105: 42759.62442 | AM105: 2.451145038 | AN105: 42759.61559 | AO105: 2.451145038 | AP105: 42759.62064 | AQ105: 2.254198473 | AR105: 42759.58403 | AS105: 42759.60833 | AT105: 42759.58403 | AU105: 1.963358779 | AV105: 42759.58781 | AW105: 1.960305344 | AX105: 42759.57677 | AY105: 1.763358779 | AZ105: 42759.5733 | BA105: 1.760305344 | BB105: 42759.56825 | BC105: 1.860305344 | BD105: 42759.52311 | BE105: 1.472519084 | BF105: 42759.61875 | BH105: 42759.63611 | BI105: 42759.62569
A106: 0 | B106: =IF(Instructions!$C$2="BST",A106,0) -> 0 | C106: 2021-01-25T20:26:00 | D106: 2021-01-25 | F106: 1 | I106: 1 | K106: 42759.85139 | L106: 4.79 | M106: HW | N106: 0.2608695652 | O106: 20:26:00 | P106: 1 | Q106: 18:00:00 | R106: 0.4055555556 | S106: 42759.86256 | T106: 6.417391304 | U106: 42759.92853 | V106: 42759.86397 | W106: 6.191304348 | X106: 42759.80972 | Y106: 42759.83684 | Z106: 4.713043478 | AA106: 42759.82643 | AB106: 42759.83056 | AC106: 4.313043478 | AD106: Opn | AE106: 42759.71597 | AF106: 42759.83393 | AG106: 3.786956522 | AH106: 42759.80756 | AI106: 4.160869565 | AJ106: 42759.86462 | AK106: 6.317391304 | AL106: 42759.86669 | AM106: 6.243478261 | AN106: 42759.86115 | AO106: 6.091304348 | AP106: 42759.86734 | AQ106: 5.491304348 | AR106: 42759.84097 | AS106: 42759.86181 | AT106: 42759.8284 | AU106: 4.313043478 | AV106: 42759.8284 | AW106: 4.113043478 | AX106: 42759.8055 | AY106: 3.839130435 | AZ106: 42759.80203 | BA106: 3.713043478 | BB106: 42759.79855 | BC106: 3.686956522 | BD106: 42759.74591 | BE106: 3.513043478 | BF106: 42759.84097 | BH106: 42759.89306 | BI106: 42759.88264
A107: 0 | B107: =IF(Instructions!$C$2="BST",A107,0) -> 0 | C107: 2021-01-26T02:32:00 | D107: 2021-01-26 | E107: 2021-01-26 | F107: 1 | G107: Jan | H107: 26 | I107: 2 | J107: Tue | K107: 42760.10556 | L107: 1.81 | M107: LW | N107: 0.1603053435 | O107: 02:32:00 | P107: 05:00:00 | Q107: -0.04166666667 | R107: 0.5888888889 | S107: 42760.13804 | T107: 2.227480916 | U107: 42760.20401 | V107: 42760.11964 | W107: 2.04351145 | X107: 42760.06389 | Y107: 42760.11782 | Z107: 1.807633588 | AA107: 42760.08287 | AB107: 42760.11026 | AC107: 1.691603053 | AD107: Cls | AE107: 42759.94514 | AF107: 42760.0939 | AG107: 1.607633588 | AH107: 42760.08758 | AI107: 1.707633588 | AJ107: 42760.136 | AK107: 2.24351145 | AL107: 42760.136 | AM107: 2.24351145 | AN107: 42760.12701 | AO107: 2.24351145 | AP107: 42760.13191 | AQ107: 2.059541985 | AR107: 42760.09514 | AS107: 42760.11944 | AT107: 42760.09514 | AU107: 1.807633588 | AV107: 42760.09923 | AW107: 1.791603053 | AX107: 42760.08758 | AY107: 1.607633588 | AZ107: 42760.0841 | BA107: 1.591603053 | BB107: 42760.07921 | BC107: 1.691603053 | BD107: 42760.03407 | BE107: 1.355725191 | BF107: 42760.12986 | BH107: 42760.14722 | BI107: 42760.13681
A108: 0 | B108: =IF(Instructions!$C$2="BST",A108,0) -> 0 | C108: 2021-01-26T08:53:00 | D108: 2021-01-26 | E108: Tue | F108: 1 | I108: 2 | K108: 42760.37014 | L108: 4.99 | M108: HW | N108: 0.4347826087 | O108: 08:53:00 | P108: 12:00:00 | Q108: 06:00:00 | R108: 0.4805555556 | S108: 42760.38209 | T108: 6.695652174 | U108: 42760.44806 | V108: 42760.38376 | W108: 6.452173913 | X108: 42760.32847 | Y108: 42760.35611 | Z108: 4.92173913 | AA108: 42760.3457 | AB108: 42760.34931 | AC108: 4.52173913 | AD108: Opn | AE108: 42760.23472 | AF108: 42760.35138 | AG108: 3.97826087 | AH108: 42760.32527 | AI108: 4.334782609 | AJ108: 42760.38389 | AK108: 6.595652174 | AL108: 42760.3857 | AM108: 6.539130435 | AN108: 42760.38042 | AO108: 6.352173913 | AP108: 42760.38583 | AQ108: 5.752173913 | AR108: 42760.35972 | AS108: 42760.38056 | AT108: 42760.3461 | AU108: 4.52173913 | AV108: 42760.3461 | AW108: 4.32173913 | AX108: 42760.32347 | AY108: 4.065217391 | AZ108: 42760.31999 | BA108: 3.92173913 | BB108: 42760.31652 | BC108: 3.87826087 | BD108: 42760.2657 | BE108: 3.72173913 | BF108: 42760.35972 | BH108: 42760.41181 | BI108: 42760.40139
A109: 0 | B109: =IF(Instructions!$C$2="BST",A109,0) -> 0 | C109: 2021-01-26T15:00:00 | D109: 2021-01-26 | F109: 1 | I109: 2 | K109: 42760.625 | L109: 1.71 | M109: LW | N109: 0.2366412214 | O109: 15:00:00 | P109: 17:00:00 | Q109: 11:00:00 | R109: 0.6666666667 | S109: 42760.65856 | T109: 2.097709924 | U109: 42760.72454 | V109: 42760.63773 | W109: 1.921374046 | X109: 42760.58333 | Y109: 42760.63889 | Z109: 1.716030534 | AA109: 42760.60069 | AB109: 42760.63079 | AC109: 1.592366412 | AD109: Cls | AE109: 42760.46389 | AF109: 42760.61227 | AG109: 1.516030534 | AH109: 42760.60648 | AI109: 1.616030534 | AJ109: 42760.65625 | AK109: 2.121374046 | AL109: 42760.65625 | AM109: 2.121374046 | AN109: 42760.64699 | AO109: 2.121374046 | AP109: 42760.65162 | AQ109: 1.945038168 | AR109: 42760.61458 | AS109: 42760.63889 | AT109: 42760.61458 | AU109: 1.716030534 | AV109: 42760.61921 | AW109: 1.692366412 | AX109: 42760.60648 | AY109: 1.516030534 | AZ109: 42760.60301 | BA109: 1.492366412 | BB109: 42760.59838 | BC109: 1.592366412 | BD109: 42760.55324 | BE109: 1.287022901 | BF109: 42760.64931 | BH109: 42760.66667 | BI109: 42760.65625
A110: 0 | B110: =IF(Instructions!$C$2="BST",A110,0) -> 0 | C110: 2021-01-26T21:11:00 | D110: 2021-01-26 | F110: 1 | I110: 2 | K110: 42760.88264 | L110: 5 | M110: HW | N110: 0.4434782609 | O110: 21:11:00 | P110: 1 | Q110: 18:00:00 | R110: 0.5305555556 | S110: =IF($M110="HW",$K110+S$6+(S$5-S$6)*$R110,$K110+S$8+(S$7-S$8)*$R110) -> 42760.89511 | T110: 6.709565217 | U110: 42760.96108 | V110: 42760.89695 | W110: 6.465217391 | X110: =IF($M110="HW",$K110+X$6+(X$5-X$6)*$R110,$K110+X$8+(X$7-X$8)*$R110) -> 42760.84097 | Y110: 42760.86896 | Z110: 4.932173913 | AA110: 42760.85855 | AB110: 42760.86181 | AC110: 4.532173913 | AD110: Opn | AE110: 42760.74722 | AF110: 42760.86301 | AG110: 3.987826087 | AH110: 42760.83708 | AI110: 4.343478261 | AJ110: 42760.89674 | AK110: 6.609565217 | AL110: 42760.89837 | AM110: 6.553913043 | AN110: 42760.89327 | AO110: 6.365217391 | AP110: 42760.89816 | AQ110: 5.765217391 | AR110: =IF($M110="HW",$K110+AR$6+(AR$5-AR$6)*$R110,$K110+AR$8+(AR$7-AR$8)*$R110) -> 42760.87222 | AS110: 42760.89306 | AT110: 42760.85791 | AU110: 4.532173913 | AV110: 42760.85791 | AW110: 4.332173913 | AX110: 42760.83545 | AY110: 4.076521739 | AZ110: 42760.83197 | BA110: 3.932173913 | BB110: 42760.8285 | BC110: 3.887826087 | BD110: 42760.7789 | BE110: 3.732173913 | BF110: =IF($M110="HW",$K110+BF$6+(BF$5-BF$6)*$R110,$K110+BF$8+(BF$7-BF$8)*$R110) -> 42760.87222 | BH110: 42760.92431 | BI110: 42760.91389
A111: 0 | B111: =IF(Instructions!$C$2="BST",A111,0) -> 0 | C111: 2021-01-27T03:13:00 | D111: 2021-01-27 | E111: 2021-01-27 | F111: 1 | G111: Jan | H111: 27 | I111: 3 | J111: Wed | K111: 42761.13403 | L111: 1.58 | M111: LW | N111: 0.3358778626 | O111: 03:13:00 | P111: 05:00:00 | Q111: -0.04166666667 | R111: 0.7027777778 | S111: 42761.16809 | T111: 1.929007634 | U111: 42761.23407 | V111: 42761.14613 | W111: 1.76259542 | X111: 42761.09236 | Y111: 42761.14867 | Z111: 1.596946565 | AA111: 42761.10897 | AB111: 42761.14032 | AC111: 1.463358779 | AD111: Cls | AE111: 42760.97639 | AF111: 42761.12079 | AG111: 1.396946565 | AH111: 42761.11526 | AI111: 1.496946565 | AJ111: 42761.16565 | AK111: 1.96259542 | AL111: 42761.16565 | AM111: 1.96259542 | AN111: 42761.15627 | AO111: 1.96259542 | AP111: 42761.16077 | AQ111: 1.796183206 | AR111: 42761.12361 | AS111: 42761.14792 | AT111: 42761.12361 | AU111: 1.596946565 | AV111: 42761.12849 | AW111: 1.563358779 | AX111: 42761.11526 | AY111: 1.396946565 | AZ111: 42761.11179 | BA111: 1.363358779 | BB111: 42761.10728 | BC111: 1.463358779 | BD111: 42761.06214 | BE111: 1.197709924 | BF111: 42761.15833 | BH111: 42761.17569 | BI111: 42761.16528
A112: 0 | B112: =IF(Instructions!$C$2="BST",A112,0) -> 0 | C112: 2021-01-27T09:32:00 | D112: 2021-01-27 | E112: Wed | F112: 1 | I112: 3 | K112: 42761.39722 | L112: 5.24 | M112: HW | N112: 0.652173913 | O112: 09:32:00 | P112: 12:00:00 | Q112: 06:00:00 | R112: 0.5888888889 | S112: 42761.4103 | T112: 7.043478261 | U112: 42761.47627 | V112: 42761.41235 | W112: 6.77826087 | X112: 42761.35556 | Y112: 42761.38395 | Z112: 5.182608696 | AA112: 42761.37353 | AB112: 42761.37639 | AC112: 4.782608696 | AD112: Opn | AE112: 42761.26181 | AF112: 42761.37658 | AG112: 4.217391304 | AH112: 42761.35085 | AI112: 4.552173913 | AJ112: 42761.41173 | AK112: 6.943478261 | AL112: 42761.41316 | AM112: 6.908695652 | AN112: 42761.40826 | AO112: 6.67826087 | AP112: 42761.41254 | AQ112: 6.07826087 | AR112: 42761.38681 | AS112: 42761.40764 | AT112: 42761.37168 | AU112: 4.782608696 | AV112: 42761.37168 | AW112: 4.582608696 | AX112: 42761.34942 | AY112: 4.347826087 | AZ112: 42761.34595 | BA112: 4.182608696 | BB112: 42761.34248 | BC112: 4.117391304 | BD112: 42761.29429 | BE112: 3.982608696 | BF112: 42761.38681 | BH112: 42761.43889 | BI112: 42761.42847
A113: 0 | B113: =IF(Instructions!$C$2="BST",A113,0) -> 0 | C113: 2021-01-27T15:39:00 | D113: 2021-01-27 | F113: 1 | I113: 3 | K113: 42761.65208 | L113: 1.42 | M113: LW | N113: 0.4580152672 | O113: 15:39:00 | P113: 17:00:00 | Q113: 11:00:00 | R113: 0.775 | S113: 42761.68715 | T113: 1.721374046 | U113: 42761.75313 | V113: 42761.66293 | W113: 1.567175573 | X113: 42761.61042 | Y113: 42761.66823 | Z113: 1.450381679 | AA113: 42761.62552 | AB113: 42761.65938 | AC113: 1.304580153 | AD113: Cls | AE113: 42761.49097 | AF113: 42761.63785 | AG113: 1.250381679 | AH113: 42761.63281 | AI113: 1.350381679 | AJ113: 42761.68446 | AK113: 1.767175573 | AL113: 42761.68446 | AM113: 1.767175573 | AN113: 42761.67483 | AO113: 1.767175573 | AP113: 42761.67908 | AQ113: 1.612977099 | AR113: 42761.64167 | AS113: 42761.66597 | AT113: 42761.64167 | AU113: 1.450381679 | AV113: 42761.64705 | AW113: 1.404580153 | AX113: 42761.63281 | AY113: 1.250381679 | AZ113: 42761.62934 | BA113: 1.204580153 | BB113: 42761.62509 | BC113: 1.304580153 | BD113: 42761.57995 | BE113: 1.08778626 | BF113: 42761.67639 | BH113: 42761.69375 | BI113: 42761.68333
A114: 0 | B114: =IF(Instructions!$C$2="BST",A114,0) -> 0 | C114: 2021-01-27T21:51:00 | D114: 2021-01-27 | F114: 1 | I114: 3 | K114: 42761.91042 | L114: 5.2 | M114: HW | N114: 0.6173913043 | O114: 21:51:00 | P114: 1 | Q114: 18:00:00 | R114: 0.6416666667 | S114: 42761.92405 | T114: 6.987826087 | U114: 42761.99002 | V114: 42761.92627 | W114: 6.726086957 | X114: 42761.86875 | Y114: 42761.89751 | Z114: 5.140869565 | AA114: 42761.88709 | AB114: 42761.88958 | AC114: 4.740869565 | AD114: Opn | AE114: 42761.775 | AF114: 42761.88886 | AG114: 4.179130435 | AH114: 42761.86331 | AI114: 4.517391304 | AJ114: 42761.92529 | AK114: 6.887826087 | AL114: 42761.92653 | AM114: 6.849565217 | AN114: 42761.92182 | AO114: 6.626086957 | AP114: 42761.92555 | AQ114: 6.026086957 | AR114: 42761.9 | AS114: 42761.92083 | AT114: 42761.88414 | AU114: 4.740869565 | AV114: 42761.88414 | AW114: 4.540869565 | AX114: 42761.86207 | AY114: 4.302608696 | AZ114: 42761.85859 | BA114: 4.140869565 | BB114: 42761.85512 | BC114: 4.079130435 | BD114: 42761.80822 | BE114: 3.940869565 | BF114: 42761.9 | BH114: 42761.95208 | BI114: 42761.94167
A115: 0 | B115: =IF(Instructions!$C$2="BST",A115,0) -> 0 | C115: 2021-01-28T03:50:00 | D115: 2021-01-28 | E115: 2021-01-28 | F115: 1 | G115: Jan | H115: 28 | I115: 4 | J115: Thu | K115: 42762.15972 | L115: 1.37 | M115: LW | N115: 0.4961832061 | O115: 03:50:00 | P115: 05:00:00 | Q115: -0.04166666667 | R115: 0.8055555555 | S115: 42762.19522 | T115: 1.65648855 | U115: 42762.26119 | V115: 42762.17004 | W115: 1.50610687 | X115: 42762.11806 | Y115: 42762.1765 | Z115: 1.404580153 | AA115: 42762.13252 | AB115: 42762.16744 | AC115: 1.254961832 | AD115: Cls | AE115: 42762.00417 | AF115: 42762.14506 | AG115: 1.204580153 | AH115: 42762.14024 | AI115: 1.304580153 | AJ115: 42762.19242 | AK115: 1.70610687 | AL115: 42762.19242 | AM115: 1.70610687 | AN115: 42762.18268 | AO115: 1.70610687 | AP115: 42762.18682 | AQ115: 1.555725191 | AR115: 42762.14931 | AS115: 42762.17361 | AT115: 42762.14931 | AU115: 1.404580153 | AV115: 42762.1549 | AW115: 1.354961832 | AX115: 42762.14024 | AY115: 1.204580153 | AZ115: 42762.13677 | BA115: 1.154961832 | BB115: 42762.13262 | BC115: 1.254961832 | BD115: 42762.08748 | BE115: 1.053435115 | BF115: 42762.18403 | BH115: 42762.20139 | BI115: 42762.19097
A116: 0 | B116: =IF(Instructions!$C$2="BST",A116,0) -> 0 | C116: 2021-01-28T10:09:00 | D116: 2021-01-28 | E116: Thu | F116: 1 | I116: 4 | K116: 42762.42292 | L116: 5.46 | M116: HW | N116: 0.8434782609 | O116: 10:09:00 | P116: 12:00:00 | Q116: 06:00:00 | R116: 0.6916666667 | S116: 42762.43707 | T116: 7.349565217 | U116: 42762.50304 | V116: 42762.43947 | W116: 7.065217391 | X116: 42762.38125 | Y116: 42762.41036 | Z116: 5.412173913 | AA116: 42762.39994 | AB116: 42762.40208 | AC116: 5.012173913 | AD116: Opn | AE116: 42762.2875 | AF116: 42762.40049 | AG116: 4.427826087 | AH116: 42762.37512 | AI116: 4.743478261 | AJ116: 42762.43814 | AK116: 7.249565217 | AL116: 42762.43921 | AM116: 7.233913043 | AN116: 42762.43466 | AO116: 6.965217391 | AP116: 42762.43788 | AQ116: 6.365217391 | AR116: 42762.4125 | AS116: 42762.43333 | AT116: 42762.39595 | AU116: 5.012173913 | AV116: 42762.39595 | AW116: 4.812173913 | AX116: 42762.37405 | AY116: 4.596521739 | AZ116: 42762.37057 | BA116: 4.412173913 | BB116: 42762.3671 | BC116: 4.327826087 | BD116: 42762.32141 | BE116: 4.212173913 | BF116: 42762.4125 | BH116: 42762.46458 | BI116: 42762.45417
A117: 0 | B117: =IF(Instructions!$C$2="BST",A117,0) -> 0 | C117: 2021-01-28T16:17:00 | D117: 2021-01-28 | F117: 1 | I117: 4 | K117: 42762.67847 | L117: 1.16 | M117: LW | N117: 0.6564885496 | O117: 16:17:00 | P117: 17:00:00 | Q117: 11:00:00 | R117: 0.8805555556 | S117: 42762.71501 | T117: 1.383969466 | U117: 42762.78098 | V117: 42762.68749 | W117: 1.249618321 | X117: 42762.63681 | Y117: 42762.69682 | Z117: 1.21221374 | AA117: 42762.64971 | AB117: 42762.68723 | AC117: 1.046564885 | AD117: Cls | AE117: 42762.51667 | AF117: 42762.66277 | AG117: 1.01221374 | AH117: 42762.65847 | AI117: 1.11221374 | AJ117: 42762.71195 | AK117: 1.449618321 | AL117: 42762.71195 | AM117: 1.449618321 | AN117: 42762.70195 | AO117: 1.449618321 | AP117: 42762.70584 | AQ117: 1.315267176 | AR117: 42762.66806 | AS117: 42762.69236 | AT117: 42762.66806 | AU117: 1.21221374 | AV117: 42762.67417 | AW117: 1.146564885 | AX117: 42762.65847 | AY117: 1.01221374 | AZ117: 42762.655 | BA117: 0.9465648855 | BB117: 42762.65111 | BC117: 1.046564885 | BD117: 42762.60597 | BE117: 0.9091603053 | BF117: 42762.70278 | BH117: 42762.72014 | BI117: 42762.70972
A118: 0 | B118: =IF(Instructions!$C$2="BST",A118,0) -> 0 | C118: 2021-01-28T22:29:00 | D118: 2021-01-28 | F118: 1 | I118: 4 | K118: 42762.93681 | L118: 5.36 | M118: HW | N118: 0.7565217391 | O118: 22:29:00 | P118: 1 | Q118: 18:00:00 | R118: 0.7472222222 | S118: 42762.95153 | T118: 7.210434783 | U118: 42763.01751 | V118: 42762.95413 | W118: 6.934782609 | X118: 42762.89514 | Y118: 42762.92463 | Z118: 5.307826087 | AA118: 42762.91422 | AB118: 42762.91597 | AC118: 4.907826087 | AD118: Opn | AE118: 42762.80139 | AF118: 42762.91342 | AG118: 4.332173913 | AH118: 42762.88823 | AI118: 4.656521739 | AJ118: 42762.95241 | AK118: 7.110434783 | AL118: 42762.95329 | AM118: 7.086086957 | AN118: 42762.94894 | AO118: 6.834782609 | AP118: 42762.95157 | AQ118: 6.234782609 | AR118: 42762.92639 | AS118: 42762.94722 | AT118: 42762.90907 | AU118: 4.907826087 | AV118: 42762.90907 | AW118: 4.707826087 | AX118: 42762.88736 | AY118: 4.483478261 | AZ118: 42762.88388 | BA118: 4.307826087 | BB118: 42762.88041 | BC118: 4.232173913 | BD118: 42762.83607 | BE118: 4.107826087 | BF118: 42762.92639 | BH118: 42762.97847 | BI118: 42762.96806
A119: 0 | B119: =IF(Instructions!$C$2="BST",A119,0) -> 0 | C119: 2021-01-29T04:28:00 | D119: 2021-01-29 | E119: 2021-01-29 | F119: 1 | G119: Jan | H119: 29 | I119: 5 | J119: Fri | K119: 42763.18611 | L119: 1.18 | M119: LW | N119: 0.641221374 | O119: 04:28:00 | P119: 05:00:00 | Q119: -0.04166666667 | R119: 0.9111111111 | S119: 42763.22307 | T119: 1.409923664 | U119: 42763.28904 | V119: 42763.1946 | W119: 1.274045802 | X119: 42763.14444 | Y119: 42763.20509 | Z119: 1.230534351 | AA119: 42763.15671 | AB119: 42763.19529 | AC119: 1.066412214 | AD119: Cls | AE119: 42763.03056 | AF119: 42763.16998 | AG119: 1.030534351 | AH119: 42763.1659 | AI119: 1.130534351 | AJ119: 42763.21991 | AK119: 1.474045802 | AL119: 42763.21991 | AM119: 1.474045802 | AN119: 42763.2098 | AO119: 1.474045802 | AP119: 42763.21358 | AQ119: 1.338167939 | AR119: 42763.17569 | AS119: 42763.2 | AT119: 42763.17569 | AU119: 1.230534351 | AV119: 42763.18202 | AW119: 1.166412214 | AX119: 42763.1659 | AY119: 1.030534351 | AZ119: 42763.16242 | BA119: 0.9664122137 | BB119: 42763.15864 | BC119: 1.066412214 | BD119: 42763.1135 | BE119: 0.9229007634 | BF119: 42763.21042 | BH119: 42763.22778 | BI119: 42763.21736
A120: 0 | B120: =IF(Instructions!$C$2="BST",A120,0) -> 0 | C120: 2021-01-29T10:45:00 | D120: 2021-01-29 | E120: Fri | F120: 1 | I120: 5 | K120: 42763.44792 | L120: 5.64 | M120: HW | N120: 1 | O120: 10:45:00 | P120: 12:00:00 | Q120: 06:00:00 | R120: 0.7916666667 | S120: 42763.46311 | T120: 7.6 | U120: 42763.52908 | V120: 42763.46586 | W120: 7.3 | X120: 42763.40625 | Y120: 42763.43605 | Z120: 5.6 | AA120: 42763.42564 | AB120: 42763.42708 | AC120: 5.2 | AD120: Opn | AE120: 42763.3125 | AF120: 42763.42376 | AG120: 4.6 | AH120: 42763.39873 | AI120: 4.9 | AJ120: 42763.46383 | AK120: 7.5 | AL120: 42763.46455 | AM120: 7.5 | AN120: 42763.46036 | AO120: 7.2 | AP120: 42763.46253 | AQ120: 6.6 | AR120: 42763.4375 | AS120: 42763.45833 | AT120: 42763.41956 | AU120: 5.2 | AV120: 42763.41956 | AW120: 5 | AX120: 42763.398 | AY120: 4.8 | AZ120: 42763.39453 | BA120: 4.6 | BB120: 42763.39106 | BC120: 4.5 | BD120: 42763.3478 | BE120: 4.4 | BF120: 42763.4375 | BH120: 42763.48958 | BI120: 42763.47917
A121: 0 | B121: =IF(Instructions!$C$2="BST",A121,0) -> 0 | C121: 2021-01-29T16:55:00 | D121: 2021-01-29 | F121: 1 | I121: 5 | K121: 42763.70486 | L121: 0.94 | M121: LW | N121: 0.8244274809 | O121: 16:55:00 | P121: 17:00:00 | Q121: 11:00:00 | R121: 0.9861111111 | S121: 42763.74286 | T121: 1.098473282 | U121: 42763.80883 | V121: 42763.71205 | W121: 0.9809160305 | X121: 42763.66319 | Y121: 42763.72541 | Z121: 1.010687023 | AA121: 42763.6739 | AB121: 42763.71508 | AC121: 0.8282442748 | AD121: Cls | AE121: 42763.54167 | AF121: 42763.68769 | AG121: 0.8106870229 | AH121: 42763.68412 | AI121: 0.9106870229 | AJ121: 42763.73944 | AK121: 1.180916031 | AL121: 42763.73944 | AM121: 1.180916031 | AN121: 42763.72907 | AO121: 1.180916031 | AP121: 42763.73259 | AQ121: 1.063358779 | AR121: 42763.69444 | AS121: 42763.71875 | AT121: 42763.69444 | AU121: 1.010687023 | AV121: 42763.70129 | AW121: 0.9282442748 | AX121: 42763.68412 | AY121: 0.8106870229 | AZ121: 42763.68065 | BA121: 0.7282442748 | BB121: 42763.67713 | BC121: 0.8282442748 | BD121: 42763.63199 | BE121: 0.7580152672 | BF121: 42763.72917 | BH121: 42763.74653 | BI121: 42763.73611
A122: 0 | B122: =IF(Instructions!$C$2="BST",A122,0) -> 0 | C122: 2021-01-29T23:07:00 | D122: 2021-01-29 | F122: 1 | I122: 5 | K122: 42763.96319 | L122: 5.47 | M122: HW | N122: 0.852173913 | O122: 23:07:00 | P122: 1 | Q122: 18:00:00 | R122: 0.8527777778 | S122: 42763.97902 | T122: 7.363478261 | U122: 42764.04499 | V122: 42763.98198 | W122: 7.07826087 | X122: 42763.92153 | Y122: 42763.95176 | Z122: 5.422608696 | AA122: 42763.94134 | AB122: 42763.94236 | AC122: 5.022608696 | AD122: Opn | AE122: 42763.82778 | AF122: 42763.93797 | AG122: 4.437391304 | AH122: 42763.91316 | AI122: 4.752173913 | AJ122: 42763.97953 | AK122: 7.263478261 | AL122: 42763.98004 | AM122: 7.248695652 | AN122: 42763.97606 | AO122: 6.97826087 | AP122: 42763.97759 | AQ122: 6.37826087 | AR122: 42763.95278 | AS122: 42763.97361 | AT122: 42763.93399 | AU122: 5.022608696 | AV122: 42763.93399 | AW122: 4.822608696 | AX122: 42763.91264 | AY122: 4.607826087 | AZ122: 42763.90917 | BA122: 4.422608696 | BB122: 42763.9057 | BC122: 4.337391304 | BD122: 42763.86393 | BE122: 4.222608696 | BF122: 42763.95278 | BH122: 42764.00486 | BI122: 42763.99444
A123: 0 | B123: =IF(Instructions!$C$2="BST",A123,0) -> 0 | C123: 2021-01-30T05:05:00 | D123: 2021-01-30 | E123: 2021-01-30 | F123: 1 | G123: Jan | H123: 30 | I123: 6 | J123: Sat | K123: 42764.21181 | L123: 1.03 | M123: LW | N123: 0.7557251908 | O123: 05:05:00 | P123: 05:00:00 | Q123: 11:00:00 | R123: 0.9861111111 | S123: 42764.24981 | T123: 1.215267176 | U123: 42764.31578 | V123: 42764.21899 | W123: 1.090839695 | X123: 42764.17014 | Y123: 42764.23235 | Z123: 1.093129771 | AA123: 42764.18084 | AB123: 42764.22203 | AC123: 0.9175572519 | AD123: Cls | AE123: 42764.05694 | AF123: 42764.19464 | AG123: 0.893129771 | AH123: 42764.19107 | AI123: 0.993129771 | AJ123: 42764.24638 | AK123: 1.290839695 | AL123: 42764.24638 | AM123: 1.290839695 | AN123: 42764.23601 | AO123: 1.290839695 | AP123: 42764.23954 | AQ123: 1.166412214 | AR123: 42764.20139 | AS123: 42764.22569 | AT123: 42764.20139 | AU123: 1.093129771 | AV123: 42764.20824 | AW123: 1.017557252 | AX123: 42764.19107 | AY123: 0.893129771 | AZ123: 42764.1876 | BA123: 0.8175572519 | BB123: 42764.18408 | BC123: 0.9175572519 | BD123: 42764.13894 | BE123: 0.8198473282 | BF123: 42764.23611 | BH123: 42764.25347 | BI123: 42764.24306
A124: 0 | B124: =IF(Instructions!$C$2="BST",A124,0) -> 0 | C124: 2021-01-30T11:22:00 | D124: 2021-01-30 | E124: Sat | F124: 1 | I124: 6 | K124: 42764.47361 | L124: 5.76 | M124: HW | N124: 1.104347826 | O124: 11:22:00 | P124: 12:00:00 | Q124: 06:00:00 | R124: 0.8944444444 | S124: 42764.48987 | T124: 7.766956522 | U124: 42764.55584 | V124: 42764.49298 | W124: 7.456521739 | X124: 42764.43194 | Y124: 42764.46246 | Z124: 5.725217391 | AA124: 42764.45204 | AB124: 42764.45278 | AC124: 5.325217391 | AD124: Opn | AE124: 42764.33819 | AF124: 42764.44767 | AG124: 4.714782609 | AH124: 42764.42299 | AI124: 5.004347826 | AJ124: 42764.49024 | AK124: 7.666956522 | AL124: 42764.49061 | AM124: 7.677391304 | AN124: 42764.48677 | AO124: 7.356521739 | AP124: 42764.48787 | AQ124: 6.756521739 | AR124: 42764.46319 | AS124: 42764.48403 | AT124: 42764.44383 | AU124: 5.325217391 | AV124: 42764.44383 | AW124: 5.125217391 | AX124: 42764.42263 | AY124: 4.935652174 | AZ124: 42764.41916 | BA124: 4.725217391 | BB124: 42764.41568 | BC124: 4.614782609 | BD124: 42764.37492 | BE124: 4.525217391 | BF124: 42764.46319 | BH124: 42764.51528 | BI124: 42764.50486
A125: 0 | B125: =IF(Instructions!$C$2="BST",A125,0) -> 0 | C125: 2021-01-30T17:33:00 | D125: 2021-01-30 | F125: 1 | I125: 6 | K125: 42764.73125 | L125: 0.78 | M125: LW | N125: 0.9465648855 | O125: 17:33:00 | P125: 17:00:00 | Q125: 23:00:00 | R125: 0.9083333333 | S125: 42764.76817 | T125: 0.8908396947 | U125: 42764.83414 | V125: 42764.73979 | W125: 0.7854961832 | X125: 42764.68958 | Y125: 42764.75017 | Z125: 0.8641221374 | AA125: 42764.70191 | AB125: 42764.74039 | AC125: 0.6694656489 | AD125: Cls | AE125: 42764.56736 | AF125: 42764.71516 | AG125: 0.6641221374 | AH125: 42764.71105 | AI125: 0.7641221374 | AJ125: 42764.76502 | AK125: 0.9854961832 | AL125: 42764.76502 | AM125: 0.9854961832 | AN125: 42764.75492 | AO125: 0.9854961832 | AP125: 42764.75871 | AQ125: 0.8801526718 | AR125: 42764.72083 | AS125: 42764.74514 | AT125: 42764.72083 | AU125: 0.8641221374 | AV125: 42764.72714 | AW125: 0.7694656489 | AX125: 42764.71105 | AY125: 0.6641221374 | AZ125: 42764.70758 | BA125: 0.5694656489 | BB125: 42764.70379 | BC125: 0.6694656489 | BD125: 42764.65865 | BE125: 0.6480916031 | BF125: 42764.75556 | BH125: 42764.77292 | BI125: 42764.7625
A126: 0 | B126: =IF(Instructions!$C$2="BST",A126,0) -> 0 | C126: 2021-01-30T23:45:00 | D126: 2021-01-30 | F126: 1 | I126: 6 | K126: 42764.98958 | L126: 5.51 | M126: HW | N126: 0.8869565217 | O126: 23:45:00 | P126: 1 | Q126: 18:00:00 | R126: 0.9583333333 | S126: 42765.00651 | T126: 7.419130435 | U126: 42765.07248 | V126: 42765.00984 | W126: 7.130434783 | X126: 42764.94792 | Y126: 42764.97888 | Z126: 5.464347826 | AA126: 42764.96846 | AB126: 42764.96875 | AC126: 5.064347826 | AD126: Opn | AE126: 42764.85417 | AF126: 42764.96253 | AG126: 4.475652174 | AH126: 42764.93808 | AI126: 4.786956522 | AJ126: 42765.00666 | AK126: 7.319130435 | AL126: 42765.0068 | AM126: 7.307826087 | AN126: 42765.00318 | AO126: 7.030434783 | AP126: 42765.00362 | AQ126: 6.430434783 | AR126: 42764.97917 | AS126: 42765 | AT126: 42764.95891 | AU126: 5.064347826 | AV126: 42764.95891 | AW126: 4.864347826 | AX126: 42764.93793 | AY126: 4.653043478 | AZ126: 42764.93446 | BA126: 4.464347826 | BB126: 42764.93099 | BC126: 4.375652174 | BD126: 42764.89178 | BE126: 4.264347826 | BF126: 42764.97917 | BH126: 42765.03125 | BI126: 42765.02083
A127: 0 | B127: =IF(Instructions!$C$2="BST",A127,0) -> 0 | C127: 2021-01-31T05:43:00 | D127: 2021-01-31 | E127: 2021-01-31 | F127: 1 | G127: Jan | H127: 31 | I127: 7 | J127: Sun | K127: 42765.23819 | L127: 0.95 | M127: LW | N127: 0.8167938931 | O127: 05:43:00 | P127: 05:00:00 | Q127: 11:00:00 | R127: 0.8805555556 | S127: =IF($M127="HW",$K127+S$6+(S$5-S$6)*$R127,$K127+S$8+(S$7-S$8)*$R127) -> 42765.27473 | T127: 1.111450382 | U127: 42765.3407 | V127: 42765.24721 | W127: 0.993129771 | X127: =IF($M127="HW",$K127+X$6+(X$5-X$6)*$R127,$K127+X$8+(X$7-X$8)*$R127) -> 42765.19653 | Y127: 42765.25654 | Z127: 1.019847328 | AA127: 42765.20943 | AB127: 42765.24695 | AC127: 0.8381679389 | AD127: Cls | AE127: 42765.08333 | AF127: 42765.22249 | AG127: 0.8198473282 | AH127: 42765.21819 | AI127: 0.9198473282 | AJ127: 42765.27167 | AK127: 1.193129771 | AL127: 42765.27167 | AM127: 1.193129771 | AN127: 42765.26167 | AO127: 1.193129771 | AP127: 42765.26556 | AQ127: 1.07480916 | AR127: =IF($M127="HW",$K127+AR$6+(AR$5-AR$6)*$R127,$K127+AR$8+(AR$7-AR$8)*$R127) -> 42765.22778 | AS127: 42765.25208 | AT127: 42765.22778 | AU127: 1.019847328 | AV127: 42765.23389 | AW127: 0.9381679389 | AX127: 42765.21819 | AY127: 0.8198473282 | AZ127: 42765.21472 | BA127: 0.7381679389 | BB127: 42765.21083 | BC127: 0.8381679389 | BD127: 42765.16569 | BE127: 0.7648854962 | BF127: =IF($M127="HW",$K127+BF$6+(BF$5-BF$6)*$R127,$K127+BF$8+(BF$7-BF$8)*$R127) -> 42765.2625 | BH127: 42765.27986 | BI127: 42765.26944
A128: 0 | B128: =IF(Instructions!$C$2="BST",A128,0) -> 0 | C128: 2021-01-31T11:59:00 | D128: 2021-01-31 | E128: Sun | F128: 1 | I128: 7 | K128: 42765.49931 | L128: 5.81 | M128: HW | N128: 1.147826087 | O128: 11:59:00 | P128: 12:00:00 | Q128: 06:00:00 | R128: 0.9972222222 | S128: 42765.51664 | T128: 7.836521739 | U128: 42765.58261 | V128: 42765.5201 | W128: 7.52173913 | X128: 42765.45764 | Y128: 42765.48887 | Z128: 5.777391304 | AA128: 42765.47845 | AB128: 42765.47847 | AC128: 5.377391304 | AD128: Opn | AE128: 42765.36389 | AF128: 42765.47158 | AG128: 4.762608696 | AH128: 42765.44726 | AI128: 5.047826087 | AJ128: 42765.51665 | AK128: 7.736521739 | AL128: 42765.51666 | AM128: 7.751304348 | AN128: 42765.51318 | AO128: 7.42173913 | AP128: 42765.5132 | AQ128: 6.82173913 | AR128: 42765.48889 | AS128: 42765.50972 | AT128: 42765.46809 | AU128: 5.377391304 | AV128: 42765.46809 | AW128: 5.177391304 | AX128: 42765.44725 | AY128: 4.992173913 | AZ128: 42765.44378 | BA128: 4.777391304 | BB128: 42765.44031 | BC128: 4.662608696 | BD128: 42765.40204 | BE128: 4.577391304 | BF128: 42765.48889 | BH128: 42765.54097 | BI128: 42765.53056
A129: 0 | B129: =IF(Instructions!$C$2="BST",A129,0) -> 0 | C129: 2021-01-31T18:13:00 | D129: 2021-01-31 | F129: 1 | I129: 7 | K129: 42765.75903 | L129: 0.71 | M129: LW | N129: 1 | O129: 18:13:00 | P129: 17:00:00 | Q129: 23:00:00 | R129: 0.7972222222 | S129: 42765.79441 | T129: 0.8 | U129: 42765.86038 | V129: 42765.76949 | W129: 0.7 | X129: 42765.71736 | Y129: 42765.77564 | Z129: 0.8 | AA129: 42765.732 | AB129: 42765.76663 | AC129: 0.6 | AD129: Cls | AE129: 42765.59306 | AF129: 42765.74448 | AG129: 0.6 | AH129: 42765.7396 | AI129: 0.7 | AJ129: 42765.79164 | AK129: 0.9 | AL129: 42765.79164 | AM129: 0.9 | AN129: 42765.78193 | AO129: 0.9 | AP129: 42765.7861 | AQ129: 0.8 | AR129: 42765.74861 | AS129: 42765.77292 | AT129: 42765.74861 | AU129: 0.8 | AV129: 42765.75415 | AW129: 0.7 | AX129: 42765.7396 | AY129: 0.6 | AZ129: 42765.73613 | BA129: 0.5 | BB129: 42765.73195 | BC129: 0.6 | BD129: 42765.68682 | BE129: 0.6 | BF129: 42765.78333 | BH129: 42765.80069 | BI129: 42765.79028
A130: 0 | B130: =IF(Instructions!$C$2="BST",A130,0) -> 0 | C130: 2021-02-01T00:25:00 | D130: 2021-02-01 | E130: 2021-02-01 | F130: 2 | G130: Feb | H130: 1 | I130: 1 | J130: Mon | K130: 42766.01736 | L130: 5.49 | M130: HW | N130: 0.8695652174 | O130: 00:25:00 | P130: 00:00:00 | Q130: 06:00:00 | R130: 0.9305555556 | S130: 42766.034 | T130: 7.391304348 | U130: 42766.09997 | V130: 42766.03723 | W130: 7.104347826 | X130: 42765.97569 | Y130: 42766.00646 | Z130: 5.443478261 | AA130: 42765.99605 | AB130: 42765.99653 | AC130: 5.043478261 | AD130: Opn | AE130: 42765.88194 | AF130: 42765.99079 | AG130: 4.456521739 | AH130: 42765.96624 | AI130: 4.769565217 | AJ130: 42766.03424 | AK130: 7.291304348 | AL130: 42766.03448 | AM130: 7.27826087 | AN130: 42766.03077 | AO130: 7.004347826 | AP130: 42766.03149 | AQ130: 6.404347826 | AR130: 42766.00694 | AS130: 42766.02778 | AT130: 42765.98708 | AU130: 5.043478261 | AV130: 42765.98708 | AW130: 4.843478261 | AX130: 42765.966 | AY130: 4.630434783 | AZ130: 42765.96253 | BA130: 4.443478261 | BB130: 42765.95906 | BC130: 4.356521739 | BD130: 42765.91917 | BE130: 4.243478261 | BF130: 42766.00694 | BH130: 42766.05903 | BI130: 42766.04861
A131: 0 | B131: =IF(Instructions!$C$2="BST",A131,0) -> 0 | C131: 2021-02-01T06:23:00 | D131: 2021-02-01 | E131: Mon | F131: 2 | I131: 1 | K131: 42766.26597 | L131: 0.95 | M131: LW | N131: 0.8167938931 | O131: 06:23:00 | P131: 05:00:00 | Q131: 11:00:00 | R131: 0.7694444444 | S131: 42766.30096 | T131: 1.111450382 | U131: 42766.36694 | V131: 42766.27692 | W131: 0.993129771 | X131: 42766.22431 | Y131: 42766.282 | Z131: 1.019847328 | AA131: 42766.23953 | AB131: 42766.27319 | AC131: 0.8381679389 | AD131: Cls | AE131: 42766.11111 | AF131: 42766.25181 | AG131: 0.8198473282 | AH131: 42766.24674 | AI131: 0.9198473282 | AJ131: 42766.29829 | AK131: 1.193129771 | AL131: 42766.29829 | AM131: 1.193129771 | AN131: 42766.28868 | AO131: 1.193129771 | AP131: 42766.29295 | AQ131: 1.07480916 | AR131: 42766.25556 | AS131: 42766.27986 | AT131: 42766.25556 | AU131: 1.019847328 | AV131: 42766.2609 | AW131: 0.9381679389 | AX131: 42766.24674 | AY131: 0.8198473282 | AZ131: 42766.24327 | BA131: 0.7381679389 | BB131: 42766.23899 | BC131: 0.8381679389 | BD131: 42766.19386 | BE131: 0.7648854962 | BF131: 42766.29028 | BH131: 42766.30764 | BI131: 42766.29722
A132: 0 | B132: =IF(Instructions!$C$2="BST",A132,0) -> 0 | C132: 2021-02-01T12:39:00 | D132: 2021-02-01 | F132: 2 | I132: 1 | K132: 42766.52708 | L132: 5.79 | M132: HW | N132: 1.130434783 | O132: 12:39:00 | P132: 12:00:00 | Q132: 18:00:00 | R132: 0.8916666667 | S132: 42766.54332 | T132: 7.808695652 | U132: 42766.60929 | V132: 42766.54641 | W132: 7.495652174 | X132: 42766.48542 | Y132: 42766.51591 | Z132: 5.756521739 | AA132: 42766.5055 | AB132: 42766.50625 | AC132: 5.356521739 | AD132: Opn | AE132: 42766.39167 | AF132: 42766.50119 | AG132: 4.743478261 | AH132: 42766.4765 | AI132: 5.030434783 | AJ132: 42766.54369 | AK132: 7.708695652 | AL132: 42766.54407 | AM132: 7.72173913 | AN132: 42766.54022 | AO132: 7.395652174 | AP132: 42766.54135 | AQ132: 6.795652174 | AR132: 42766.51667 | AS132: 42766.5375 | AT132: 42766.49734 | AU132: 5.356521739 | AV132: 42766.49734 | AW132: 5.156521739 | AX132: 42766.47613 | AY132: 4.969565217 | AZ132: 42766.47266 | BA132: 4.756521739 | BB132: 42766.46918 | BC132: 4.643478261 | BD132: 42766.42836 | BE132: 4.556521739 | BF132: 42766.51667 | BH132: 42766.56875 | BI132: 42766.55833
A133: 0 | B133: =IF(Instructions!$C$2="BST",A133,0) -> 0 | C133: 2021-02-01T18:55:00 | D133: 2021-02-01 | F133: 2 | I133: 1 | K133: 42766.78819 | L133: 0.73 | M133: LW | N133: 0.9847328244 | O133: 18:55:00 | P133: 17:00:00 | Q133: 23:00:00 | R133: 0.6805555556 | S133: 42766.82195 | T133: 0.8259541985 | U133: 42766.88792 | V133: 42766.80068 | W133: 0.7244274809 | X133: 42766.74653 | Y133: 42766.80237 | Z133: 0.8183206107 | AA133: 42766.7636 | AB133: 42766.79417 | AC133: 0.6198473282 | AD133: Cls | AE133: 42766.62083 | AF133: 42766.77527 | AG133: 0.6183206107 | AH133: 42766.76958 | AI133: 0.7183206107 | AJ133: 42766.81959 | AK133: 0.9244274809 | AL133: 42766.81959 | AM133: 0.9244274809 | AN133: 42766.81028 | AO133: 0.9244274809 | AP133: 42766.81486 | AQ133: 0.8229007634 | AR133: 42766.77778 | AS133: 42766.80208 | AT133: 42766.77778 | AU133: 0.8183206107 | AV133: 42766.7825 | AW133: 0.7198473282 | AX133: 42766.76958 | AY133: 0.6183206107 | AZ133: 42766.76611 | BA133: 0.5198473282 | BB133: 42766.76153 | BC133: 0.6198473282 | BD133: 42766.71639 | BE133: 0.613740458 | BF133: 42766.8125 | BH133: 42766.82986 | BI133: 42766.81944
A134: 0 | B134: =IF(Instructions!$C$2="BST",A134,0) -> 0 | C134: 2021-02-02T01:06:00 | D134: 2021-02-02 | E134: 2021-02-02 | F134: 2 | G134: Feb | H134: 2 | I134: 2 | J134: Tue | K134: 42767.04583 | L134: 5.4 | M134: HW | N134: 0.7913043478 | O134: 01:06:00 | P134: 00:00:00 | Q134: 06:00:00 | R134: 0.8166666667 | S134: 42767.06128 | T134: 7.266086957 | U134: 42767.12726 | V134: 42767.06412 | W134: 6.986956522 | X134: 42767.00417 | Y134: 42767.03414 | Z134: 5.349565217 | AA134: 42767.02373 | AB134: 42767.025 | AC134: 4.949565217 | AD134: Opn | AE134: 42766.91042 | AF134: 42767.02124 | AG134: 4.370434783 | AH134: 42766.9963 | AI134: 4.691304348 | AJ134: 42767.06192 | AK134: 7.166086957 | AL134: 42767.06256 | AM134: 7.145217391 | AN134: 42767.05845 | AO134: 6.886956522 | AP134: 42767.06036 | AQ134: 6.286956522 | AR134: 42767.03542 | AS134: 42767.05625 | AT134: 42767.01713 | AU134: 4.949565217 | AV134: 42767.01713 | AW134: 4.749565217 | AX134: 42766.99566 | AY134: 4.528695652 | AZ134: 42766.99219 | BA134: 4.349565217 | BB134: 42766.98872 | BC134: 4.270434783 | BD134: 42766.94606 | BE134: 4.149565217 | BF134: 42767.03542 | BH134: 42767.0875 | BI134: 42767.07708
A135: 0 | B135: =IF(Instructions!$C$2="BST",A135,0) -> 0 | C135: 2021-02-02T07:06:00 | D135: 2021-02-02 | E135: Tue | F135: 2 | I135: 2 | K135: 42767.29583 | L135: 1.02 | M135: LW | N135: 0.7633587786 | O135: 07:06:00 | P135: 05:00:00 | Q135: 11:00:00 | R135: 0.65 | S135: 42767.32917 | T135: 1.202290076 | U135: 42767.39514 | V135: 42767.30885 | W135: 1.078625954 | X135: 42767.25417 | Y135: 42767.30937 | Z135: 1.083969466 | AA135: 42767.27187 | AB135: 42767.30139 | AC135: 0.9076335878 | AD135: Cls | AE135: 42767.13958 | AF135: 42767.28333 | AG135: 0.8839694656 | AH135: 42767.27743 | AI135: 0.9839694656 | AJ135: 42767.32691 | AK135: 1.278625954 | AL135: 42767.32691 | AM135: 1.278625954 | AN135: 42767.31771 | AO135: 1.278625954 | AP135: 42767.3224 | AQ135: 1.154961832 | AR135: 42767.28542 | AS135: 42767.30972 | AT135: 42767.28542 | AU135: 1.083969466 | AV135: 42767.28993 | AW135: 1.007633588 | AX135: 42767.27743 | AY135: 0.8839694656 | AZ135: 42767.27396 | BA135: 0.8076335878 | BB135: 42767.26927 | BC135: 0.9076335878 | BD135: 42767.22413 | BE135: 0.8129770992 | BF135: 42767.32014 | BH135: 42767.3375 | BI135: 42767.32708
A136: 0 | B136: =IF(Instructions!$C$2="BST",A136,0) -> 0 | C136: 2021-02-02T13:21:00 | D136: 2021-02-02 | F136: 2 | I136: 2 | K136: 42767.55625 | L136: 5.69 | M136: HW | N136: 1.043478261 | O136: 13:21:00 | P136: 12:00:00 | Q136: 18:00:00 | R136: 0.775 | S136: 42767.57127 | T136: 7.669565217 | U136: 42767.63724 | V136: 42767.57396 | W136: 7.365217391 | X136: 42767.51458 | Y136: 42767.54427 | Z136: 5.652173913 | AA136: 42767.53385 | AB136: 42767.53542 | AC136: 5.252173913 | AD136: Opn | AE136: 42767.42083 | AF136: 42767.53238 | AG136: 4.647826087 | AH136: 42767.50729 | AI136: 4.943478261 | AJ136: 42767.57205 | AK136: 7.569565217 | AL136: 42767.57283 | AM136: 7.573913043 | AN136: 42767.56858 | AO136: 7.265217391 | AP136: 42767.57092 | AQ136: 6.665217391 | AR136: 42767.54583 | AS136: 42767.56667 | AT136: 42767.52813 | AU136: 5.252173913 | AV136: 42767.52813 | AW136: 5.052173913 | AX136: 42767.50651 | AY136: 4.856521739 | AZ136: 42767.50304 | BA136: 4.652173913 | BB136: 42767.49957 | BC136: 4.547826087 | BD136: 42767.4559 | BE136: 4.452173913 | BF136: 42767.54583 | BH136: 42767.59792 | BI136: 42767.5875
A137: 0 | B137: =IF(Instructions!$C$2="BST",A137,0) -> 0 | C137: 2021-02-02T19:40:00 | D137: 2021-02-02 | F137: 2 | I137: 2 | K137: 42767.81944 | L137: 0.85 | M137: LW | N137: 0.893129771 | O137: 19:40:00 | P137: 17:00:00 | Q137: 23:00:00 | R137: 0.5555555556 | S137: 42767.85147 | T137: 0.9816793893 | U137: 42767.91744 | V137: 42767.8341 | W137: 0.8709923664 | X137: 42767.77778 | Y137: 42767.83102 | Z137: 0.9282442748 | AA137: 42767.79745 | AB137: 42767.82369 | AC137: 0.7389312977 | AD137: Cls | AE137: 42767.65 | AF137: 42767.80826 | AG137: 0.7282442748 | AH137: 42767.8017 | AI137: 0.8282442748 | AJ137: 42767.84954 | AK137: 1.070992366 | AL137: 42767.84954 | AM137: 1.070992366 | AN137: 42767.84066 | AO137: 1.070992366 | AP137: 42767.84568 | AQ137: 0.9603053435 | AR137: 42767.80903 | AS137: 42767.83333 | AT137: 42767.80903 | AU137: 0.9282442748 | AV137: 42767.81289 | AW137: 0.8389312977 | AX137: 42767.8017 | AY137: 0.7282442748 | AZ137: 42767.79823 | BA137: 0.6389312977 | BB137: 42767.79321 | BC137: 0.7389312977 | BD137: 42767.74807 | BE137: 0.6961832061 | BF137: 42767.84375 | BH137: 42767.86111 | BI137: 42767.85069
A138: 0 | B138: =IF(Instructions!$C$2="BST",A138,0) -> 0 | C138: 2021-02-03T01:51:00 | D138: 2021-02-03 | E138: 2021-02-03 | F138: 2 | G138: Feb | H138: 3 | I138: 3 | J138: Wed | K138: 42768.07708 | L138: 5.26 | M138: HW | N138: 0.6695652174 | O138: 01:51:00 | P138: 00:00:00 | Q138: 06:00:00 | R138: 0.6916666667 | S138: 42768.09123 | T138: 7.071304348 | U138: 42768.1572 | V138: 42768.09363 | W138: 6.804347826 | X138: 42768.03542 | Y138: 42768.06453 | Z138: =IF($M138="HW",Y$2+(Y$1-Y$2)*$N138,Y$3+(Y$4-Y$3)*$N138) -> 5.203478261 | AA138: 42768.05411 | AB138: 42768.05625 | AC138: =IF($M138="HW",AB$2+(AB$1-AB$2)*$N138,AB$3+(AB$4-AB$3)*$N138) -> 4.803478261 | AD138: Opn | AE138: 42767.94167 | AF138: 42768.05466 | AG138: =IF($M138="HW",AF$2+(AF$1-AF$2)*$N138,AF$3+(AF$4-AF$3)*$N138) -> 4.236521739 | AH138: 42768.02928 | AI138: =IF($M138="HW",AH$2+(AH$1-AH$2)*$N138,AH$3+(AH$4-AH$3)*$N138) -> 4.569565217 | AJ138: 42768.0923 | AK138: =IF($M138="HW",AJ$2+(AJ$1-AJ$2)*$N138,AJ$3+(AJ$4-AJ$3)*$N138) -> 6.971304348 | AL138: 42768.09337 | AM138: =IF($M138="HW",AL$2+(AL$1-AL$2)*$N138,AL$3+(AL$4-AL$3)*$N138) -> 6.93826087 | AN138: 42768.08883 | AO138: =IF($M138="HW",AN$2+(AN$1-AN$2)*$N138,AN$3+(AN$4-AN$3)*$N138) -> 6.704347826 | AP138: 42768.09204 | AQ138: =IF($M138="HW",AP$2+(AP$1-AP$2)*$N138,AP$3+(AP$4-AP$3)*$N138) -> 6.104347826 | AR138: 42768.06667 | AS138: 42768.0875 | AT138: 42768.05012 | AU138: =IF($M138="HW",AT$2+(AT$1-AT$2)*$N138,AT$3+(AT$4-AT$3)*$N138) -> 4.803478261 | AV138: 42768.05012 | AW138: =IF($M138="HW",AV$2+(AV$1-AV$2)*$N138,AV$3+(AV$4-AV$3)*$N138) -> 4.603478261 | AX138: 42768.02821 | AY138: =IF($M138="HW",AX$2+(AX$1-AX$2)*$N138,AX$3+(AX$4-AX$3)*$N138) -> 4.370434783 | AZ138: 42768.02474 | BA138: =IF($M138="HW",AZ$2+(AZ$1-AZ$2)*$N138,AZ$3+(AZ$4-AZ$3)*$N138) -> 4.203478261 | BB138: 42768.02127 | BC138: =IF($M138="HW",BB$2+(BB$1-BB$2)*$N138,BB$3+(BB$4-BB$3)*$N138) -> 4.136521739 | BD138: 42767.97558 | BE138: =IF($M138="HW",BD$2+(BD$1-BD$2)*$N138,BD$3+(BD$4-BD$3)*$N138) -> 4.003478261 | BF138: 42768.06667 | BH138: 42768.11875 | BI138: 42768.10833
A139: 0 | B139: =IF(Instructions!$C$2="BST",A139,0) -> 0 | C139: 2021-02-03T07:52:00 | D139: 2021-02-03 | E139: Wed | F139: 2 | I139: 3 | K139: 42768.32778 | L139: 1.17 | M139: LW | N139: =IF(M139="HW",(L139-K$2)/(K$1-K$2),(L139-K$3)/(K$4-K$3)) -> 0.6488549618 | O139: 07:52:00 | P139: =IF(M139="HW",IF(AND(O139>=L$5,O139<L$6),L$5,IF(AND(O139>=L$6,O139<M$5),M$5,IF(AND(O139>=M$5,O139<M$6),M$5,IF(O139>=M$6,L$5+1,L$5)))),IF(AND(O139>=L$7,O139<L$8),L$7,IF(AND(O139>=L$8,O139<M$7),M$7,IF(AND(O139>=M$7,O139<M$8),M$7,IF(O139>=M$8,L$7+1,L$7))))) -> 05:00:00 | Q139: =IF(M139="HW",IF(AND(O139>=L$5,O139<L$6),L$6,IF(AND(O139>=L$6,O139<M$5),L$6,IF(AND(O139>=M$5,O139<M$6),M$6,IF(O139>=M$6,M$6,M$6-1)))),IF(AND(O139>=L$7,O139<L$8),L$8,IF(AND(O139>=L$8,O139<M$7),L$8,IF(AND(O139>=M$7,O139<M$8),M$8,IF(O139>=M$8,M$8,M$8-1))))) -> 11:00:00 | R139: 0.5222222222 | S139: 42768.35934 | T139: =IF($M139="HW",S$2+(S$1-S$2)*$N139,S$3+(S$4-S$3)*$N139) -> 1.396946565 | U139: 42768.42531 | V139: 42768.34302 | W139: =IF($M139="HW",V$2+(V$1-V$2)*$N139,V$3+(V$4-V$3)*$N139) -> 1.261832061 | X139: 42768.28611 | Y139: 42768.33866 | Z139: 1.221374046 | AA139: 42768.30648 | AB139: =IF($M139="HW",$K139+AB$6+(AB$5-AB$6)*$R139,$K139+AB$8+(AB$7-AB$8)*$R139) -> 42768.33156 | AC139: 1.05648855 | AD139: =IF($M139="HW","Opn","Cls") -> Cls | AE139: 42768.17083 | AF139: =IF($M139="HW",$K139+AF$6+(AF$5-AF$6)*$R139,$K139+AF$8+(AF$7-AF$8)*$R139) -> 42768.31705 | AG139: 1.021374046 | AH139: =IF($M139="HW",$K139+AH$6+(AH$5-AH$6)*$R139,$K139+AH$8+(AH$7-AH$8)*$R139) -> 42768.31026 | AI139: 1.121374046 | AJ139: =IF($M139="HW",$K139+AJ$6+(AJ$5-AJ$6)*$R139,$K139+AJ$8+(AJ$7-AJ$8)*$R139) -> 42768.35752 | AK139: 1.461832061 | AL139: =IF($M139="HW",$K139+AL$6+(AL$5-AL$6)*$R139,$K139+AL$8+(AL$7-AL$8)*$R139) -> 42768.35752 | AM139: 1.461832061 | AN139: =IF($M139="HW",$K139+AN$6+(AN$5-AN$6)*$R139,$K139+AN$8+(AN$7-AN$8)*$R139) -> 42768.34877 | AO139: 1.461832061 | AP139: =IF($M139="HW",$K139+AP$6+(AP$5-AP$6)*$R139,$K139+AP$8+(AP$7-AP$8)*$R139) -> 42768.3539 | AQ139: 1.326717557 | AR139: 42768.31736 | AS139: 42768.34167 | AT139: =IF($M139="HW",$K139+AT$6+(AT$5-AT$6)*$R139,$K139+AT$8+(AT$7-AT$8)*$R139) -> 42768.31736 | AU139: 1.221374046 | AV139: =IF($M139="HW",$K139+AV$6+(AV$5-AV$6)*$R139,$K139+AV$8+(AV$7-AV$8)*$R139) -> 42768.32099 | AW139: 1.15648855 | AX139: =IF($M139="HW",$K139+AX$6+(AX$5-AX$6)*$R139,$K139+AX$8+(AX$7-AX$8)*$R139) -> 42768.31026 | AY139: 1.021374046 | AZ139: =IF($M139="HW",$K139+AZ$6+(AZ$5-AZ$6)*$R139,$K139+AZ$8+(AZ$7-AZ$8)*$R139) -> 42768.30679 | BA139: 0.9564885496 | BB139: =IF($M139="HW",$K139+BB$6+(BB$5-BB$6)*$R139,$K139+BB$8+(BB$7-BB$8)*$R139) -> 42768.30166 | BC139: 1.05648855 | BD139: =IF($M139="HW",$K139+BD$6+(BD$5-BD$6)*$R139,$K139+BD$8+(BD$7-BD$8)*$R139) -> 42768.25652 | BE139: 0.9160305344 | BF139: 42768.35208 | BH139: 42768.36944 | BI139: 42768.35903
A140: 0 | B140: =IF(Instructions!$C$2="BST",A140,0) -> 0 | C140: 2021-02-03T14:07:00 | D140: =DATE(YEAR(K140),MONTH(K140),DAY(K140)) -> 2021-02-03 | F140: =MONTH(K140) -> 2 | G140: =IF(H140="","",TEXT(F140*29,"mmm")) ->  | H140: =IF(I140=I139,"",DAY(K140)) ->  | I140: =WEEKDAY(K140,2) -> 3 | J140: =IF(I140=I139,"",TEXT(I140+2,"ddd")) ->  | K140: =C140+B140/24 -> 42768.58819 | L140: 5.51 | M140: HW | N140: 0.8869565217 | O140: =C140-INT(C140) -> 14:07:00 | P140: 12:00:00 | Q140: 18:00:00 | R140: =ABS((O140-Q140)/(P140-Q140)) -> 0.6472222222 | S140: 42768.60188 | T140: 7.419130435 | U140: 42768.66785 | V140: 42768.60413 | W140: 7.130434783 | X140: 42768.54653 | Y140: 42768.57533 | Z140: 5.464347826 | AA140: =IF($M140="HW",$K140+AA$6+(AA$5-AA$6)*$R140,$K140+AA$8+(AA$7-AA$8)*$R140) -> 42768.56491 | AB140: 42768.56736 | AC140: 5.064347826 | AD140: Opn | AE140: =IF($M140="HW",$AB140-AD$8,$AB139+AD$8) -> 42768.45278 | AF140: 42768.56654 | AG140: 4.475652174 | AH140: 42768.54101 | AI140: 4.786956522 | AJ140: 42768.60311 | AK140: 7.319130435 | AL140: 42768.60433 | AM140: 7.307826087 | AN140: 42768.59963 | AO140: 7.030434783 | AP140: 42768.60331 | AQ140: 6.430434783 | AR140: 42768.57778 | AS140: 42768.59861 | AT140: 42768.56184 | AU140: 5.064347826 | AV140: 42768.56184 | AW140: 4.864347826 | AX140: 42768.53979 | AY140: 4.653043478 | AZ140: 42768.53631 | BA140: 4.464347826 | BB140: 42768.53284 | BC140: 4.375652174 | BD140: 42768.48607 | BE140: 4.264347826 | BF140: 42768.57778 | BH140: 42768.62986 | BI140: 42768.61944
A141: 0 | B141: =IF(Instructions!$C$2="BST",A141,0) -> 0 | C141: 2021-02-03T20:30:00 | D141: 2021-02-03 | E141: =IF(D141=D140,IF(J140="","",J140),D141) ->  | F141: 2 | I141: 3 | K141: 42768.85417 | L141: 1.07 | M141: LW | N141: 0.7251908397 | O141: 20:30:00 | P141: 17:00:00 | Q141: 23:00:00 | R141: 0.4166666667 | S141: 42768.88426 | T141: 1.267175573 | U141: 42768.95023 | V141: 42768.87124 | W141: 1.139694656 | X141: 42768.8125 | Y141: 42768.86285 | Z141: 1.129770992 | AA141: 42768.83507 | AB141: 42768.85648 | AC141: 0.9572519084 | AD141: Cls | AE141: 42768.68194 | AF141: 42768.84491 | AG141: 0.9297709924 | AH141: 42768.83738 | AI141: 1.029770992 | AJ141: 42768.88281 | AK141: 1.339694656 | AL141: 42768.88281 | AM141: 1.339694656 | AN141: 42768.87442 | AO141: 1.339694656 | AP141: 42768.87992 | AQ141: 1.21221374 | AR141: 42768.84375 | AS141: 42768.86806 | AT141: 42768.84375 | AU141: 1.129770992 | AV141: 42768.84664 | AW141: 1.057251908 | AX141: 42768.83738 | AY141: 0.9297709924 | AZ141: 42768.83391 | BA141: 0.8572519084 | BB141: 42768.82841 | BC141: 0.9572519084 | BD141: 42768.78328 | BE141: 0.8473282443 | BF141: 42768.87847 | BH141: 42768.89583 | BI141: 42768.88542
A142: 0 | B142: =IF(Instructions!$C$2="BST",A142,0) -> 0 | C142: 2021-02-04T02:41:00 | D142: 2021-02-04 | E142: 2021-02-04 | F142: 2 | G142: Feb | H142: 4 | I142: 4 | J142: Thu | K142: 42769.11181 | L142: 5.06 | M142: HW | N142: 0.4956521739 | O142: 02:41:00 | P142: 00:00:00 | Q142: 06:00:00 | R142: 0.5527777778 | S142: 42769.12451 | T142: 6.793043478 | U142: 42769.19048 | V142: 42769.12643 | W142: 6.543478261 | X142: 42769.07014 | Y142: 42769.09828 | Z142: 4.994782609 | AA142: 42769.08787 | AB142: 42769.09097 | AC142: 4.594782609 | AD142: Opn | AE142: 42768.97639 | AF142: 42769.09179 | AG142: 4.045217391 | AH142: 42769.06593 | AI142: 4.395652174 | AJ142: 42769.12606 | AK142: 6.693043478 | AL142: 42769.12761 | AM142: 6.642608696 | AN142: 42769.12259 | AO142: 6.443478261 | AP142: 42769.12725 | AQ142: 5.843478261 | AR142: 42769.10139 | AS142: 42769.12222 | AT142: 42769.08677 | AU142: 4.594782609 | AV142: 42769.08677 | AW142: 4.394782609 | AX142: 42769.06438 | AY142: 4.144347826 | AZ142: 42769.06091 | BA142: 3.994782609 | BB142: 42769.05744 | BC142: 3.945217391 | BD142: 42769.00837 | BE142: 3.794782609 | BF142: 42769.10139 | BH142: 42769.15347 | BI142: 42769.14306
A143: 0 | B143: =IF(Instructions!$C$2="BST",A143,0) -> 0 | C143: 2021-02-04T08:45:00 | D143: 2021-02-04 | E143: Thu | F143: 2 | I143: 4 | K143: 42769.36458 | L143: 1.4 | M143: LW | N143: 0.4732824427 | O143: 08:45:00 | P143: 05:00:00 | Q143: 11:00:00 | R143: 0.375 | S143: =IF($M143="HW",$K143+S$6+(S$5-S$6)*$R143,$K143+S$8+(S$7-S$8)*$R143) -> 42769.3941 | T143: 1.695419847 | U143: 42769.46007 | V143: 42769.38238 | W143: 1.542748092 | X143: =IF($M143="HW",$K143+X$6+(X$5-X$6)*$R143,$K143+X$8+(X$7-X$8)*$R143) -> 42769.32292 | Y143: 42769.3724 | Z143: 1.432061069 | AA143: 42769.34635 | AB143: 42769.36632 | AC143: 1.284732824 | AD143: Cls | AE143: 42769.20556 | AF143: 42769.3559 | AG143: 1.232061069 | AH143: 42769.34809 | AI143: 1.332061069 | AJ143: 42769.3928 | AK143: 1.742748092 | AL143: 42769.3928 | AM143: 1.742748092 | AN143: 42769.38455 | AO143: 1.742748092 | AP143: 42769.39019 | AQ143: 1.590076336 | AR143: =IF($M143="HW",$K143+AR$6+(AR$5-AR$6)*$R143,$K143+AR$8+(AR$7-AR$8)*$R143) -> 42769.35417 | AS143: 42769.37847 | AT143: 42769.35417 | AU143: 1.432061069 | AV143: 42769.35677 | AW143: 1.384732824 | AX143: 42769.34809 | AY143: 1.232061069 | AZ143: 42769.34462 | BA143: 1.184732824 | BB143: 42769.33898 | BC143: 1.284732824 | BD143: 42769.29384 | BE143: 1.074045802 | BF143: =IF($M143="HW",$K143+BF$6+(BF$5-BF$6)*$R143,$K143+BF$8+(BF$7-BF$8)*$R143) -> 42769.38889 | BH143: 42769.40625 | BI143: 42769.39583
A144: 0 | B144: =IF(Instructions!$C$2="BST",A144,0) -> 0 | C144: 2021-02-04T15:01:00 | D144: 2021-02-04 | F144: 2 | I144: 4 | K144: 42769.62569 | L144: 5.26 | M144: HW | N144: 0.6695652174 | O144: 15:01:00 | P144: 12:00:00 | Q144: 18:00:00 | R144: 0.4972222222 | S144: 42769.63782 | T144: 7.071304348 | U144: 42769.70379 | V144: 42769.63954 | W144: 6.804347826 | X144: 42769.58403 | Y144: 42769.61179 | Z144: 5.203478261 | AA144: 42769.60137 | AB144: 42769.60486 | AC144: 4.803478261 | AD144: Opn | AE144: 42769.49028 | AF144: 42769.60665 | AG144: 4.236521739 | AH144: 42769.58059 | AI144: 4.569565217 | AJ144: 42769.63956 | AK144: 6.971304348 | AL144: 42769.64131 | AM144: 6.93826087 | AN144: 42769.63609 | AO144: 6.704347826 | AP144: 42769.64133 | AQ144: 6.104347826 | AR144: 42769.61528 | AS144: 42769.63611 | AT144: 42769.60143 | AU144: 4.803478261 | AV144: 42769.60143 | AW144: 4.603478261 | AX144: 42769.57885 | AY144: 4.370434783 | AZ144: 42769.57538 | BA144: 4.203478261 | BB144: 42769.5719 | BC144: 4.136521739 | BD144: 42769.52149 | BE144: 4.003478261 | BF144: 42769.61528 | BH144: 42769.66736 | BI144: 42769.65694
A145: 0 | B145: =IF(Instructions!$C$2="BST",A145,0) -> 0 | C145: 2021-02-04T21:27:00 | D145: 2021-02-04 | F145: 2 | I145: 4 | K145: 42769.89375 | L145: 1.34 | M145: LW | N145: 0.5190839695 | O145: 21:27:00 | P145: 17:00:00 | Q145: 23:00:00 | R145: 0.2583333333 | S145: 42769.92164 | T145: 1.617557252 | U145: 42769.98762 | V145: 42769.91357 | W145: 1.469465649 | X145: 42769.85208 | Y145: 42769.89913 | Z145: 1.377099237 | AA145: 42769.87795 | AB145: 42769.89387 | AC145: 1.22519084 | AD145: Cls | AE145: 42769.71944 | AF145: 42769.88669 | AG145: 1.177099237 | AH145: 42769.87807 | AI145: 1.277099237 | AJ145: 42769.92075 | AK145: 1.669465649 | AL145: 42769.92075 | AM145: 1.669465649 | AN145: 42769.91291 | AO145: 1.669465649 | AP145: 42769.91895 | AQ145: 1.521374046 | AR145: 42769.88333 | AS145: 42769.90764 | AT145: 42769.88333 | AU145: 1.377099237 | AV145: 42769.88513 | AW145: 1.32519084 | AX145: 42769.87807 | AY145: 1.177099237 | AZ145: 42769.87459 | BA145: 1.12519084 | BB145: 42769.86855 | BC145: 1.22519084 | BD145: 42769.82341 | BE145: 1.032824427 | BF145: 42769.91806 | BH145: 42769.93542 | BI145: 42769.925
A146: 0 | B146: =IF(Instructions!$C$2="BST",A146,0) -> 0 | C146: 2021-02-05T03:40:00 | D146: 2021-02-05 | E146: 2021-02-05 | F146: 2 | G146: Feb | H146: 5 | I146: 5 | J146: Fri | K146: 42770.15278 | L146: 4.85 | M146: HW | N146: 0.3130434783 | O146: 03:40:00 | P146: 00:00:00 | Q146: 06:00:00 | R146: 0.3888888889 | S146: 42770.16377 | T146: 6.500869565 | U146: 42770.22975 | V146: 42770.16512 | W146: 6.269565217 | X146: 42770.11111 | Y146: 42770.13812 | Z146: 4.775652174 | AA146: 42770.1277 | AB146: 42770.13194 | AC146: 4.375652174 | AD146: Opn | AE146: 42770.01736 | AF146: 42770.13561 | AG146: 3.844347826 | AH146: 42770.10918 | AI146: 4.213043478 | AJ146: 42770.1659 | AK146: 6.400869565 | AL146: 42770.16802 | AM146: 6.332173913 | AN146: 42770.16242 | AO146: 6.169565217 | AP146: 42770.16879 | AQ146: 5.569565217 | AR146: 42770.14236 | AS146: 42770.16319 | AT146: 42770.13002 | AU146: 4.375652174 | AV146: 42770.13002 | AW146: 4.175652174 | AX146: 42770.10706 | AY146: 3.906956522 | AZ146: 42770.10359 | BA146: 3.775652174 | BB146: 42770.10012 | BC146: 3.744347826 | BD146: 42770.04707 | BE146: 3.575652174 | BF146: 42770.14236 | BH146: 42770.19444 | BI146: 42770.18403
A147: 0 | B147: =IF(Instructions!$C$2="BST",A147,0) -> 0 | C147: 2021-02-05T09:47:00 | D147: 2021-02-05 | E147: Fri | F147: 2 | I147: 5 | K147: 42770.40764 | L147: 1.65 | M147: LW | N147: 0.2824427481 | O147: 09:47:00 | P147: 05:00:00 | Q147: 11:00:00 | R147: 0.2027777778 | S147: 42770.43476 | T147: 2.019847328 | U147: 42770.50073 | V147: 42770.42842 | W147: 1.848091603 | X147: 42770.36597 | Y147: 42770.41186 | Z147: 1.661068702 | AA147: 42770.393 | AB147: 42770.40698 | AC147: 1.532824427 | AD147: Cls | AE147: 42770.24653 | AF147: 42770.40135 | AG147: 1.461068702 | AH147: 42770.39234 | AI147: 1.561068702 | AJ147: 42770.43406 | AK147: 2.048091603 | AL147: 42770.43406 | AM147: 2.048091603 | AN147: 42770.42641 | AO147: 2.048091603 | AP147: 42770.43265 | AQ147: 1.876335878 | AR147: 42770.39722 | AS147: 42770.42153 | AT147: 42770.39722 | AU147: 1.661068702 | AV147: 42770.39863 | AW147: 1.632824427 | AX147: 42770.39234 | AY147: 1.461068702 | AZ147: 42770.38887 | BA147: 1.432824427 | BB147: 42770.38263 | BC147: 1.532824427 | BD147: 42770.33749 | BE147: 1.245801527 | BF147: 42770.43194 | BH147: 42770.44931 | BI147: 42770.43889
A148: 0 | B148: =IF(Instructions!$C$2="BST",A148,0) -> 0 | C148: 2021-02-05T16:06:00 | D148: 2021-02-05 | F148: 2 | I148: 5 | K148: 42770.67083 | L148: 4.99 | M148: HW | N148: 0.4347826087 | O148: 16:06:00 | P148: 12:00:00 | Q148: 18:00:00 | R148: 0.3166666667 | S148: 42770.68108 | T148: 6.695652174 | U148: 42770.74705 | V148: 42770.68218 | W148: 6.452173913 | X148: 42770.62917 | Y148: 42770.65567 | Z148: 4.92173913 | AA148: 42770.64525 | AB148: 42770.65 | AC148: 4.52173913 | AD148: Opn | AE148: 42770.53542 | AF148: 42770.65492 | AG148: 3.97826087 | AH148: 42770.62824 | AI148: 4.334782609 | AJ148: 42770.68345 | AK148: 6.595652174 | AL148: 42770.68582 | AM148: 6.539130435 | AN148: 42770.67998 | AO148: 6.352173913 | AP148: 42770.68709 | AQ148: 5.752173913 | AR148: 42770.66042 | AS148: 42770.68125 | AT148: 42770.64907 | AU148: 4.52173913 | AV148: 42770.64907 | AW148: 4.32173913 | AX148: 42770.62587 | AY148: 4.065217391 | AZ148: 42770.6224 | BA148: 3.92173913 | BB148: 42770.61892 | BC148: 3.87826087 | BD148: 42770.56412 | BE148: 3.72173913 | BF148: 42770.66042 | BH148: 42770.7125 | BI148: 42770.70208
A149: 0 | B149: =IF(Instructions!$C$2="BST",A149,0) -> 0 | C149: 2021-02-05T22:35:00 | D149: 2021-02-05 | F149: 2 | I149: 5 | K149: 42770.94097 | L149: 1.6 | M149: LW | N149: 0.320610687 | O149: 22:35:00 | P149: 17:00:00 | Q149: 23:00:00 | R149: 0.06944444446 | S149: 42770.96624 | T149: 1.954961832 | U149: 42771.03221 | V149: 42770.96407 | W149: 1.787022901 | X149: 42770.89931 | Y149: 42770.94242 | Z149: 1.615267176 | AA149: 42770.92911 | AB149: 42770.93846 | AC149: 1.483206107 | AD149: Cls | AE149: 42770.76458 | AF149: 42770.93654 | AG149: 1.415267176 | AH149: 42770.9266 | AI149: 1.515267176 | AJ149: 42770.966 | AK149: 1.987022901 | AL149: 42770.966 | AM149: 1.987022901 | AN149: 42770.95882 | AO149: 1.987022901 | AP149: 42770.96552 | AQ149: 1.819083969 | AR149: 42770.93056 | AS149: 42770.95486 | AT149: 42770.93056 | AU149: 1.615267176 | AV149: 42770.93104 | AW149: 1.583206107 | AX149: 42770.9266 | AY149: 1.415267176 | AZ149: 42770.92313 | BA149: 1.383206107 | BB149: 42770.91643 | BC149: 1.483206107 | BD149: 42770.87129 | BE149: 1.211450382 | BF149: 42770.96528 | BH149: 42770.98264 | BI149: 42770.97222
A150: 0 | B150: =IF(Instructions!$C$2="BST",A150,0) -> 0 | C150: 2021-02-06T04:52:00 | D150: 2021-02-06 | E150: 2021-02-06 | F150: 2 | G150: Feb | H150: 6 | I150: 6 | J150: Sat | K150: 42771.20278 | L150: 4.69 | M150: HW | N150: 0.1739130435 | O150: 04:52:00 | P150: 00:00:00 | Q150: 06:00:00 | R150: 0.1888888889 | S150: 42771.21169 | T150: 6.27826087 | U150: 42771.27766 | V150: 42771.21235 | W150: 6.060869565 | X150: 42771.16111 | Y150: 42771.18673 | Z150: 4.608695652 | AA150: 42771.17631 | AB150: 42771.18194 | AC150: 4.208695652 | AD150: Opn | AE150: 42771.06736 | AF150: 42771.18908 | AG150: 3.691304348 | AH150: 42771.16196 | AI150: 4.073913043 | AJ150: 42771.21451 | AK150: 6.17826087 | AL150: 42771.21732 | AM150: 6.095652174 | AN150: 42771.21103 | AO150: 5.960869565 | AP150: 42771.21948 | AQ150: 5.360869565 | AR150: 42771.19236 | AS150: 42771.21319 | AT150: 42771.18279 | AU150: 4.208695652 | AV150: 42771.18279 | AW150: 4.008695652 | AX150: 42771.15914 | AY150: 3.726086957 | AZ150: 42771.15567 | BA150: 3.608695652 | BB150: 42771.1522 | BC150: 3.591304348 | BD150: 42771.09429 | BE150: 3.408695652 | BF150: 42771.19236 | BH150: 42771.24444 | BI150: 42771.23403
A151: 0 | B151: =IF(Instructions!$C$2="BST",A151,0) -> 0 | C151: 2021-02-06T11:02:00 | D151: 2021-02-06 | E151: Sat | F151: 2 | I151: 6 | K151: 42771.45972 | L151: 1.83 | M151: LW | N151: 0.1450381679 | O151: 11:02:00 | P151: 17:00:00 | Q151: 11:00:00 | R151: 0.005555555554 | S151: 42771.4841 | T151: 2.253435115 | U151: 42771.55008 | V151: 42771.48393 | W151: 2.067938931 | X151: 42771.41806 | Y151: 42771.45984 | Z151: 1.825954198 | AA151: 42771.44919 | AB151: 42771.45633 | AC151: 1.711450382 | AD151: Cls | AE151: 42771.29653 | AF151: 42771.45617 | AG151: 1.625954198 | AH151: 42771.44579 | AI151: 1.725954198 | AJ151: 42771.48409 | AK151: 2.267938931 | AL151: 42771.48409 | AM151: 2.267938931 | AN151: 42771.47712 | AO151: 2.267938931 | AP151: 42771.48405 | AQ151: 2.082442748 | AR151: 42771.44931 | AS151: 42771.47361 | AT151: 42771.44931 | AU151: 1.825954198 | AV151: 42771.44934 | AW151: 1.811450382 | AX151: 42771.44579 | AY151: 1.625954198 | AZ151: 42771.44232 | BA151: 1.611450382 | BB151: 42771.4354 | BC151: 1.711450382 | BD151: 42771.39026 | BE151: 1.369465649 | BF151: 42771.48403 | BH151: 42771.50139 | BI151: 42771.49097
A152: 0 | B152: =IF(Instructions!$C$2="BST",A152,0) -> 0 | C152: 2021-02-06T17:27:00 | D152: 2021-02-06 | F152: 2 | I152: 6 | K152: 42771.72708 | L152: 4.79 | M152: HW | N152: 0.2608695652 | O152: 17:27:00 | P152: 12:00:00 | Q152: 18:00:00 | R152: 0.09166666667 | S152: 42771.73498 | T152: 6.417391304 | U152: 42771.80095 | V152: 42771.7353 | W152: 6.191304348 | X152: 42771.68542 | Y152: 42771.71036 | Z152: 4.713043478 | AA152: 42771.69994 | AB152: 42771.70625 | AC152: 4.313043478 | AD152: Opn | AE152: 42771.59167 | AF152: 42771.71508 | AG152: 3.786956522 | AH152: 42771.68762 | AI152: 4.160869565 | AJ152: 42771.73814 | AK152: 6.317391304 | AL152: 42771.74129 | AM152: 6.243478261 | AN152: 42771.73466 | AO152: 6.091304348 | AP152: 42771.74413 | AQ152: 5.491304348 | AR152: 42771.71667 | AS152: 42771.7375 | AT152: 42771.70845 | AU152: 4.313043478 | AV152: 42771.70845 | AW152: 4.113043478 | AX152: 42771.68446 | AY152: 3.839130435 | AZ152: 42771.68099 | BA152: 3.713043478 | BB152: 42771.67752 | BC152: 3.686956522 | BD152: 42771.61725 | BE152: 3.513043478 | BF152: 42771.71667 | BH152: 42771.76875 | BI152: 42771.75833
A153: 0 | B153: =IF(Instructions!$C$2="BST",A153,0) -> 0 | C153: 2021-02-06T23:53:00 | D153: 2021-02-06 | F153: 2 | I153: 6 | K153: 42771.99514 | L153: 1.74 | M153: LW | N153: 0.213740458 | O153: 23:53:00 | P153: 1.208333333 | Q153: 23:00:00 | R153: 0.1472222222 | S153: 42772.02149 | T153: 2.136641221 | U153: 42772.08746 | V153: 42772.01689 | W153: 1.958015267 | X153: 42771.95347 | Y153: 42771.99821 | Z153: 1.74351145 | AA153: 42771.98166 | AB153: 42771.99371 | AC153: 1.622137405 | AD153: Cls | AE153: 42771.82083 | AF153: 42771.98962 | AG153: 1.54351145 | AH153: 42771.98023 | AI153: 1.64351145 | AJ153: 42772.02098 | AK153: 2.158015267 | AL153: 42772.02098 | AM153: 2.158015267 | AN153: 42772.01352 | AO153: 2.158015267 | AP153: 42772.01996 | AQ153: 1.979389313 | AR153: 42771.98472 | AS153: 42772.00903 | AT153: 42771.98472 | AU153: 1.74351145 | AV153: 42771.98574 | AW153: 1.722137405 | AX153: 42771.98023 | AY153: 1.54351145 | AZ153: 42771.97676 | BA153: 1.522137405 | BB153: 42771.97032 | BC153: 1.622137405 | BD153: 42771.92518 | BE153: 1.307633588 | BF153: 42772.01944 | BH153: 42772.03681 | BI153: 42772.02639
A154: 0 | B154: =IF(Instructions!$C$2="BST",A154,0) -> 0 | C154: 2021-02-07T06:15:00 | D154: 2021-02-07 | E154: 2021-02-07 | F154: 2 | G154: Feb | H154: 7 | I154: 7 | J154: Sun | K154: 42772.26042 | L154: 4.68 | M154: HW | N154: 0.1652173913 | O154: 06:15:00 | P154: 12:00:00 | Q154: 06:00:00 | R154: 0.04166666666 | S154: 42772.2678 | T154: 6.264347826 | U154: 42772.33377 | V154: 42772.26794 | W154: 6.047826087 | X154: 42772.21875 | Y154: 42772.24334 | Z154: 4.59826087 | AA154: 42772.23293 | AB154: 42772.23958 | AC154: 4.19826087 | AD154: Opn | AE154: 42772.125 | AF154: 42772.24928 | AG154: 3.68173913 | AH154: 42772.22164 | AI154: 4.065217391 | AJ154: 42772.27112 | AK154: 6.164347826 | AL154: 42772.27445 | AM154: 6.080869565 | AN154: 42772.26765 | AO154: 5.947826087 | AP154: 42772.27763 | AQ154: 5.347826087 | AR154: 42772.25 | AS154: 42772.27083 | AT154: 42772.24248 | AU154: 4.19826087 | AV154: 42772.24248 | AW154: 3.99826087 | AX154: 42772.21832 | AY154: 3.714782609 | AZ154: 42772.21484 | BA154: 3.59826087 | BB154: 42772.21137 | BC154: 3.58173913 | BD154: 42772.14988 | BE154: 3.39826087 | BF154: 42772.25 | BH154: 42772.30208 | BI154: 42772.29167
A155: 0 | B155: =IF(Instructions!$C$2="BST",A155,0) -> 0 | C155: 2021-02-07T12:26:00 | D155: 2021-02-07 | E155: Sun | F155: 2 | I155: 7 | K155: 42772.51806 | L155: 1.82 | M155: LW | N155: 0.1526717557 | O155: 12:26:00 | P155: 17:00:00 | Q155: 11:00:00 | R155: 0.2388888889 | S155: 42772.54568 | T155: 2.240458015 | U155: 42772.61165 | V155: 42772.53821 | W155: 2.055725191 | X155: 42772.47639 | Y155: 42772.52303 | Z155: 1.816793893 | AA155: 42772.50266 | AB155: 42772.5179 | AC155: 1.701526718 | AD155: Cls | AE155: 42772.35417 | AF155: 42772.51127 | AG155: 1.616793893 | AH155: 42772.50251 | AI155: 1.716793893 | AJ155: 42772.54485 | AK155: 2.255725191 | AL155: 42772.54485 | AM155: 2.255725191 | AN155: 42772.53708 | AO155: 2.255725191 | AP155: 42772.54319 | AQ155: 2.070992366 | AR155: 42772.50764 | AS155: 42772.53194 | AT155: 42772.50764 | AU155: 1.816793893 | AV155: 42772.5093 | AW155: 1.801526718 | AX155: 42772.50251 | AY155: 1.616793893 | AZ155: 42772.49904 | BA155: 1.601526718 | BB155: 42772.49292 | BC155: 1.701526718 | BD155: 42772.44778 | BE155: 1.36259542 | BF155: 42772.54236 | BH155: 42772.55972 | BI155: 42772.54931
A156: 0 | B156: =IF(Instructions!$C$2="BST",A156,0) -> 0 | C156: 2021-02-07T18:55:00 | D156: 2021-02-07 | F156: 2 | I156: 7 | K156: 42772.78819 | L156: 4.79 | M156: HW | N156: 0.2608695652 | O156: 18:55:00 | P156: 1 | Q156: 18:00:00 | R156: 0.1527777778 | S156: 42772.79673 | T156: 6.417391304 | U156: 42772.8627 | V156: 42772.79726 | W156: 6.191304348 | X156: 42772.74653 | Y156: 42772.77189 | Z156: 4.713043478 | AA156: 42772.76148 | AB156: 42772.76736 | AC156: 4.313043478 | AD156: Opn | AE156: 42772.65278 | AF156: 42772.77513 | AG156: 3.786956522 | AH156: 42772.74788 | AI156: 4.160869565 | AJ156: 42772.79967 | AK156: 6.317391304 | AL156: 42772.80261 | AM156: 6.243478261 | AN156: 42772.7962 | AO156: 6.091304348 | AP156: 42772.80503 | AQ156: 5.491304348 | AR156: 42772.77778 | AS156: 42772.79861 | AT156: 42772.76871 | AU156: 4.313043478 | AV156: 42772.76871 | AW156: 4.113043478 | AX156: 42772.74494 | AY156: 3.839130435 | AZ156: 42772.74146 | BA156: 3.713043478 | BB156: 42772.73799 | BC156: 3.686956522 | BD156: 42772.67921 | BE156: 3.513043478 | BF156: 42772.77778 | BH156: 42772.82986 | BI156: 42772.81944
A157: 0 | B157: =IF(Instructions!$C$2="BST",A157,0) -> 0 | C157: 2021-02-08T01:09:00 | D157: 2021-02-08 | E157: 2021-02-08 | F157: 2 | G157: Feb | H157: 8 | I157: 1 | J157: Mon | K157: 42773.04792 | L157: 1.69 | M157: LW | N157: 0.2519083969 | O157: 01:09:00 | P157: 05:00:00 | Q157: -0.04166666667 | R157: 0.3583333333 | S157: 42773.0772 | T157: 2.071755725 | U157: 42773.14317 | V157: 42773.066 | W157: 1.896946565 | X157: 42773.00625 | Y157: 42773.05538 | Z157: 1.697709924 | AA157: 42773.03003 | AB157: 42773.04942 | AC157: 1.572519084 | AD157: Cls | AE157: 42772.88194 | AF157: 42773.03947 | AG157: 1.497709924 | AH157: 42773.03154 | AI157: 1.597709924 | AJ157: 42773.07595 | AK157: 2.096946565 | AL157: 42773.07595 | AM157: 2.096946565 | AN157: 42773.06777 | AO157: 2.096946565 | AP157: 42773.07347 | AQ157: 1.922137405 | AR157: 42773.0375 | AS157: 42773.06181 | AT157: 42773.0375 | AU157: 1.697709924 | AV157: 42773.03999 | AW157: 1.672519084 | AX157: 42773.03154 | AY157: 1.497709924 | AZ157: 42773.02807 | BA157: 1.472519084 | BB157: 42773.02237 | BC157: 1.572519084 | BD157: 42772.97723 | BE157: 1.273282443 | BF157: 42773.07222 | BH157: 42773.08958 | BI157: 42773.07917
A158: 0 | B158: =IF(Instructions!$C$2="BST",A158,0) -> 0 | C158: 2021-02-08T07:32:00 | D158: 2021-02-08 | E158: Mon | F158: 2 | I158: 1 | K158: 42773.31389 | L158: 4.87 | M158: HW | N158: 0.3304347826 | O158: 07:32:00 | P158: 12:00:00 | Q158: 06:00:00 | R158: 0.2555555555 | S158: 42773.3235 | T158: 6.528695652 | U158: 42773.38947 | V158: 42773.32438 | W158: 6.295652174 | X158: 42773.27222 | Y158: 42773.2983 | Z158: 4.796521739 | AA158: 42773.28789 | AB158: 42773.29306 | AC158: 4.396521739 | AD158: Opn | AE158: 42773.17847 | AF158: 42773.29904 | AG158: 3.863478261 | AH158: 42773.27215 | AI158: 4.230434783 | AJ158: 42773.32608 | AK158: 6.428695652 | AL158: 42773.32867 | AM158: 6.36173913 | AN158: 42773.32261 | AO158: 6.195652174 | AP158: 42773.33036 | AQ158: 5.595652174 | AR158: 42773.30347 | AS158: 42773.32431 | AT158: 42773.29298 | AU158: 4.396521739 | AV158: 42773.29298 | AW158: 4.196521739 | AX158: 42773.26956 | AY158: 3.929565217 | AZ158: 42773.26609 | BA158: 3.796521739 | BB158: 42773.26262 | BC158: 3.763478261 | BD158: 42773.20633 | BE158: 3.596521739 | BF158: 42773.30347 | BH158: 42773.35556 | BI158: 42773.34514
A159: 0 | B159: =IF(Instructions!$C$2="BST",A159,0) -> 0 | C159: 2021-02-08T13:40:00 | D159: 2021-02-08 | F159: 2 | I159: 1 | K159: 42773.56944 | L159: 1.62 | M159: LW | N159: 0.3053435115 | O159: 13:40:00 | P159: 17:00:00 | Q159: 11:00:00 | R159: 0.4444444444 | S159: 42773.59992 | T159: 1.980916031 | U159: 42773.6659 | V159: 42773.58603 | W159: 1.811450382 | X159: 42773.52778 | Y159: 42773.5787 | Z159: 1.633587786 | AA159: 42773.54977 | AB159: 42773.57215 | AC159: 1.503053435 | AD159: Cls | AE159: 42773.40764 | AF159: 42773.5598 | AG159: 1.433587786 | AH159: 42773.55247 | AI159: 1.533587786 | AJ159: 42773.59838 | AK159: 2.011450382 | AL159: 42773.59838 | AM159: 2.011450382 | AN159: 42773.58989 | AO159: 2.011450382 | AP159: 42773.59529 | AQ159: 1.841984733 | AR159: 42773.55903 | AS159: 42773.58333 | AT159: 42773.55903 | AU159: 1.633587786 | AV159: 42773.56211 | AW159: 1.603053435 | AX159: 42773.55247 | AY159: 1.433587786 | AZ159: 42773.549 | BA159: 1.403053435 | BB159: 42773.5436 | BC159: 1.503053435 | BD159: 42773.49846 | BE159: 1.22519084 | BF159: 42773.59375 | BH159: 42773.61111 | BI159: 42773.60069
A160: 0 | B160: =IF(Instructions!$C$2="BST",A160,0) -> 0 | C160: 2021-02-08T20:08:00 | D160: 2021-02-08 | F160: 2 | I160: 1 | K160: 42773.83889 | L160: 4.96 | M160: HW | N160: 0.4086956522 | O160: 20:08:00 | P160: 1 | Q160: 18:00:00 | R160: 0.3555555556 | S160: =IF($M160="HW",$K160+S$6+(S$5-S$6)*$R160,$K160+S$8+(S$7-S$8)*$R160) -> 42773.84954 | T160: 6.653913043 | U160: 42773.91551 | V160: 42773.85077 | W160: 6.413043478 | X160: =IF($M160="HW",$K160+X$6+(X$5-X$6)*$R160,$K160+X$8+(X$7-X$8)*$R160) -> 42773.79722 | Y160: 42773.824 | Z160: 4.890434783 | AA160: 42773.81358 | AB160: 42773.81806 | AC160: 4.490434783 | AD160: Opn | AE160: 42773.70347 | AF160: 42773.8223 | AG160: 3.949565217 | AH160: 42773.79576 | AI160: 4.308695652 | AJ160: 42773.85177 | AK160: 6.553913043 | AL160: 42773.85401 | AM160: 6.494782609 | AN160: 42773.8483 | AO160: 6.313043478 | AP160: 42773.85502 | AQ160: 5.713043478 | AR160: =IF($M160="HW",$K160+AR$6+(AR$5-AR$6)*$R160,$K160+AR$8+(AR$7-AR$8)*$R160) -> 42773.82847 | AS160: 42773.84931 | AT160: 42773.81659 | AU160: 4.490434783 | AV160: 42773.81659 | AW160: 4.290434783 | AX160: 42773.79352 | AY160: 4.031304348 | AZ160: 42773.79005 | BA160: 3.890434783 | BB160: 42773.78657 | BC160: 3.849565217 | BD160: 42773.73272 | BE160: 3.690434783 | BF160: =IF($M160="HW",$K160+BF$6+(BF$5-BF$6)*$R160,$K160+BF$8+(BF$7-BF$8)*$R160) -> 42773.82847 | BH160: 42773.88056 | BI160: 42773.87014
A161: 0 | B161: =IF(Instructions!$C$2="BST",A161,0) -> 0 | C161: 2021-02-09T02:12:00 | D161: 2021-02-09 | E161: 2021-02-09 | F161: 2 | G161: Feb | H161: 9 | I161: 2 | J161: Tue | K161: 42774.09167 | L161: 1.51 | M161: LW | N161: 0.3893129771 | O161: 02:12:00 | P161: 05:00:00 | Q161: -0.04166666667 | R161: 0.5333333333 | S161: 42774.12338 | T161: 1.838167939 | U161: 42774.18935 | V161: 42774.10671 | W161: 1.677099237 | X161: 42774.05 | Y161: 42774.10278 | Z161: 1.532824427 | AA161: 42774.07014 | AB161: 42774.0956 | AC161: 1.39389313 | AD161: Cls | AE161: 42773.93264 | AF161: 42774.08079 | AG161: 1.332824427 | AH161: 42774.07407 | AI161: 1.432824427 | AJ161: 42774.12153 | AK161: 1.877099237 | AL161: 42774.12153 | AM161: 1.877099237 | AN161: 42774.11273 | AO161: 1.877099237 | AP161: 42774.11782 | AQ161: 1.716030534 | AR161: 42774.08125 | AS161: 42774.10556 | AT161: 42774.08125 | AU161: 1.532824427 | AV161: 42774.08495 | AW161: 1.49389313 | AX161: 42774.07407 | AY161: 1.332824427 | AZ161: 42774.0706 | BA161: 1.29389313 | BB161: 42774.06551 | BC161: 1.39389313 | BD161: 42774.02037 | BE161: 1.149618321 | BF161: 42774.11597 | BH161: 42774.13333 | BI161: 42774.12292
A162: 0 | B162: =IF(Instructions!$C$2="BST",A162,0) -> 0 | C162: 2021-02-09T08:33:00 | D162: 2021-02-09 | E162: Tue | F162: 2 | I162: 2 | K162: 42774.35625 | L162: 5.14 | M162: HW | N162: 0.5652173913 | O162: 08:33:00 | P162: 12:00:00 | Q162: 06:00:00 | R162: 0.425 | S162: 42774.36762 | T162: 6.904347826 | U162: 42774.43359 | V162: 42774.3691 | W162: 6.647826087 | X162: 42774.31458 | Y162: 42774.34184 | Z162: 5.07826087 | AA162: 42774.33142 | AB162: 42774.33542 | AC162: 4.67826087 | AD162: Opn | AE162: 42774.22083 | AF162: 42774.33845 | AG162: 4.12173913 | AH162: 42774.31215 | AI162: 4.465217391 | AJ162: 42774.36962 | AK162: 6.804347826 | AL162: 42774.37161 | AM162: 6.760869565 | AN162: 42774.36615 | AO162: 6.547826087 | AP162: 42774.37214 | AQ162: 5.947826087 | AR162: 42774.34583 | AS162: 42774.36667 | AT162: 42774.33299 | AU162: 4.67826087 | AV162: 42774.33299 | AW162: 4.47826087 | AX162: 42774.31016 | AY162: 4.234782609 | AZ162: 42774.30668 | BA162: 4.07826087 | BB162: 42774.30321 | BC162: 4.02173913 | BD162: 42774.25104 | BE162: 3.87826087 | BF162: 42774.34583 | BH162: 42774.39792 | BI162: 42774.3875
A163: 0 | B163: =IF(Instructions!$C$2="BST",A163,0) -> 0 | C163: 2021-02-09T14:41:00 | D163: 2021-02-09 | F163: 2 | I163: 2 | K163: 42774.61181 | L163: 1.32 | M163: LW | N163: 0.534351145 | O163: 14:41:00 | P163: 17:00:00 | Q163: 11:00:00 | R163: 0.6138888889 | S163: 42774.64464 | T163: 1.591603053 | U163: 42774.71061 | V163: 42774.62545 | W163: 1.445038168 | X163: 42774.57014 | Y163: 42774.62459 | Z163: 1.358778626 | AA163: 42774.5886 | AB163: 42774.61686 | AC163: 1.205343511 | AD163: Cls | AE163: 42774.45 | AF163: 42774.59981 | AG163: 1.158778626 | AH163: 42774.59365 | AI163: 1.258778626 | AJ163: 42774.64251 | AK163: 1.645038168 | AL163: 42774.64251 | AM163: 1.645038168 | AN163: 42774.63343 | AO163: 1.645038168 | AP163: 42774.63824 | AQ163: 1.498473282 | AR163: 42774.60139 | AS163: 42774.62569 | AT163: 42774.60139 | AU163: 1.358778626 | AV163: 42774.60565 | AW163: 1.305343511 | AX163: 42774.59365 | AY163: 1.158778626 | AZ163: 42774.59018 | BA163: 1.105343511 | BB163: 42774.58537 | BC163: 1.205343511 | BD163: 42774.54023 | BE163: 1.019083969 | BF163: 42774.63611 | BH163: 42774.65347 | BI163: 42774.64306
A164: 0 | B164: =IF(Instructions!$C$2="BST",A164,0) -> 0 | C164: 2021-02-09T21:04:00 | D164: 2021-02-09 | F164: 2 | I164: 2 | K164: 42774.87778 | L164: 5.16 | M164: HW | N164: 0.5826086957 | O164: 21:04:00 | P164: 1 | Q164: 18:00:00 | R164: 0.5111111111 | S164: 42774.89005 | T164: 6.932173913 | U164: 42774.95602 | V164: 42774.89182 | W164: 6.673913043 | X164: 42774.83611 | Y164: 42774.86397 | Z164: 5.099130435 | AA164: 42774.85355 | AB164: 42774.85694 | AC164: 4.699130435 | AD164: Opn | AE164: 42774.74236 | AF164: 42774.85849 | AG164: 4.140869565 | AH164: 42774.83248 | AI164: 4.482608696 | AJ164: 42774.89174 | AK164: 6.832173913 | AL164: 42774.89344 | AM164: 6.790434783 | AN164: 42774.88827 | AO164: 6.573913043 | AP164: 42774.89336 | AQ164: 5.973913043 | AR164: 42774.86736 | AS164: 42774.88819 | AT164: 42774.85332 | AU164: 4.699130435 | AV164: 42774.85332 | AW164: 4.499130435 | AX164: 42774.83079 | AY164: 4.257391304 | AZ164: 42774.82731 | BA164: 4.099130435 | BB164: 42774.82384 | BC164: 4.040869565 | BD164: 42774.77377 | BE164: 3.899130435 | BF164: 42774.86736 | BH164: 42774.91944 | BI164: 42774.90903
A165: 0 | B165: =IF(Instructions!$C$2="BST",A165,0) -> 0 | C165: 2021-02-10T03:05:00 | D165: 2021-02-10 | E165: 2021-02-10 | F165: 2 | G165: Feb | H165: 10 | I165: 3 | J165: Wed | K165: 42775.12847 | L165: 1.29 | M165: LW | N165: 0.5572519084 | O165: 03:05:00 | P165: 05:00:00 | Q165: -0.04166666667 | R165: 0.6805555555 | S165: 42775.16223 | T165: 1.552671756 | U165: 42775.2282 | V165: 42775.14096 | W165: 1.408396947 | X165: 42775.08681 | Y165: 42775.14265 | Z165: 1.33129771 | AA165: 42775.10388 | AB165: 42775.13445 | AC165: 1.175572519 | AD165: Cls | AE165: 42774.97153 | AF165: 42775.11555 | AG165: 1.13129771 | AH165: 42775.10986 | AI165: 1.23129771 | AJ165: 42775.15987 | AK165: 1.608396947 | AL165: 42775.15987 | AM165: 1.608396947 | AN165: 42775.15056 | AO165: 1.608396947 | AP165: 42775.15514 | AQ165: 1.464122137 | AR165: 42775.11806 | AS165: 42775.14236 | AT165: 42775.11806 | AU165: 1.33129771 | AV165: 42775.12278 | AW165: 1.275572519 | AX165: 42775.10986 | AY165: 1.13129771 | AZ165: 42775.10639 | BA165: 1.075572519 | BB165: 42775.1018 | BC165: 1.175572519 | BD165: 42775.05666 | BE165: 0.9984732824 | BF165: 42775.15278 | BH165: 42775.17014 | BI165: 42775.15972
A166: 0 | B166: =IF(Instructions!$C$2="BST",A166,0) -> 0 | C166: 2021-02-10T09:23:00 | D166: 2021-02-10 | E166: Wed | F166: 2 | I166: 3 | K166: 42775.39097 | L166: 5.42 | M166: HW | N166: 0.8086956522 | O166: 09:23:00 | P166: 12:00:00 | Q166: 06:00:00 | R166: 0.5638888889 | S166: 42775.40379 | T166: 7.293913043 | U166: 42775.46976 | V166: 42775.40575 | W166: 7.013043478 | X166: 42775.34931 | Y166: 42775.37753 | Z166: 5.370434783 | AA166: 42775.36711 | AB166: 42775.37014 | AC166: 4.970434783 | AD166: Opn | AE166: 42775.25556 | AF166: 42775.37077 | AG166: 4.389565217 | AH166: 42775.34495 | AI166: 4.708695652 | AJ166: 42775.4053 | AK166: 7.193913043 | AL166: 42775.40682 | AM166: 7.174782609 | AN166: 42775.40183 | AO166: 6.913043478 | AP166: 42775.40638 | AQ166: 6.313043478 | AR166: 42775.38056 | AS166: 42775.40139 | AT166: 42775.36578 | AU166: 4.970434783 | AV166: 42775.36578 | AW166: 4.770434783 | AX166: 42775.34343 | AY166: 4.551304348 | AZ166: 42775.33996 | BA166: 4.370434783 | BB166: 42775.33649 | BC166: 4.289565217 | BD166: 42775.28769 | BE166: 4.170434783 | BF166: 42775.38056 | BH166: 42775.43264 | BI166: 42775.42222
A167: 0 | B167: =IF(Instructions!$C$2="BST",A167,0) -> 0 | C167: 2021-02-10T15:31:00 | D167: 2021-02-10 | F167: 2 | I167: 3 | K167: 42775.64653 | L167: 1.04 | M167: LW | N167: 0.7480916031 | O167: 15:31:00 | P167: 17:00:00 | Q167: 11:00:00 | R167: 0.7527777778 | S167: 42775.68129 | T167: 1.228244275 | U167: 42775.74726 | V167: 42775.65776 | W167: 1.103053435 | X167: 42775.60486 | Y167: 42775.66221 | Z167: 1.102290076 | AA167: 42775.62043 | AB167: 42775.65351 | AC167: 0.927480916 | AD167: Cls | AE167: 42775.48472 | AF167: 42775.6326 | AG167: 0.9022900763 | AH167: 42775.62741 | AI167: 1.002290076 | AJ167: 42775.67867 | AK167: 1.303053435 | AL167: 42775.67867 | AM167: 1.303053435 | AN167: 42775.66912 | AO167: 1.303053435 | AP167: 42775.67345 | AQ167: 1.177862595 | AR167: 42775.63611 | AS167: 42775.66042 | AT167: 42775.63611 | AU167: 1.102290076 | AV167: 42775.64134 | AW167: 1.027480916 | AX167: 42775.62741 | AY167: 0.9022900763 | AZ167: 42775.62394 | BA167: 0.827480916 | BB167: 42775.61961 | BC167: 0.927480916 | BD167: 42775.57447 | BE167: 0.8267175573 | BF167: 42775.67083 | BH167: 42775.68819 | BI167: 42775.67778
A168: 0 | B168: =IF(Instructions!$C$2="BST",A168,0) -> 0 | C168: 2021-02-10T21:52:00 | D168: 2021-02-10 | F168: 2 | I168: 3 | K168: 42775.91111 | L168: 5.32 | M168: HW | N168: 0.7217391304 | O168: 21:52:00 | P168: 1 | Q168: 18:00:00 | R168: 0.6444444444 | S168: 42775.92477 | T168: 7.154782609 | U168: 42775.99074 | V168: 42775.92701 | W168: 6.882608696 | X168: 42775.86944 | Y168: 42775.89823 | Z168: 5.266086957 | AA168: 42775.88781 | AB168: 42775.89028 | AC168: 4.866086957 | AD168: Opn | AE168: 42775.77569 | AF168: 42775.88951 | AG168: 4.293913043 | AH168: 42775.86397 | AI168: 4.62173913 | AJ168: 42775.926 | AK168: 7.054782609 | AL168: 42775.92724 | AM168: 7.026956522 | AN168: 42775.92253 | AO168: 6.782608696 | AP168: 42775.92623 | AQ168: 6.182608696 | AR168: 42775.90069 | AS168: 42775.92153 | AT168: 42775.8848 | AU168: 4.866086957 | AV168: 42775.8848 | AW168: 4.666086957 | AX168: 42775.86273 | AY168: 4.43826087 | AZ168: 42775.85926 | BA168: 4.266086957 | BB168: 42775.85579 | BC168: 4.193913043 | BD168: 42775.80895 | BE168: 4.066086957 | BF168: 42775.90069 | BH168: 42775.95278 | BI168: 42775.94236
A169: 0 | B169: =IF(Instructions!$C$2="BST",A169,0) -> 0 | C169: 2021-02-11T03:50:00 | D169: 2021-02-11 | E169: 2021-02-11 | F169: 2 | G169: Feb | H169: 11 | I169: 4 | J169: Thu | K169: 42776.15972 | L169: 1.1 | M169: LW | N169: 0.7022900763 | O169: 03:50:00 | P169: 05:00:00 | Q169: -0.04166666667 | R169: 0.8055555555 | S169: 42776.19522 | T169: 1.30610687 | U169: 42776.26119 | V169: 42776.17004 | W169: 1.176335878 | X169: 42776.11806 | Y169: 42776.1765 | Z169: 1.157251908 | AA169: 42776.13252 | AB169: 42776.16744 | AC169: 0.9870229008 | AD169: Cls | AE169: 42776.00486 | AF169: 42776.14506 | AG169: 0.9572519084 | AH169: 42776.14024 | AI169: 1.057251908 | AJ169: 42776.19242 | AK169: 1.376335878 | AL169: 42776.19242 | AM169: 1.376335878 | AN169: 42776.18268 | AO169: 1.376335878 | AP169: 42776.18682 | AQ169: 1.246564885 | AR169: 42776.14931 | AS169: 42776.17361 | AT169: 42776.14931 | AU169: 1.157251908 | AV169: 42776.1549 | AW169: 1.087022901 | AX169: 42776.14024 | AY169: 0.9572519084 | AZ169: 42776.13677 | BA169: 0.8870229008 | BB169: 42776.13262 | BC169: 0.9870229008 | BD169: 42776.08748 | BE169: 0.8679389313 | BF169: 42776.18403 | BH169: 42776.20139 | BI169: 42776.19097
A170: 0 | B170: =IF(Instructions!$C$2="BST",A170,0) -> 0 | C170: 2021-02-11T10:06:00 | D170: 2021-02-11 | E170: Thu | F170: 2 | I170: 4 | K170: 42776.42083 | L170: 5.63 | M170: HW | N170: 0.9913043478 | O170: 10:06:00 | P170: 12:00:00 | Q170: 06:00:00 | R170: 0.6833333333 | S170: 42776.4349 | T170: 7.586086957 | U170: 42776.50087 | V170: 42776.43727 | W170: 7.286956522 | X170: 42776.37917 | Y170: 42776.40822 | Z170: 5.589565217 | AA170: 42776.3978 | AB170: 42776.4 | AC170: 5.189565217 | AD170: Opn | AE170: 42776.28542 | AF170: 42776.39855 | AG170: 4.590434783 | AH170: 42776.37315 | AI170: 4.891304348 | AJ170: 42776.436 | AK170: 7.486086957 | AL170: 42776.43709 | AM170: 7.485217391 | AN170: 42776.43252 | AO170: 7.186956522 | AP170: 42776.43582 | AQ170: 6.586956522 | AR170: 42776.41042 | AS170: 42776.43125 | AT170: 42776.39398 | AU170: 5.189565217 | AV170: 42776.39398 | AW170: 4.989565217 | AX170: 42776.37205 | AY170: 4.788695652 | AZ170: 42776.36858 | BA170: 4.589565217 | BB170: 42776.3651 | BC170: 4.490434783 | BD170: 42776.31921 | BE170: 4.389565217 | BF170: 42776.41042 | BH170: 42776.4625 | BI170: 42776.45208
A171: 0 | B171: =IF(Instructions!$C$2="BST",A171,0) -> 0 | C171: 2021-02-11T16:15:00 | D171: 2021-02-11 | F171: 2 | I171: 4 | K171: 42776.67708 | L171: 0.83 | M171: LW | N171: 0.9083969466 | O171: 16:15:00 | P171: 17:00:00 | Q171: 11:00:00 | R171: 0.875 | S171: 42776.71354 | T171: 0.9557251908 | U171: 42776.77951 | V171: 42776.6862 | W171: 0.8465648855 | X171: 42776.63542 | Y171: 42776.69531 | Z171: 0.9099236641 | AA171: 42776.64844 | AB171: 42776.68576 | AC171: 0.7190839695 | AD171: Cls | AE171: 42776.51458 | AF171: 42776.66146 | AG171: 0.7099236641 | AH171: 42776.65712 | AI171: 0.8099236641 | AJ171: 42776.7105 | AK171: 1.046564885 | AL171: 42776.7105 | AM171: 1.046564885 | AN171: 42776.70052 | AO171: 1.046564885 | AP171: 42776.70443 | AQ171: 0.9374045802 | AR171: 42776.66667 | AS171: 42776.69097 | AT171: 42776.66667 | AU171: 0.9099236641 | AV171: 42776.67274 | AW171: 0.8190839695 | AX171: 42776.65712 | AY171: 0.7099236641 | AZ171: 42776.65365 | BA171: 0.6190839695 | BB171: 42776.64974 | BC171: 0.7190839695 | BD171: 42776.6046 | BE171: 0.6824427481 | BF171: 42776.70139 | BH171: 42776.71875 | BI171: 42776.70833
A172: 0 | B172: =IF(Instructions!$C$2="BST",A172,0) -> 0 | C172: 2021-02-11T22:33:00 | D172: 2021-02-11 | F172: 2 | I172: 4 | K172: 42776.93958 | L172: 5.41 | M172: HW | N172: 0.8 | O172: 22:33:00 | P172: 1 | Q172: 18:00:00 | R172: 0.7583333333 | S172: 42776.95443 | T172: 7.28 | U172: 42777.0204 | V172: 42776.95706 | W172: 7 | X172: 42776.89792 | Y172: 42776.92749 | Z172: 5.36 | AA172: 42776.91707 | AB172: 42776.91875 | AC172: 4.96 | AD172: Opn | AE172: 42776.80417 | AF172: 42776.916 | AG172: 4.38 | AH172: 42776.89086 | AI172: 4.7 | AJ172: 42776.95527 | AK172: 7.18 | AL172: 42776.95611 | AM172: 7.16 | AN172: 42776.95179 | AO172: 6.9 | AP172: 42776.95431 | AQ172: 6.3 | AR172: 42776.92917 | AS172: 42776.95 | AT172: 42776.91169 | AU172: 4.96 | AV172: 42776.91169 | AW172: 4.76 | AX172: 42776.89002 | AY172: 4.54 | AZ172: 42776.88655 | BA172: 4.36 | BB172: 42776.88307 | BC172: 4.28 | BD172: 42776.839 | BE172: 4.16 | BF172: 42776.92917 | BH172: 42776.98125 | BI172: 42776.97083
A173: 0 | B173: =IF(Instructions!$C$2="BST",A173,0) -> 0 | C173: 2021-02-12T04:31:00 | D173: 2021-02-12 | E173: 2021-02-12 | F173: 2 | G173: Feb | H173: 12 | I173: 5 | J173: Fri | K173: 42777.18819 | L173: 0.96 | M173: LW | N173: 0.8091603053 | O173: 04:31:00 | P173: 05:00:00 | Q173: -0.04166666667 | R173: 0.9194444445 | S173: 42777.22527 | T173: 1.124427481 | U173: 42777.29124 | V173: 42777.19654 | W173: 1.005343511 | X173: 42777.14653 | Y173: 42777.20735 | Z173: 1.029007634 | AA173: 42777.15862 | AB173: 42777.19749 | AC173: 0.8480916031 | AD173: Cls | AE173: 42777.03333 | AF173: 42777.17195 | AG173: 0.8290076336 | AH173: 42777.16792 | AI173: 0.9290076336 | AJ173: 42777.22208 | AK173: 1.205343511 | AL173: 42777.22208 | AM173: 1.205343511 | AN173: 42777.21194 | AO173: 1.205343511 | AP173: 42777.21569 | AQ173: 1.086259542 | AR173: 42777.17778 | AS173: 42777.20208 | AT173: 42777.17778 | AU173: 1.029007634 | AV173: 42777.18416 | AW173: 0.9480916031 | AX173: 42777.16792 | AY173: 0.8290076336 | AZ173: 42777.16445 | BA173: 0.7480916031 | BB173: 42777.1607 | BC173: 0.8480916031 | BD173: 42777.11556 | BE173: 0.7717557252 | BF173: 42777.2125 | BH173: 42777.22986 | BI173: 42777.21944
A174: 0 | B174: =IF(Instructions!$C$2="BST",A174,0) -> 0 | C174: 2021-02-12T10:45:00 | D174: 2021-02-12 | E174: Fri | F174: 2 | I174: 5 | K174: 42777.44792 | L174: 5.75 | M174: HW | N174: 1.095652174 | O174: 10:45:00 | P174: 12:00:00 | Q174: 06:00:00 | R174: 0.7916666667 | S174: 42777.46311 | T174: 7.753043478 | U174: 42777.52908 | V174: 42777.46586 | W174: 7.443478261 | X174: 42777.40625 | Y174: 42777.43605 | Z174: 5.714782609 | AA174: 42777.42564 | AB174: 42777.42708 | AC174: 5.314782609 | AD174: Opn | AE174: 42777.3125 | AF174: 42777.42376 | AG174: 4.705217391 | AH174: 42777.39873 | AI174: 4.995652174 | AJ174: 42777.46383 | AK174: 7.653043478 | AL174: 42777.46455 | AM174: 7.662608696 | AN174: 42777.46036 | AO174: 7.343478261 | AP174: 42777.46253 | AQ174: 6.743478261 | AR174: 42777.4375 | AS174: 42777.45833 | AT174: 42777.41956 | AU174: 5.314782609 | AV174: 42777.41956 | AW174: 5.114782609 | AX174: 42777.398 | AY174: 4.924347826 | AZ174: 42777.39453 | BA174: 4.714782609 | BB174: 42777.39106 | BC174: 4.605217391 | BD174: 42777.3478 | BE174: 4.514782609 | BF174: 42777.4375 | BH174: 42777.48958 | BI174: 42777.47917
A175: 0 | B175: =IF(Instructions!$C$2="BST",A175,0) -> 0 | C175: 2021-02-12T16:56:00 | D175: 2021-02-12 | F175: 2 | I175: 5 | K175: 42777.70556 | L175: 0.71 | M175: LW | N175: 1 | O175: 16:56:00 | P175: 17:00:00 | Q175: 11:00:00 | R175: 0.9888888889 | S175: 42777.7436 | T175: 0.8 | U175: 42777.80957 | V175: 42777.71269 | W175: 0.7 | X175: 42777.66389 | Y175: 42777.72616 | Z175: 0.8 | AA175: 42777.67454 | AB175: 42777.71582 | AC175: 0.6 | AD175: Cls | AE175: 42777.54167 | AF175: 42777.68835 | AG175: 0.6 | AH175: 42777.6848 | AI175: 0.7 | AJ175: 42777.74016 | AK175: 0.9 | AL175: 42777.74016 | AM175: 0.9 | AN175: 42777.72978 | AO175: 0.9 | AP175: 42777.73329 | AQ175: 0.8 | AR175: 42777.69514 | AS175: 42777.71944 | AT175: 42777.69514 | AU175: 0.8 | AV175: 42777.70201 | AW175: 0.7 | AX175: 42777.6848 | AY175: 0.6 | AZ175: 42777.68133 | BA175: 0.5 | BB175: 42777.67782 | BC175: 0.6 | BD175: 42777.63268 | BE175: 0.6 | BF175: 42777.72986 | BH175: 42777.74722 | BI175: 42777.73681
A176: 0 | B176: =IF(Instructions!$C$2="BST",A176,0) -> 0 | C176: 2021-02-12T23:11:00 | D176: 2021-02-12 | F176: 2 | I176: 5 | K176: 42777.96597 | L176: 5.43 | M176: HW | N176: 0.8173913043 | O176: 23:11:00 | P176: 1 | Q176: 18:00:00 | R176: 0.8638888889 | S176: =IF($M176="HW",$K176+S$6+(S$5-S$6)*$R176,$K176+S$8+(S$7-S$8)*$R176) -> 42777.98192 | T176: 7.307826087 | U176: 42778.04789 | V176: 42777.98492 | W176: 7.026086957 | X176: =IF($M176="HW",$K176+X$6+(X$5-X$6)*$R176,$K176+X$8+(X$7-X$8)*$R176) -> 42777.92431 | Y176: 42777.95461 | Z176: 5.380869565 | AA176: 42777.94419 | AB176: 42777.94514 | AC176: 4.980869565 | AD176: Opn | AE176: 42777.83056 | AF176: 42777.94056 | AG176: 4.399130435 | AH176: 42777.91578 | AI176: 4.717391304 | AJ176: 42777.98239 | AK176: 7.207826087 | AL176: 42777.98286 | AM176: 7.189565217 | AN176: 42777.97892 | AO176: 6.926086957 | AP176: 42777.98033 | AQ176: 6.326086957 | AR176: =IF($M176="HW",$K176+AR$6+(AR$5-AR$6)*$R176,$K176+AR$8+(AR$7-AR$8)*$R176) -> 42777.95556 | AS176: 42777.97639 | AT176: 42777.93661 | AU176: 4.980869565 | AV176: 42777.93661 | AW176: 4.780869565 | AX176: 42777.91531 | AY176: 4.562608696 | AZ176: 42777.91183 | BA176: 4.380869565 | BB176: 42777.90836 | BC176: 4.299130435 | BD176: 42777.86686 | BE176: 4.180869565 | BF176: =IF($M176="HW",$K176+BF$6+(BF$5-BF$6)*$R176,$K176+BF$8+(BF$7-BF$8)*$R176) -> 42777.95556 | BH176: 42778.00764 | BI176: 42777.99722
A177: 0 | B177: =IF(Instructions!$C$2="BST",A177,0) -> 0 | C177: 2021-02-13T05:09:00 | D177: 2021-02-13 | E177: 2021-02-13 | F177: 2 | G177: Feb | H177: 13 | I177: 6 | J177: Sat | K177: 42778.21458 | L177: 0.9 | M177: LW | N177: 0.8549618321 | O177: 05:09:00 | P177: 05:00:00 | Q177: 11:00:00 | R177: 0.975 | S177: 42778.25243 | T177: 1.046564885 | U177: 42778.3184 | V177: 42778.22196 | W177: 0.9320610687 | X177: 42778.17292 | Y177: 42778.2349 | Z177: 0.9740458015 | AA177: 42778.18385 | AB177: 42778.22465 | AC177: 0.7885496183 | AD177: Cls | AE177: 42778.05972 | AF177: 42778.19757 | AG177: 0.7740458015 | AH177: 42778.19392 | AI177: 0.8740458015 | AJ177: 42778.24905 | AK177: 1.132061069 | AL177: 42778.24905 | AM177: 1.132061069 | AN177: 42778.23872 | AO177: 1.132061069 | AP177: 42778.24227 | AQ177: 1.017557252 | AR177: 42778.20417 | AS177: 42778.22847 | AT177: 42778.20417 | AU177: 0.9740458015 | AV177: 42778.21094 | AW177: 0.8885496183 | AX177: 42778.19392 | AY177: 0.7740458015 | AZ177: 42778.19045 | BA177: 0.6885496183 | BB177: 42778.18689 | BC177: 0.7885496183 | BD177: 42778.14175 | BE177: 0.7305343511 | BF177: 42778.23889 | BH177: 42778.25625 | BI177: 42778.24583
A178: 0 | B178: =IF(Instructions!$C$2="BST",A178,0) -> 0 | C178: 2021-02-13T11:23:00 | D178: 2021-02-13 | E178: Sat | F178: 2 | I178: 6 | K178: 42778.47431 | L178: 5.79 | M178: HW | N178: 1.130434783 | O178: 11:23:00 | P178: 12:00:00 | Q178: 06:00:00 | R178: 0.8972222222 | S178: 42778.4906 | T178: 7.808695652 | U178: 42778.55657 | V178: 42778.49371 | W178: 7.495652174 | X178: 42778.43264 | Y178: 42778.46318 | Z178: 5.756521739 | AA178: 42778.45276 | AB178: 42778.45347 | AC178: 5.356521739 | AD178: Opn | AE178: 42778.33889 | AF178: 42778.44831 | AG178: 4.743478261 | AH178: 42778.42365 | AI178: 5.030434783 | AJ178: 42778.49095 | AK178: 7.708695652 | AL178: 42778.49131 | AM178: 7.72173913 | AN178: 42778.48748 | AO178: 7.395652174 | AP178: 42778.48855 | AQ178: 6.795652174 | AR178: 42778.46389 | AS178: 42778.48472 | AT178: 42778.44448 | AU178: 5.356521739 | AV178: 42778.44448 | AW178: 5.156521739 | AX178: 42778.42329 | AY178: 4.969565217 | AZ178: 42778.41982 | BA178: 4.756521739 | BB178: 42778.41635 | BC178: 4.643478261 | BD178: 42778.37566 | BE178: 4.556521739 | BF178: 42778.46389 | BH178: 42778.51597 | BI178: 42778.50556
A179: 0 | B179: =IF(Instructions!$C$2="BST",A179,0) -> 0 | C179: 2021-02-13T17:33:00 | D179: 2021-02-13 | F179: 2 | I179: 6 | K179: 42778.73125 | L179: 0.69 | M179: LW | N179: 1.015267176 | O179: 17:33:00 | P179: 17:00:00 | Q179: 23:00:00 | R179: 0.9083333333 | S179: 42778.76817 | T179: 0.7740458015 | U179: 42778.83414 | V179: 42778.73979 | W179: 0.6755725191 | X179: 42778.68958 | Y179: 42778.75017 | Z179: 0.7816793893 | AA179: 42778.70191 | AB179: 42778.74039 | AC179: 0.5801526718 | AD179: Cls | AE179: 42778.56806 | AF179: 42778.71516 | AG179: 0.5816793893 | AH179: 42778.71105 | AI179: 0.6816793893 | AJ179: 42778.76502 | AK179: 0.8755725191 | AL179: 42778.76502 | AM179: 0.8755725191 | AN179: 42778.75492 | AO179: 0.8755725191 | AP179: 42778.75871 | AQ179: 0.7770992366 | AR179: 42778.72083 | AS179: 42778.74514 | AT179: 42778.72083 | AU179: 0.7816793893 | AV179: 42778.72714 | AW179: 0.6801526718 | AX179: 42778.71105 | AY179: 0.5816793893 | AZ179: 42778.70758 | BA179: 0.4801526718 | BB179: 42778.70379 | BC179: 0.5801526718 | BD179: 42778.65865 | BE179: 0.586259542 | BF179: 42778.75556 | BH179: 42778.77292 | BI179: 42778.7625
A180: 0 | B180: =IF(Instructions!$C$2="BST",A180,0) -> 0 | C180: 2021-02-13T23:47:00 | D180: 2021-02-13 | F180: 2 | I180: 6 | K180: 42778.99097 | L180: 5.37 | M180: HW | N180: 0.7652173913 | O180: 23:47:00 | P180: 1 | Q180: 18:00:00 | R180: 0.9638888889 | S180: 42779.00796 | T180: 7.224347826 | U180: 42779.07393 | V180: 42779.0113 | W180: 6.947826087 | X180: 42778.94931 | Y180: 42778.9803 | Z180: 5.31826087 | AA180: 42778.96989 | AB180: 42778.97014 | AC180: 4.91826087 | AD180: Opn | AE180: 42778.85556 | AF180: 42778.96382 | AG180: 4.34173913 | AH180: 42778.93939 | AI180: 4.665217391 | AJ180: 42779.00808 | AK180: 7.124347826 | AL180: 42779.00821 | AM180: 7.100869565 | AN180: 42779.00461 | AO180: 6.847826087 | AP180: 42779.00499 | AQ180: 6.247826087 | AR180: 42778.98056 | AS180: 42779.00139 | AT180: 42778.96022 | AU180: 4.91826087 | AV180: 42778.96022 | AW180: 4.71826087 | AX180: 42778.93927 | AY180: 4.494782609 | AZ180: 42778.93579 | BA180: 4.31826087 | BB180: 42778.93232 | BC180: 4.24173913 | BD180: 42778.89325 | BE180: 4.11826087 | BF180: 42778.98056 | BH180: 42779.03264 | BI180: 42779.02222
A181: 0 | B181: =IF(Instructions!$C$2="BST",A181,0) -> 0 | C181: 2021-02-14T05:46:00 | D181: 2021-02-14 | E181: 2021-02-14 | F181: 2 | G181: Feb | H181: 14 | I181: 7 | J181: Sun | K181: 42779.24028 | L181: 0.92 | M181: LW | N181: 0.8396946565 | O181: 05:46:00 | P181: 05:00:00 | Q181: 11:00:00 | R181: 0.8722222222 | S181: 42779.2767 | T181: 1.072519084 | U181: 42779.34267 | V181: 42779.24944 | W181: 0.9564885496 | X181: 42779.19861 | Y181: 42779.25845 | Z181: 0.9923664122 | AA181: 42779.21169 | AB181: 42779.24892 | AC181: 0.8083969466 | AD181: Cls | AE181: 42779.08472 | AF181: 42779.22469 | AG181: 0.7923664122 | AH181: 42779.22033 | AI181: 0.8923664122 | AJ181: 42779.27367 | AK181: 1.15648855 | AL181: 42779.27367 | AM181: 1.15648855 | AN181: 42779.2637 | AO181: 1.15648855 | AP181: 42779.26761 | AQ181: 1.040458015 | AR181: 42779.22986 | AS181: 42779.25417 | AT181: 42779.22986 | AU181: 0.9923664122 | AV181: 42779.23592 | AW181: 0.9083969466 | AX181: 42779.22033 | AY181: 0.7923664122 | AZ181: 42779.21686 | BA181: 0.7083969466 | BB181: 42779.21294 | BC181: 0.8083969466 | BD181: 42779.1678 | BE181: 0.7442748092 | BF181: 42779.26458 | BH181: 42779.28194 | BI181: 42779.27153
A182: 0 | B182: =IF(Instructions!$C$2="BST",A182,0) -> 0 | C182: 2021-02-14T11:58:00 | D182: 2021-02-14 | E182: Sun | F182: 2 | I182: 7 | K182: 42779.49861 | L182: 5.73 | M182: HW | N182: 1.07826087 | O182: 11:58:00 | P182: 12:00:00 | Q182: 06:00:00 | R182: 0.9944444445 | S182: 42779.51591 | T182: 7.725217391 | U182: 42779.58189 | V182: 42779.51937 | W182: 7.417391304 | X182: 42779.45694 | Y182: 42779.48816 | Z182: 5.693913043 | AA182: 42779.47774 | AB182: 42779.47778 | AC182: 5.293913043 | AD182: Opn | AE182: 42779.36319 | AF182: 42779.47093 | AG182: 4.686086957 | AH182: 42779.4466 | AI182: 4.97826087 | AJ182: 42779.51593 | AK182: 7.625217391 | AL182: 42779.51595 | AM182: 7.633043478 | AN182: 42779.51246 | AO182: 7.317391304 | AP182: 42779.51252 | AQ182: 6.717391304 | AR182: 42779.48819 | AS182: 42779.50903 | AT182: 42779.46744 | AU182: 5.293913043 | AV182: 42779.46744 | AW182: 5.093913043 | AX182: 42779.44659 | AY182: 4.90173913 | AZ182: 42779.44311 | BA182: 4.693913043 | BB182: 42779.43964 | BC182: 4.586086957 | BD182: 42779.40131 | BE182: 4.493913043 | BF182: 42779.48819 | BH182: 42779.54028 | BI182: 42779.52986
A183: 0 | B183: =IF(Instructions!$C$2="BST",A183,0) -> 0 | C183: 2021-02-14T18:10:00 | D183: 2021-02-14 | F183: 2 | I183: 7 | K183: 42779.75694 | L183: 0.78 | M183: LW | N183: 0.9465648855 | O183: 18:10:00 | P183: 17:00:00 | Q183: 23:00:00 | R183: 0.8055555556 | S183: 42779.79244 | T183: 0.8908396947 | U183: 42779.85841 | V183: 42779.76726 | W183: 0.7854961832 | X183: 42779.71528 | Y183: 42779.77373 | Z183: 0.8641221374 | AA183: 42779.72975 | AB183: 42779.76466 | AC183: 0.6694656489 | AD183: Cls | AE183: 42779.59236 | AF183: 42779.74228 | AG183: 0.6641221374 | AH183: 42779.73746 | AI183: 0.7641221374 | AJ183: 42779.78964 | AK183: 0.9854961832 | AL183: 42779.78964 | AM183: 0.9854961832 | AN183: 42779.7799 | AO183: 0.9854961832 | AP183: 42779.78405 | AQ183: 0.8801526718 | AR183: 42779.74653 | AS183: 42779.77083 | AT183: 42779.74653 | AU183: 0.8641221374 | AV183: 42779.75212 | AW183: 0.7694656489 | AX183: 42779.73746 | AY183: 0.6641221374 | AZ183: 42779.73399 | BA183: 0.5694656489 | BB183: 42779.72984 | BC183: 0.6694656489 | BD183: 42779.6847 | BE183: 0.6480916031 | BF183: 42779.78125 | BH183: 42779.79861 | BI183: 42779.78819
A184: 0 | B184: =IF(Instructions!$C$2="BST",A184,0) -> 0 | C184: 2021-02-15T00:20:00 | D184: 2021-02-15 | E184: 2021-02-15 | F184: 2 | G184: Feb | H184: 15 | I184: 1 | J184: Mon | K184: 42780.01389 | L184: 5.27 | M184: HW | N184: 0.6782608696 | O184: 00:20:00 | P184: 00:00:00 | Q184: 06:00:00 | R184: 0.9444444444 | S184: 42780.03067 | T184: 7.085217391 | U184: 42780.09664 | V184: 42780.03395 | W184: 6.817391304 | X184: 42779.97222 | Y184: 42780.00309 | Z184: 5.213913043 | AA184: 42779.99267 | AB184: 42779.99306 | AC184: 4.813913043 | AD184: Opn | AE184: 42779.87847 | AF184: 42779.98708 | AG184: 4.246086957 | AH184: 42779.96258 | AI184: 4.57826087 | AJ184: 42780.03086 | AK184: 6.985217391 | AL184: 42780.03106 | AM184: 6.953043478 | AN184: 42780.02739 | AO184: 6.717391304 | AP184: 42780.02797 | AQ184: 6.117391304 | AR184: 42780.00347 | AS184: 42780.02431 | AT184: 42779.98341 | AU184: 4.813913043 | AV184: 42779.98341 | AW184: 4.613913043 | AX184: 42779.96238 | AY184: 4.38173913 | AZ184: 42779.95891 | BA184: 4.213913043 | BB184: 42779.95544 | BC184: 4.146086957 | BD184: 42779.9159 | BE184: 4.013913043 | BF184: 42780.00347 | BH184: 42780.05556 | BI184: 42780.04514
A185: 0 | B185: =IF(Instructions!$C$2="BST",A185,0) -> 0 | C185: 2021-02-15T06:21:00 | D185: 2021-02-15 | E185: Mon | F185: 2 | I185: 1 | K185: 42780.26458 | L185: 1.02 | M185: LW | N185: 0.7633587786 | O185: 06:21:00 | P185: 05:00:00 | Q185: 11:00:00 | R185: 0.775 | S185: 42780.29965 | T185: 1.202290076 | U185: 42780.36562 | V185: 42780.27543 | W185: 1.078625954 | X185: 42780.22292 | Y185: 42780.28073 | Z185: 1.083969466 | AA185: 42780.23802 | AB185: 42780.27187 | AC185: 0.9076335878 | AD185: Cls | AE185: 42780.10764 | AF185: 42780.25035 | AG185: 0.8839694656 | AH185: 42780.24531 | AI185: 0.9839694656 | AJ185: 42780.29696 | AK185: 1.278625954 | AL185: 42780.29696 | AM185: 1.278625954 | AN185: 42780.28733 | AO185: 1.278625954 | AP185: 42780.29158 | AQ185: 1.154961832 | AR185: 42780.25417 | AS185: 42780.27847 | AT185: 42780.25417 | AU185: 1.083969466 | AV185: 42780.25955 | AW185: 1.007633588 | AX185: 42780.24531 | AY185: 0.8839694656 | AZ185: 42780.24184 | BA185: 0.8076335878 | BB185: 42780.23759 | BC185: 0.9076335878 | BD185: 42780.19245 | BE185: 0.8129770992 | BF185: 42780.28889 | BH185: 42780.30625 | BI185: 42780.29583
A186: 0 | B186: =IF(Instructions!$C$2="BST",A186,0) -> 0 | C186: 2021-02-15T12:32:00 | D186: 2021-02-15 | F186: 2 | I186: 1 | K186: 42780.52222 | L186: 5.6 | M186: HW | N186: 0.9652173913 | O186: 12:32:00 | P186: 12:00:00 | Q186: 18:00:00 | R186: 0.9111111111 | S186: 42780.53866 | T186: 7.544347826 | U186: 42780.60463 | V186: 42780.54182 | W186: 7.247826087 | X186: 42780.48056 | Y186: 42780.51119 | Z186: 5.55826087 | AA186: 42780.50077 | AB186: 42780.50139 | AC186: 5.15826087 | AD186: Opn | AE186: 42780.38681 | AF186: 42780.49599 | AG186: 4.56173913 | AH186: 42780.47137 | AI186: 4.865217391 | AJ186: 42780.53897 | AK186: 7.444347826 | AL186: 42780.53927 | AM186: 7.440869565 | AN186: 42780.53549 | AO186: 7.147826087 | AP186: 42780.53642 | AQ186: 6.547826087 | AR186: 42780.51181 | AS186: 42780.53264 | AT186: 42780.49221 | AU186: 5.15826087 | AV186: 42780.49221 | AW186: 4.95826087 | AX186: 42780.47106 | AY186: 4.754782609 | AZ186: 42780.46759 | BA186: 4.55826087 | BB186: 42780.46412 | BC186: 4.46173913 | BD186: 42780.42377 | BE186: 4.35826087 | BF186: 42780.51181 | BH186: 42780.56389 | BI186: 42780.55347
A187: 0 | B187: =IF(Instructions!$C$2="BST",A187,0) -> 0 | C187: 2021-02-15T18:44:00 | D187: 2021-02-15 | F187: 2 | I187: 1 | K187: 42780.78056 | L187: 0.94 | M187: LW | N187: 0.8244274809 | O187: 18:44:00 | P187: 17:00:00 | Q187: 23:00:00 | R187: 0.7111111111 | S187: 42780.81474 | T187: 1.098473282 | U187: 42780.88071 | V187: 42780.79252 | W187: 0.9809160305 | X187: 42780.73889 | Y187: 42780.79537 | Z187: 1.010687023 | AA187: 42780.75532 | AB187: 42780.78696 | AC187: 0.8282442748 | AD187: Cls | AE187: 42780.61597 | AF187: 42780.76721 | AG187: 0.8106870229 | AH187: 42780.76173 | AI187: 0.9106870229 | AJ187: 42780.81227 | AK187: 1.180916031 | AL187: 42780.81227 | AM187: 1.180916031 | AN187: 42780.80285 | AO187: 1.180916031 | AP187: 42780.80733 | AQ187: 1.063358779 | AR187: 42780.77014 | AS187: 42780.79444 | AT187: 42780.77014 | AU187: 1.010687023 | AV187: 42780.77508 | AW187: 0.9282442748 | AX187: 42780.76173 | AY187: 0.8106870229 | AZ187: 42780.75826 | BA187: 0.7282442748 | BB187: 42780.75378 | BC187: 0.8282442748 | BD187: 42780.70864 | BE187: 0.7580152672 | BF187: 42780.80486 | BH187: 42780.82222 | BI187: 42780.81181
A188: 0 | B188: =IF(Instructions!$C$2="BST",A188,0) -> 0 | C188: 2021-02-16T00:53:00 | D188: 2021-02-16 | E188: 2021-02-16 | F188: 2 | G188: Feb | H188: 16 | I188: 2 | J188: Tue | K188: 42781.03681 | L188: 5.12 | M188: HW | N188: 0.547826087 | O188: 00:53:00 | P188: 00:00:00 | Q188: 06:00:00 | R188: 0.8527777778 | S188: 42781.05263 | T188: 6.876521739 | U188: 42781.11861 | V188: 42781.05559 | W188: 6.62173913 | X188: 42780.99514 | Y188: 42781.02537 | Z188: 5.057391304 | AA188: 42781.01495 | AB188: 42781.01597 | AC188: 4.657391304 | AD188: Opn | AE188: 42780.90139 | AF188: 42781.01158 | AG188: 4.102608696 | AH188: 42780.98677 | AI188: 4.447826087 | AJ188: 42781.05314 | AK188: 6.776521739 | AL188: 42781.05366 | AM188: 6.731304348 | AN188: 42781.04967 | AO188: 6.52173913 | AP188: 42781.05121 | AQ188: 5.92173913 | AR188: 42781.02639 | AS188: 42781.04722 | AT188: 42781.0076 | AU188: 4.657391304 | AV188: 42781.0076 | AW188: 4.457391304 | AX188: 42780.98626 | AY188: 4.212173913 | AZ188: 42780.98278 | BA188: 4.057391304 | BB188: 42780.97931 | BC188: 4.002608696 | BD188: 42780.93754 | BE188: 3.857391304 | BF188: 42781.02639 | BH188: 42781.07847 | BI188: 42781.06806
A189: 0 | B189: =IF(Instructions!$C$2="BST",A189,0) -> 0 | C189: 2021-02-16T06:55:00 | D189: 2021-02-16 | E189: Tue | F189: 2 | I189: 2 | K189: 42781.28819 | L189: 1.19 | M189: LW | N189: 0.6335877863 | O189: 06:55:00 | P189: 05:00:00 | Q189: 11:00:00 | R189: 0.6805555556 | S189: 42781.32195 | T189: 1.422900763 | U189: 42781.38792 | V189: 42781.30068 | W189: 1.286259542 | X189: 42781.24653 | Y189: 42781.30237 | Z189: 1.239694656 | AA189: 42781.2636 | AB189: 42781.29417 | AC189: 1.076335878 | AD189: Cls | AE189: 42781.13056 | AF189: 42781.27527 | AG189: 1.039694656 | AH189: 42781.26958 | AI189: 1.139694656 | AJ189: 42781.31959 | AK189: 1.486259542 | AL189: 42781.31959 | AM189: 1.486259542 | AN189: 42781.31028 | AO189: 1.486259542 | AP189: 42781.31486 | AQ189: 1.349618321 | AR189: 42781.27778 | AS189: 42781.30208 | AT189: 42781.27778 | AU189: 1.239694656 | AV189: 42781.2825 | AW189: 1.176335878 | AX189: 42781.26958 | AY189: 1.039694656 | AZ189: 42781.26611 | BA189: 0.9763358779 | BB189: 42781.26153 | BC189: 1.076335878 | BD189: 42781.21639 | BE189: 0.9297709924 | BF189: 42781.3125 | BH189: 42781.32986 | BI189: 42781.31944
A190: 0 | B190: =IF(Instructions!$C$2="BST",A190,0) -> 0 | C190: 2021-02-16T13:05:00 | D190: 2021-02-16 | F190: 2 | I190: 2 | K190: 42781.54514 | L190: 5.42 | M190: HW | N190: 0.8086956522 | O190: 13:05:00 | P190: 12:00:00 | Q190: 18:00:00 | R190: 0.8194444444 | S190: 42781.56062 | T190: 7.293913043 | U190: 42781.62659 | V190: 42781.56346 | W190: 7.013043478 | X190: 42781.50347 | Y190: 42781.53347 | Z190: 5.370434783 | AA190: 42781.52305 | AB190: 42781.52431 | AC190: 4.970434783 | AD190: Opn | AE190: 42781.40972 | AF190: 42781.5205 | AG190: 4.389565217 | AH190: 42781.49556 | AI190: 4.708695652 | AJ190: 42781.56125 | AK190: 7.193913043 | AL190: 42781.56187 | AM190: 7.174782609 | AN190: 42781.55777 | AO190: 6.913043478 | AP190: 42781.55965 | AQ190: 6.313043478 | AR190: 42781.53472 | AS190: 42781.55556 | AT190: 42781.5164 | AU190: 4.970434783 | AV190: 42781.5164 | AW190: 4.770434783 | AX190: 42781.49494 | AY190: 4.551304348 | AZ190: 42781.49146 | BA190: 4.370434783 | BB190: 42781.48799 | BC190: 4.289565217 | BD190: 42781.44541 | BE190: 4.170434783 | BF190: 42781.53472 | BH190: 42781.58681 | BI190: 42781.57639
A191: 0 | B191: =IF(Instructions!$C$2="BST",A191,0) -> 0 | C191: 2021-02-16T19:18:00 | D191: 2021-02-16 | F191: 2 | I191: 2 | K191: 42781.80417 | L191: 1.16 | M191: LW | N191: 0.6564885496 | O191: 19:18:00 | P191: 17:00:00 | Q191: 23:00:00 | R191: 0.6166666667 | S191: 42781.83704 | T191: 1.383969466 | U191: 42781.90301 | V191: 42781.81777 | W191: 1.249618321 | X191: 42781.7625 | Y191: 42781.81701 | Z191: 1.21221374 | AA191: 42781.7809 | AB191: 42781.80926 | AC191: 1.046564885 | AD191: Cls | AE191: 42781.63889 | AF191: 42781.79213 | AG191: 1.01221374 | AH191: 42781.786 | AI191: 1.11221374 | AJ191: 42781.8349 | AK191: 1.449618321 | AL191: 42781.8349 | AM191: 1.449618321 | AN191: 42781.82581 | AO191: 1.449618321 | AP191: 42781.83061 | AQ191: 1.315267176 | AR191: 42781.79375 | AS191: 42781.81806 | AT191: 42781.79375 | AU191: 1.21221374 | AV191: 42781.79803 | AW191: 1.146564885 | AX191: 42781.786 | AY191: 1.01221374 | AZ191: 42781.78252 | BA191: 0.9465648855 | BB191: 42781.77772 | BC191: 1.046564885 | BD191: 42781.73258 | BE191: 0.9091603053 | BF191: 42781.82847 | BH191: 42781.84583 | BI191: 42781.83542
A192: 0 | B192: =IF(Instructions!$C$2="BST",A192,0) -> 0 | C192: 2021-02-17T01:25:00 | D192: 2021-02-17 | E192: 2021-02-17 | F192: 2 | G192: Feb | H192: 17 | I192: 3 | J192: Wed | K192: 42782.05903 | L192: 4.96 | M192: HW | N192: 0.4086956522 | O192: 01:25:00 | P192: 00:00:00 | Q192: 06:00:00 | R192: 0.7638888889 | S192: 42782.07393 | T192: 6.653913043 | U192: 42782.1399 | V192: 42782.07658 | W192: 6.413043478 | X192: 42782.01736 | Y192: 42782.04697 | Z192: 4.890434783 | AA192: 42782.03655 | AB192: 42782.03819 | AC192: 4.490434783 | AD192: Opn | AE192: 42781.92361 | AF192: 42782.03535 | AG192: 3.949565217 | AH192: 42782.01022 | AI192: 4.308695652 | AJ192: 42782.07475 | AK192: 6.553913043 | AL192: 42782.07557 | AM192: 6.494782609 | AN192: 42782.07128 | AO192: 6.313043478 | AP192: 42782.07374 | AQ192: 5.713043478 | AR192: 42782.04861 | AS192: 42782.06944 | AT192: 42782.03106 | AU192: 4.490434783 | AV192: 42782.03106 | AW192: 4.290434783 | AX192: 42782.0094 | AY192: 4.031304348 | AZ192: 42782.00593 | BA192: 3.890434783 | BB192: 42782.00246 | BC192: 3.849565217 | BD192: 42781.95853 | BE192: 3.690434783 | BF192: 42782.04861 | BH192: 42782.10069 | BI192: 42782.09028
A193: 0 | B193: =IF(Instructions!$C$2="BST",A193,0) -> 0 | C193: 2021-02-17T07:29:00 | D193: 2021-02-17 | E193: Wed | F193: 2 | I193: 3 | K193: 42782.31181 | L193: 1.41 | M193: LW | N193: 0.465648855 | O193: 07:29:00 | P193: 05:00:00 | Q193: 11:00:00 | R193: 0.5861111111 | S193: =IF($M193="HW",$K193+S$6+(S$5-S$6)*$R193,$K193+S$8+(S$7-S$8)*$R193) -> 42782.34425 | T193: 1.708396947 | U193: 42782.41022 | V193: 42782.32594 | W193: 1.554961832 | X193: =IF($M193="HW",$K193+X$6+(X$5-X$6)*$R193,$K193+X$8+(X$7-X$8)*$R193) -> 42782.27014 | Y193: 42782.32402 | Z193: 1.441221374 | AA193: 42782.28918 | AB193: 42782.31647 | AC193: 1.294656489 | AD193: Cls | AE193: 42782.15278 | AF193: 42782.30019 | AG193: 1.241221374 | AH193: 42782.29385 | AI193: 1.341221374 | AJ193: 42782.34222 | AK193: 1.754961832 | AL193: 42782.34222 | AM193: 1.754961832 | AN193: 42782.33324 | AO193: 1.754961832 | AP193: 42782.33815 | AQ193: 1.601526718 | AR193: =IF($M193="HW",$K193+AR$6+(AR$5-AR$6)*$R193,$K193+AR$8+(AR$7-AR$8)*$R193) -> 42782.30139 | AS193: 42782.32569 | AT193: 42782.30139 | AU193: 1.441221374 | AV193: 42782.30546 | AW193: 1.394656489 | AX193: 42782.29385 | AY193: 1.241221374 | AZ193: 42782.29037 | BA193: 1.194656489 | BB193: 42782.28546 | BC193: 1.294656489 | BD193: 42782.24033 | BE193: 1.080916031 | BF193: =IF($M193="HW",$K193+BF$6+(BF$5-BF$6)*$R193,$K193+BF$8+(BF$7-BF$8)*$R193) -> 42782.33611 | BH193: 42782.35347 | BI193: 42782.34306
A194: 0 | B194: =IF(Instructions!$C$2="BST",A194,0) -> 0 | C194: 2021-02-17T13:39:00 | D194: 2021-02-17 | F194: 2 | I194: 3 | K194: 42782.56875 | L194: 5.2 | M194: HW | N194: 0.6173913043 | O194: 13:39:00 | P194: 12:00:00 | Q194: 18:00:00 | R194: 0.725 | S194: 42782.58325 | T194: 6.987826087 | U194: 42782.64922 | V194: 42782.58576 | W194: 6.726086957 | X194: 42782.52708 | Y194: 42782.55642 | Z194: 5.140869565 | AA194: 42782.54601 | AB194: 42782.54792 | AC194: 4.740869565 | AD194: Opn | AE194: 42782.43333 | AF194: 42782.54575 | AG194: 4.179130435 | AH194: 42782.52049 | AI194: 4.517391304 | AJ194: 42782.5842 | AK194: 6.887826087 | AL194: 42782.58516 | AM194: 6.849565217 | AN194: 42782.58073 | AO194: 6.626086957 | AP194: 42782.58359 | AQ194: 6.026086957 | AR194: 42782.55833 | AS194: 42782.57917 | AT194: 42782.54132 | AU194: 4.740869565 | AV194: 42782.54132 | AW194: 4.540869565 | AX194: 42782.51953 | AY194: 4.302608696 | AZ194: 42782.51606 | BA194: 4.140869565 | BB194: 42782.51259 | BC194: 4.079130435 | BD194: 42782.46771 | BE194: 3.940869565 | BF194: 42782.55833 | BH194: 42782.61042 | BI194: 42782.6
A195: 0 | B195: =IF(Instructions!$C$2="BST",A195,0) -> 0 | C195: 2021-02-17T19:52:00 | D195: 2021-02-17 | F195: 2 | I195: 3 | K195: 42782.82778 | L195: 1.43 | M195: LW | N195: 0.4503816794 | O195: 19:52:00 | P195: 17:00:00 | Q195: 23:00:00 | R195: 0.5222222222 | S195: 42782.85934 | T195: 1.734351145 | U195: 42782.92531 | V195: 42782.84302 | W195: 1.579389313 | X195: 42782.78611 | Y195: 42782.83866 | Z195: 1.459541985 | AA195: 42782.80648 | AB195: 42782.83156 | AC195: 1.314503817 | AD195: Cls | AE195: 42782.6625 | AF195: 42782.81705 | AG195: 1.259541985 | AH195: 42782.81026 | AI195: 1.359541985 | AJ195: 42782.85752 | AK195: 1.779389313 | AL195: 42782.85752 | AM195: 1.779389313 | AN195: 42782.84877 | AO195: 1.779389313 | AP195: 42782.8539 | AQ195: 1.624427481 | AR195: 42782.81736 | AS195: 42782.84167 | AT195: 42782.81736 | AU195: 1.459541985 | AV195: 42782.82099 | AW195: 1.414503817 | AX195: 42782.81026 | AY195: 1.259541985 | AZ195: 42782.80679 | BA195: 1.214503817 | BB195: 42782.80166 | BC195: 1.314503817 | BD195: 42782.75652 | BE195: 1.094656489 | BF195: 42782.85208 | BH195: 42782.86944 | BI195: 42782.85903
A196: 0 | B196: =IF(Instructions!$C$2="BST",A196,0) -> 0 | C196: 2021-02-18T02:00:00 | D196: 2021-02-18 | E196: 2021-02-18 | F196: 2 | G196: Feb | H196: 18 | I196: 4 | J196: Thu | K196: 42783.08333 | L196: 4.78 | M196: HW | N196: 0.252173913 | O196: 02:00:00 | P196: 00:00:00 | Q196: 06:00:00 | R196: 0.6666666667 | S196: 42783.09722 | T196: 6.403478261 | U196: 42783.16319 | V196: 42783.09954 | W196: 6.17826087 | X196: 42783.04167 | Y196: 42783.0706 | Z196: 4.702608696 | AA196: 42783.06019 | AB196: 42783.0625 | AC196: 4.302608696 | AD196: Opn | AE196: 42782.94792 | AF196: 42783.06134 | AG196: 3.777391304 | AH196: 42783.03588 | AI196: 4.152173913 | AJ196: 42783.09838 | AK196: 6.303478261 | AL196: 42783.09954 | AM196: 6.228695652 | AN196: 42783.09491 | AO196: 6.07826087 | AP196: 42783.09838 | AQ196: 5.47826087 | AR196: 42783.07292 | AS196: 42783.09375 | AT196: 42783.05671 | AU196: 4.302608696 | AV196: 42783.05671 | AW196: 4.102608696 | AX196: 42783.03472 | AY196: 3.827826087 | AZ196: 42783.03125 | BA196: 3.702608696 | BB196: 42783.02778 | BC196: 3.677391304 | BD196: 42782.98148 | BE196: 3.502608696 | BF196: 42783.07292 | BH196: 42783.125 | BI196: 42783.11458
A197: 0 | B197: =IF(Instructions!$C$2="BST",A197,0) -> 0 | C197: 2021-02-18T08:06:00 | D197: 2021-02-18 | E197: Thu | F197: 2 | I197: 4 | K197: 42783.3375 | L197: 1.68 | M197: LW | N197: 0.2595419847 | O197: 08:06:00 | P197: 05:00:00 | Q197: 11:00:00 | R197: 0.4833333333 | S197: 42783.36852 | T197: 2.058778626 | U197: 42783.43449 | V197: 42783.35341 | W197: 1.884732824 | X197: 42783.29583 | Y197: 42783.34757 | Z197: 1.688549618 | AA197: 42783.31701 | AB197: 42783.34074 | AC197: 1.56259542 | AD197: Cls | AE197: 42783.17708 | AF197: 42783.32731 | AG197: 1.488549618 | AH197: 42783.32025 | AI197: 1.588549618 | AJ197: 42783.36684 | AK197: 2.084732824 | AL197: 42783.36684 | AM197: 2.084732824 | AN197: 42783.35822 | AO197: 2.084732824 | AP197: 42783.36348 | AQ197: 1.910687023 | AR197: 42783.32708 | AS197: 42783.35139 | AT197: 42783.32708 | AU197: 1.688549618 | AV197: 42783.33044 | AW197: 1.66259542 | AX197: 42783.32025 | AY197: 1.488549618 | AZ197: 42783.31678 | BA197: 1.46259542 | BB197: 42783.31152 | BC197: 1.56259542 | BD197: 42783.26638 | BE197: 1.266412214 | BF197: 42783.36181 | BH197: 42783.37917 | BI197: 42783.36875
A198: 0 | B198: =IF(Instructions!$C$2="BST",A198,0) -> 0 | C198: 2021-02-18T14:17:00 | D198: 2021-02-18 | F198: 2 | I198: 4 | K198: 42783.59514 | L198: 4.94 | M198: HW | N198: 0.3913043478 | O198: 14:17:00 | P198: 12:00:00 | Q198: 18:00:00 | R198: 0.6194444445 | S198: 42783.60854 | T198: 6.626086957 | U198: 42783.67451 | V198: 42783.61069 | W198: 6.386956522 | X198: 42783.55347 | Y198: 42783.58208 | Z198: 4.869565217 | AA198: 42783.57166 | AB198: 42783.57431 | AC198: 4.469565217 | AD198: Opn | AE198: 42783.45972 | AF198: 42783.57397 | AG198: 3.930434783 | AH198: 42783.54834 | AI198: 4.291304348 | AJ198: 42783.60986 | AK198: 6.526086957 | AL198: 42783.61118 | AM198: 6.465217391 | AN198: 42783.60639 | AO198: 6.286956522 | AP198: 42783.61035 | AQ198: 5.686956522 | AR198: 42783.58472 | AS198: 42783.60556 | AT198: 42783.56917 | AU198: 4.469565217 | AV198: 42783.56917 | AW198: 4.269565217 | AX198: 42783.54702 | AY198: 4.008695652 | AZ198: 42783.54355 | BA198: 3.869565217 | BB198: 42783.54008 | BC198: 3.830434783 | BD198: 42783.49263 | BE198: 3.669565217 | BF198: 42783.58472 | BH198: 42783.63681 | BI198: 42783.62639
A199: 0 | B199: =IF(Instructions!$C$2="BST",A199,0) -> 0 | C199: 2021-02-18T20:31:00 | D199: 2021-02-18 | F199: 2 | I199: 4 | K199: 42783.85486 | L199: 1.72 | M199: LW | N199: 0.2290076336 | O199: 20:31:00 | P199: 17:00:00 | Q199: 23:00:00 | R199: 0.4138888889 | S199: 42783.88492 | T199: 2.110687023 | U199: 42783.95089 | V199: 42783.87198 | W199: 1.933587786 | X199: 42783.81319 | Y199: 42783.86348 | Z199: 1.72519084 | AA199: 42783.83582 | AB199: 42783.85714 | AC199: 1.602290076 | AD199: Cls | AE199: 42783.68889 | AF199: 42783.84564 | AG199: 1.52519084 | AH199: 42783.8381 | AI199: 1.62519084 | AJ199: 42783.88348 | AK199: 2.133587786 | AL199: 42783.88348 | AM199: 2.133587786 | AN199: 42783.8751 | AO199: 2.133587786 | AP199: 42783.8806 | AQ199: 1.95648855 | AR199: 42783.84444 | AS199: 42783.86875 | AT199: 42783.84444 | AU199: 1.72519084 | AV199: 42783.84732 | AW199: 1.702290076 | AX199: 42783.8381 | AY199: 1.52519084 | AZ199: 42783.83463 | BA199: 1.502290076 | BB199: 42783.82912 | BC199: 1.602290076 | BD199: 42783.78398 | BE199: 1.29389313 | BF199: 42783.87917 | BH199: 42783.89653 | BI199: 42783.88611
A200: 0 | B200: =IF(Instructions!$C$2="BST",A200,0) -> 0 | C200: 2021-02-19T02:40:00 | D200: 2021-02-19 | E200: 2021-02-19 | F200: 2 | G200: Feb | H200: 19 | I200: 5 | J200: Fri | K200: 42784.11111 | L200: 4.58 | M200: HW | N200: 0.07826086957 | O200: 02:40:00 | P200: 00:00:00 | Q200: 06:00:00 | R200: 0.5555555556 | S200: 42784.12384 | T200: 6.125217391 | U200: 42784.18981 | V200: 42784.12577 | W200: 5.917391304 | X200: 42784.06944 | Y200: 42784.09761 | Z200: 4.493913043 | AA200: 42784.08719 | AB200: 42784.09028 | AC200: 4.093913043 | AD200: Opn | AE200: 42783.97569 | AF200: 42784.09105 | AG200: 3.586086957 | AH200: 42784.0652 | AI200: 3.97826087 | AJ200: 42784.12539 | AK200: 6.025217391 | AL200: 42784.12693 | AM200: 5.933043478 | AN200: 42784.12191 | AO200: 5.817391304 | AP200: 42784.12654 | AQ200: 5.217391304 | AR200: 42784.10069 | AS200: 42784.12153 | AT200: 42784.08603 | AU200: 4.093913043 | AV200: 42784.08603 | AW200: 3.893913043 | AX200: 42784.06366 | AY200: 3.60173913 | AZ200: 42784.06019 | BA200: 3.493913043 | BB200: 42784.05671 | BC200: 3.486086957 | BD200: 42784.00772 | BE200: 3.293913043 | BF200: 42784.10069 | BH200: 42784.15278 | BI200: 42784.14236
... 1220 more rows

Sheet Tides Raw (hidden)
A1: Datetime UTC | C1: Height | E1: H/L
A2: 2021-01-01T05:21:00 | C2: 1.32 | E2: LW
A3: 2021-01-01T11:38:00 | C3: 5.58 | E3: HW
A4: 2021-01-01T17:50:00 | C4: 1.18 | E4: LW
A5: 2021-01-02T00:02:00 | C5: 5.32 | E5: HW
A6: 2021-01-02T06:00:00 | C6: 1.35 | E6: LW
A7: 2021-01-02T12:16:00 | C7: 5.57 | E7: HW
A8: 2021-01-02T18:31:00 | C8: 1.17 | E8: LW
A9: 2021-01-03T00:43:00 | C9: 5.24 | E9: HW
A10: 2021-01-03T06:41:00 | C10: 1.41 | E10: LW
A11: 2021-01-03T12:56:00 | C11: 5.51 | E11: HW
A12: 2021-01-03T19:15:00 | C12: 1.2 | E12: LW
A13: 2021-01-04T01:28:00 | C13: 5.14 | E13: HW
A14: 2021-01-04T07:26:00 | C14: 1.5 | E14: LW
A15: 2021-01-04T13:41:00 | C15: 5.42 | E15: HW
A16: 2021-01-04T20:04:00 | C16: 1.27 | E16: LW
A17: 2021-01-05T02:18:00 | C17: 5.01 | E17: HW
A18: 2021-01-05T08:16:00 | C18: 1.62 | E18: LW
A19: 2021-01-05T14:32:00 | C19: 5.3 | E19: HW
A20: 2021-01-05T20:58:00 | C20: 1.36 | E20: LW
A21: 2021-01-06T03:13:00 | C21: 4.89 | E21: HW
A22: 2021-01-06T09:13:00 | C22: 1.75 | E22: LW
A23: 2021-01-06T15:30:00 | C23: 5.16 | E23: HW
A24: 2021-01-06T22:00:00 | C24: 1.46 | E24: LW
A25: 2021-01-07T04:17:00 | C25: 4.8 | E25: HW
A26: 2021-01-07T10:19:00 | C26: 1.83 | E26: LW
A27: 2021-01-07T16:37:00 | C27: 5.06 | E27: HW
A28: 2021-01-07T23:07:00 | C28: 1.51 | E28: LW
A29: 2021-01-08T05:27:00 | C29: 4.79 | E29: HW
A30: 2021-01-08T11:30:00 | C30: 1.83 | E30: LW
A31: 2021-01-08T17:51:00 | C31: 5.03 | E31: HW
A32: 2021-01-09T00:17:00 | C32: 1.48 | E32: LW
A33: 2021-01-09T06:38:00 | C33: 4.9 | E33: HW
A34: 2021-01-09T12:42:00 | C34: 1.7 | E34: LW
A35: 2021-01-09T19:04:00 | C35: 5.11 | E35: HW
A36: 2021-01-10T01:22:00 | C36: 1.36 | E36: LW
A37: 2021-01-10T07:43:00 | C37: 5.1 | E37: HW
A38: 2021-01-10T13:47:00 | C38: 1.47 | E38: LW
A39: 2021-01-10T20:09:00 | C39: 5.25 | E39: HW
A40: 2021-01-11T02:19:00 | C40: 1.22 | E40: LW
A41: 2021-01-11T08:38:00 | C41: 5.34 | E41: HW
A42: 2021-01-11T14:44:00 | C42: 1.22 | E42: LW
A43: 2021-01-11T21:05:00 | C43: 5.4 | E43: HW
A44: 2021-01-12T03:11:00 | C44: 1.08 | E44: LW
A45: 2021-01-12T09:29:00 | C45: 5.55 | E45: HW
A46: 2021-01-12T15:36:00 | C46: 0.99 | E46: LW
A47: 2021-01-12T21:55:00 | C47: 5.51 | E47: HW
A48: 2021-01-13T03:59:00 | C48: 0.98 | E48: LW
A49: 2021-01-13T10:15:00 | C49: 5.72 | E49: HW
A50: 2021-01-13T16:24:00 | C50: 0.83 | E50: LW
A51: 2021-01-13T22:42:00 | C51: 5.55 | E51: HW
A52: 2021-01-14T04:44:00 | C52: 0.95 | E52: LW
A53: 2021-01-14T10:59:00 | C53: 5.81 | E53: HW
A54: 2021-01-14T17:09:00 | C54: 0.76 | E54: LW
A55: 2021-01-14T23:27:00 | C55: 5.5 | E55: HW
A56: 2021-01-15T05:27:00 | C56: 0.99 | E56: LW
A57: 2021-01-15T11:41:00 | C57: 5.8 | E57: HW
A58: 2021-01-15T17:54:00 | C58: 0.79 | E58: LW
A59: 2021-01-16T00:09:00 | C59: 5.38 | E59: HW
A60: 2021-01-16T06:09:00 | C60: 1.1 | E60: LW
A61: 2021-01-16T12:22:00 | C61: 5.71 | E61: HW
A62: 2021-01-16T18:36:00 | C62: 0.92 | E62: LW
A63: 2021-01-17T00:51:00 | C63: 5.2 | E63: HW
A64: 2021-01-17T06:50:00 | C64: 1.28 | E64: LW
A65: 2021-01-17T13:02:00 | C65: 5.54 | E65: HW
A66: 2021-01-17T19:18:00 | C66: 1.12 | E66: LW
A67: 2021-01-18T01:30:00 | C67: 4.98 | E67: HW
A68: 2021-01-18T07:30:00 | C68: 1.49 | E68: LW
A69: 2021-01-18T13:41:00 | C69: 5.33 | E69: HW
A70: 2021-01-18T19:59:00 | C70: 1.36 | E70: LW
A71: 2021-01-19T02:10:00 | C71: 4.77 | E71: HW
A72: 2021-01-19T08:11:00 | C72: 1.73 | E72: LW
A73: 2021-01-19T14:22:00 | C73: 5.09 | E73: HW
A74: 2021-01-19T20:42:00 | C74: 1.62 | E74: LW
A75: 2021-01-20T02:53:00 | C75: 4.57 | E75: HW
A76: 2021-01-20T08:56:00 | C76: 1.98 | E76: LW
A77: 2021-01-20T15:07:00 | C77: 4.85 | E77: HW
A78: 2021-01-20T21:30:00 | C78: 1.87 | E78: LW
A79: 2021-01-21T03:43:00 | C79: 4.41 | E79: HW
A80: 2021-01-21T09:49:00 | C80: 2.2 | E80: LW
A81: 2021-01-21T16:00:00 | C81: 4.64 | E81: HW
A82: 2021-01-21T22:27:00 | C82: 2.08 | E82: LW
A83: 2021-01-22T04:44:00 | C83: 4.3 | E83: HW
A84: 2021-01-22T10:56:00 | C84: 2.35 | E84: LW
A85: 2021-01-22T17:06:00 | C85: 4.48 | E85: HW
A86: 2021-01-22T23:35:00 | C86: 2.19 | E86: LW
A87: 2021-01-23T06:00:00 | C87: 4.32 | E87: HW
A88: 2021-01-23T12:12:00 | C88: 2.37 | E88: LW
A89: 2021-01-23T18:22:00 | C89: 4.46 | E89: HW
A90: 2021-01-24T00:45:00 | C90: 2.16 | E90: LW
A91: 2021-01-24T07:12:00 | C91: 4.48 | E91: HW
A92: 2021-01-24T13:22:00 | C92: 2.22 | E92: LW
A93: 2021-01-24T19:32:00 | C93: 4.59 | E93: HW
A94: 2021-01-25T01:44:00 | C94: 2.01 | E94: LW
A95: 2021-01-25T08:09:00 | C95: 4.72 | E95: HW
A96: 2021-01-25T14:16:00 | C96: 1.98 | E96: LW
A97: 2021-01-25T20:26:00 | C97: 4.79 | E97: HW
A98: 2021-01-26T02:32:00 | C98: 1.81 | E98: LW
A99: 2021-01-26T08:53:00 | C99: 4.99 | E99: HW
A100: 2021-01-26T15:00:00 | C100: 1.71 | E100: LW
A101: 2021-01-26T21:11:00 | C101: 5 | E101: HW
A102: 2021-01-27T03:13:00 | C102: 1.58 | E102: LW
A103: 2021-01-27T09:32:00 | C103: 5.24 | E103: HW
A104: 2021-01-27T15:39:00 | C104: 1.42 | E104: LW
A105: 2021-01-27T21:51:00 | C105: 5.2 | E105: HW
A106: 2021-01-28T03:50:00 | C106: 1.37 | E106: LW
A107: 2021-01-28T10:09:00 | C107: 5.46 | E107: HW
A108: 2021-01-28T16:17:00 | C108: 1.16 | E108: LW
A109: 2021-01-28T22:29:00 | C109: 5.36 | E109: HW
A110: 2021-01-29T04:28:00 | C110: 1.18 | E110: LW
A111: 2021-01-29T10:45:00 | C111: 5.64 | E111: HW
A112: 2021-01-29T16:55:00 | C112: 0.94 | E112: LW
A113: 2021-01-29T23:07:00 | C113: 5.47 | E113: HW
A114: 2021-01-30T05:05:00 | C114: 1.03 | E114: LW
A115: 2021-01-30T11:22:00 | C115: 5.76 | E115: HW
A116: 2021-01-30T17:33:00 | C116: 0.78 | E116: LW
A117: 2021-01-30T23:45:00 | C117: 5.51 | E117: HW
A118: 2021-01-31T05:43:00 | C118: 0.95 | E118: LW
A119: 2021-01-31T11:59:00 | C119: 5.81 | E119: HW
A120: 2021-01-31T18:13:00 | C120: 0.71 | E120: LW
A121: 2021-02-01T00:25:00 | C121: 5.49 | E121: HW
A122: 2021-02-01T06:23:00 | C122: 0.95 | E122: LW
A123: 2021-02-01T12:39:00 | C123: 5.79 | E123: HW
A124: 2021-02-01T18:55:00 | C124: 0.73 | E124: LW
A125: 2021-02-02T01:06:00 | C125: 5.4 | E125: HW
A126: 2021-02-02T07:06:00 | C126: 1.02 | E126: LW
A127: 2021-02-02T13:21:00 | C127: 5.69 | E127: HW
A128: 2021-02-02T19:40:00 | C128: 0.85 | E128: LW
A129: 2021-02-03T01:51:00 | C129: 5.26 | E129: HW
A130: 2021-02-03T07:52:00 | C130: 1.17 | E130: LW
A131: 2021-02-03T14:07:00 | C131: 5.51 | E131: HW
A132: 2021-02-03T20:30:00 | C132: 1.07 | E132: LW
A133: 2021-02-04T02:41:00 | C133: 5.06 | E133: HW
A134: 2021-02-04T08:45:00 | C134: 1.4 | E134: LW
A135: 2021-02-04T15:01:00 | C135: 5.26 | E135: HW
A136: 2021-02-04T21:27:00 | C136: 1.34 | E136: LW
A137: 2021-02-05T03:40:00 | C137: 4.85 | E137: HW
A138: 2021-02-05T09:47:00 | C138: 1.65 | E138: LW
A139: 2021-02-05T16:06:00 | C139: 4.99 | E139: HW
A140: 2021-02-05T22:35:00 | C140: 1.6 | E140: LW
A141: 2021-02-06T04:52:00 | C141: 4.69 | E141: HW
A142: 2021-02-06T11:02:00 | C142: 1.83 | E142: LW
A143: 2021-02-06T17:27:00 | C143: 4.79 | E143: HW
A144: 2021-02-06T23:53:00 | C144: 1.74 | E144: LW
A145: 2021-02-07T06:15:00 | C145: 4.68 | E145: HW
A146: 2021-02-07T12:26:00 | C146: 1.82 | E146: LW
A147: 2021-02-07T18:55:00 | C147: 4.79 | E147: HW
A148: 2021-02-08T01:09:00 | C148: 1.69 | E148: LW
A149: 2021-02-08T07:32:00 | C149: 4.87 | E149: HW
A150: 2021-02-08T13:40:00 | C150: 1.62 | E150: LW
A151: 2021-02-08T20:08:00 | C151: 4.96 | E151: HW
A152: 2021-02-09T02:12:00 | C152: 1.51 | E152: LW
A153: 2021-02-09T08:33:00 | C153: 5.14 | E153: HW
A154: 2021-02-09T14:41:00 | C154: 1.32 | E154: LW
A155: 2021-02-09T21:04:00 | C155: 5.16 | E155: HW
A156: 2021-02-10T03:05:00 | C156: 1.29 | E156: LW
A157: 2021-02-10T09:23:00 | C157: 5.42 | E157: HW
A158: 2021-02-10T15:31:00 | C158: 1.04 | E158: LW
A159: 2021-02-10T21:52:00 | C159: 5.32 | E159: HW
A160: 2021-02-11T03:50:00 | C160: 1.1 | E160: LW
A161: 2021-02-11T10:06:00 | C161: 5.63 | E161: HW
A162: 2021-02-11T16:15:00 | C162: 0.83 | E162: LW
A163: 2021-02-11T22:33:00 | C163: 5.41 | E163: HW
A164: 2021-02-12T04:31:00 | C164: 0.96 | E164: LW
A165: 2021-02-12T10:45:00 | C165: 5.75 | E165: HW
A166: 2021-02-12T16:56:00 | C166: 0.71 | E166: LW
A167: 2021-02-12T23:11:00 | C167: 5.43 | E167: HW
A168: 2021-02-13T05:09:00 | C168: 0.9 | E168: LW
A169: 2021-02-13T11:23:00 | C169: 5.79 | E169: HW
A170: 2021-02-13T17:33:00 | C170: 0.69 | E170: LW
A171: 2021-02-13T23:47:00 | C171: 5.37 | E171: HW
A172: 2021-02-14T05:46:00 | C172: 0.92 | E172: LW
A173: 2021-02-14T11:58:00 | C173: 5.73 | E173: HW
A174: 2021-02-14T18:10:00 | C174: 0.78 | E174: LW
A175: 2021-02-15T00:20:00 | C175: 5.27 | E175: HW
A176: 2021-02-15T06:21:00 | C176: 1.02 | E176: LW
A177: 2021-02-15T12:32:00 | C177: 5.6 | E177: HW
A178: 2021-02-15T18:44:00 | C178: 0.94 | E178: LW
A179: 2021-02-16T00:53:00 | C179: 5.12 | E179: HW
A180: 2021-02-16T06:55:00 | C180: 1.19 | E180: LW
A181: 2021-02-16T13:05:00 | C181: 5.42 | E181: HW
A182: 2021-02-16T19:18:00 | C182: 1.16 | E182: LW
A183: 2021-02-17T01:25:00 | C183: 4.96 | E183: HW
A184: 2021-02-17T07:29:00 | C184: 1.41 | E184: LW
A185: 2021-02-17T13:39:00 | C185: 5.2 | E185: HW
A186: 2021-02-17T19:52:00 | C186: 1.43 | E186: LW
A187: 2021-02-18T02:00:00 | C187: 4.78 | E187: HW
A188: 2021-02-18T08:06:00 | C188: 1.68 | E188: LW
A189: 2021-02-18T14:17:00 | C189: 4.94 | E189: HW
A190: 2021-02-18T20:31:00 | C190: 1.72 | E190: LW
A191: 2021-02-19T02:40:00 | C191: 4.58 | E191: HW
A192: 2021-02-19T08:50:00 | C192: 1.97 | E192: LW
A193: 2021-02-19T15:02:00 | C193: 4.67 | E193: HW
A194: 2021-02-19T21:18:00 | C194: 2.02 | E194: LW
A195: 2021-02-20T03:32:00 | C195: 4.38 | E195: HW
A196: 2021-02-20T09:47:00 | C196: 2.26 | E196: LW
A197: 2021-02-20T16:01:00 | C197: 4.4 | E197: HW
A198: 2021-02-20T22:22:00 | C198: 2.29 | E198: LW
A199: 2021-02-21T04:43:00 | C199: 4.23 | E199: HW
A200: 2021-02-21T11:07:00 | C200: 2.44 | E200: LW
... 1211 more rows
